Workbook

Sheet Notes
A1: FourierMarketModel.xlsm; Traders Tip spreadsheet created for the June 2019 Issue
A2: Coded beginning 2019-April-04 by Ronald McAllister (rpmac_xltt@sprynet.com)
A4: This Workbook demonstrates an EXCEL version of the ideas presented
A5: by John Ehlers in an article titled "Fourier Series Model Of The Market"
A6: which originally appeared in the June 2019 issue of
A7: "Technical Analysis of Stocks and Commodities" magazine.
A9: General Construction Notes
A11: One can replicate the chart in Figure 6 of the article by retrieving data for symbol SPY.
A12: Next, on the CalculationsAndCharts tab, set cell B26 to 10/23/2017 and cell B27 to 12/24/2018.
A13: Then Click on the "I would like to chart these dates" button.
A14: Be sure to have A16 set to 20 and A17 to 0.1
A17: Curiosity got the better of me.
A18: So I constructed a user defined function to gather and show several simple statistics for the Rate Of Change crossover events.
A19: Output from this function can be found on the CalculationsAndCharts tab, in columns V:AC, just right of the charts.
A21: Mr. Ehlers suggests that ROC, as defined in this article, can provide a potential buy or sell signal as the ROC crosses over zero.
A22: Each ROC zero cross signaling a turning point a an extreme peak or valey of the price action.
A24: My routine to gathers some primitive numerical statistics from a range of cells that may include non-numeric values mixed in with numeric bar counts.
A25: The logic in this routine ignores cells with non-numeric contents as it gathers statistics for the numeric valued cells.
A27: This statistics gathering routine uses a version of my somewhat older Array of Arrays tool set to manage intermediate results.
A29: My Array fo Arrays tool set expands on the capabilities of the VBA built in array functions to provide two dimensional arrays that can be REDIM PRESERV'd along either or both dimensions.
A30: Where as the builtin VBA REDIM PRESERVE can only expand the array boundaries controlled by the the right most subscript.
A32: The Array of Arrays tool set includes a routine to sort the rows (y-coordinate) of a two dimensional array of arrays structure using values in one or two columns (x-coordinates) as sort keys.
A34: Development Notes:
C35: This workbook contains and uses VBA macros and may use VBA Class structures.
C36: Input Data
C37: The data in this workbook is sorted date descending (most recent date at the top). All formulas and
C38: VBA routines are built accordingly.
A40: 2019-04-04 Finally came up with a mechanism to align the left location and overall length of the cursor scroll bar so that the left most and right most
A41: scroll bar thumb positions visually align reasonably well with the left and right ends of the price chart horizontal axis.
A42: Makes it a little easier to visually align the Thumb and thus the cursor with points of interest on the charts.
A44: Older:
B45: My sincere apologies to our Macintosh based readers: Neither MSXML nor WinHttpRequest are supported in your environment. So as it stands this version of the spreadsheet will not work for you.
B46: See "Why this approach does not work for Macintosh" below.
B47: I am investigating cURL as a non-Querytable based approach for the Macintosh environment.
A49: The new Yahoo Finance history download interface has changed rather radically. The biggest hurdle being a pseudo-security requirement of adding a
B50: crumb character string to any URL requesting any type of history download. That crumb must match up (by way of some sort of hash algorithm) with
B51: the Yahoo Finance cookie that must also be sent with any request to the new Yahoo History down load interface.
B53: A crumb value is returned, buried in the HTML for any of what I call the "entry level" Yahoo Finance web pages (no crumb security requirement for entry level pages).
B54: A crumb may come with other Yahoo Finance pages. A crumb may even accompany some of the secured pages as well. I have not checked.
B56: Entry level pages are the top level pages of the various Yahoo Finance dialogs and include: Quote Lookup, Stock Summary Quote, and any of the pages
B57: with links in the horizontal row with the "Summary" link on the quote summary page such as Options, Historical Data, and the rest.
B59: To date I have found no way to get at this crumb value using any native EXCEL capabilities.
B61: So this crumb requirement effectively shuts out any solution that attempts to exclusively use built-in facilities of EXCEL, which is to say a purely Querytables solution.
B63: The approach built for this Traders Tip spreadsheet uses a combination of MSXML and EXCEL Querytable calls to Load the InputPriceData worksheet.
B65: First I call MSXML to get the HTML text for the Yahoo Summary Quote page using the requested symbol. From this HTML text I extract the full company name,
B66: the market it trades, the market status and time stamp, and finally the associated crumb string. There is a bunch of other useful bits buried in this HTML
B67: text that do not necessarily appear on the web page your browser presents. Perhaps some day I will go after and build a worksheet with these other bits.
B69: Next I add the freshly extracted crumb string to the URLs I use in three separate Querytable calls to retrieve Price history, Split history, and Dividend history respectively.
B71: From there VBA code proceeds as in the past to fill in the cell formulas and formatting that make the "prettied up" InputPriceData sheet.
A73: Why this approach works for Windows:
B74: First, MSXML shares the permanent Internet Explorer web cache where cookies are maintained. Both IE and MSXML automatically
B75: update this cache when a "set cookie" header accompanies a web response. And they both automatically search this shared cache for
B76: cookies and add any "appropriate" cookies to the headers of any web requests they send out.
B77: This cookie handling automation means that even if the response to our MSXML call for the Summary web page includes a new version of
B78: the Yahoo Finance cookie, the imbedded Crumb value will always match the cookie newly installed in the cache!
B80: Second, in the Windows environment the EXCEL Querytable mechanism leans heavily on bits from Internet Explorer. This means that cookie
B81: handling is also automated from the shared cache for Querytable calls. We can count on any appropriate cookies being added to any Querytable call.
B82: We only need to do our part by adding the corresponding Crumb value to complete the security for the Querytable to access Yahoo History downloads.
A84: Why this approach does not work for Macintosh:
B85: For what it is worth, the Macintosh version of the MS Office suite of products do in fact maintain a special, shared amongst themselves only, cookie cache.
B86: They automate cookie handling into and from this cache JUST for the Office products and any Querytable activity they might originate.
B88: This cache is not tied to, nor shared with, any browser that might be installed on the MAC. And I have not found anything with HTTP capabilities similar to
B89: MSXML that can work with that Office product cookie cache.
B91: When working in the MAC EXCEL environment, without that MSXML like capability against the office shared cache, l have no mechanism
B92: to obtain a crumb value that would be a valid match to the Yahoo Finance cookie that will be automatically attached to a Querytable call.
B93: This missing facility pretty much eliminates the use of Mac environment Querytables to access the new Yahoo Finance history download interface.
A95: One very low probability potential "Gottcha" for any Querytables approach.
B96: Yahoo Finance cookies typically have an assigned expiration that is a year out (to the second) from the time they are issued.
B97: Further, these cookies are unique. Yours will not match mine.
B99: If for testing purposes, instead of MSXML, you use a fresh instance of Winhttp (Fresh instance = empty cache = no cookie to automatically send)
B100: every time you call an entry level page, the Yahoo server says "What? Entry level page? With no inbound cookie? Get them a cookie!!"
B101: and will send you a new, unique cookie and will imbed the matching crumb value in the response HTML text for each of these "no cookie attached" calls.
B103: The Gottcha: Lets say that the Yahoo Finance cookie presently in the IE cache has an expiration date and time that just happens
B104: to fall between our MSXML call to the summary page to fetch our crumb and our first (or second, or third) Querytable call.
B105: The Querytable call after the cookie expiration may fail with a cookie and crumb validation error.
B107: Querytable error reporting is atrocious. So we will not get any sort of helpful message here. Just a very generalized message like "failed to connect".
B109: The workaround is to simply go to the InputPriceData tab and click the download button.
B110: This second time through the retrieval process should not fail on a mismatch.
B111: After all, you now have a year before the new cookie that just got put into the cache expires!
A113: Calculation and Chart Worksheet Usage Comments:
C114: In General, Items in Bolded BLUE are items you may freely change to play what-if games.
C115: Be sure to have a backup copy of the spreadsheet before you alter anything else.
A117: Features carried forward from the June 2016 version of my T-Tips Template
A118: Added a pair of buttons near cell F12 that will allow the user to step the charting window forward or backward one bar for each click.
A119: I find this to be a good way to test my understanding of the author's ideas as I step through the evolution of the price behavior and the indicators.
B121: First: In the "Help! I would like to plot data" area.
B122: Added button to resolve #NA problems by locating the bar in the input data with a slightly more recent date than what the user actually requested.
B123: I find this particularly useful when I have a general idea of where I want to be date wise. Now I can pick a set of dates "out of the air".
B124: If either (or both) of my date specifications fall between dates that are available in the price history,
B125: this button will resolve them to the dates of the nearest, slightly more recent input bars.
B126: I can then refine my data interval search as necessary from there.
B127: Really great when working with Weekly or Monthly studies!
C128: 2016Jun11 - added logic to the "I would like to chart.." button to detect #N/A values and terminate
C129: gracefully with a message instead of blowing up in the charting logic.
B131: Second: In the "Price Chart Windowing Controls" area. (A11 and A12)
B132: When retrieving data for a new symbol or when changing from daily to weekly or monthly data, there was the possibility that the
B133: residual settings in A11 and A12 would fall outside of the number bars available on the input data tab after the new data retrieval.
B134: In certain combinations, this could create a serious error in the chart sizing logic and crash the spreadsheet.
B135: I have taken this opportunity to update the validity checking logic used in the chart sizing macros
B136: to adjust these values as necessary so that they fall within the boundaries of the newly retrieved input data.
A137: Features carried forward from the October 2015 Traders Tips Template
B138: Improved automation: changes to any of the following will automatically initiate calculations appropriate to reflect a change.
C139: Changing either of cells A11 (pan) or A12 (zoom) will automatically initiate the same chart sizing macros that the manual
C140: "Set Chart" button uses.

Sheet InputPriceData
A1: SPDR S&P 500 ETF (SPY) -NYSEArca (Daily)
IJ2: 241.79
A3: Request Online Yahoo History for: | F3: Market State == > | G3: At close: | H3: 16:00:00 | I3: EDT
A4: Symbol | B4: SPY | D4: Valid | I4: =OFFSET(I4,-2,0,1,1) -> 0
A5: From | B5: 1950-01-01 | D5: Data | AF5: Trailing 12 Div return (Cur Close)
A6: To | B6: =NOW() -> 2019-04-15T12:31:58.580 | D6: Types | E6: =VLOOKUP(B7,D7:E10,2,FALSE) -> d
A7: Data Type | B7: Daily | D7: Daily | E7: d
A8: Crumb | B8: BiN3Slis.PL | D8: Weekly | E8: w
A9: Available Data | D9: Monthly | E9: m
A10: Bar Count: | B10: 6597 | AF10: =OFFSET(AC15,1,0,1,1)/OFFSET(N15,1,0,1,1) -> 0.01816573589
A11: From: | B11: =IF(B10<=0,"",OFFSET(B15,B10,IF(HistReqDataType="v",1,0),1,1)) -> 1993-01-29 | W11: Trailing 12 Month Dividend Returns
A12: To: | B12: =IF(B10<=0,"",IF(HistReqDataType="v",OFFSET(B15,2,1,1,1),OFFSET(B15,1,0,1,1))) -> 2019-04-10 | W12: Raw Close price on Dividend date | X12: Div Year and Month | Y12: Looking for year ago Div Year and Month | Z12: Year ago Div Date we found | AA12: row offset to year ago div Date | AB12: Same month flag | AC12: Trailing 12 Div Total | AD12: Trailing 12 Div return
Q13: Split History | S13: 0 | T13: Running | U13: Dividend History
B14: Raw Data Values | H14: Adjusted | I14: Price Adjust | J14: Vol Adjust | K14: Adjusted Values | P14: Last | Q14: Effective | R14: Shares | T14: Vol Adjust | V14: 109
A15: RelRow | B15: Date | C15: Open | D15: High | E15: Low | F15: Close | G15: Volume | H15: Close | I15: Factor | J15: Factor | K15: Open | L15: High | M15: Low | N15: Close | O15: Volume | P15: Trade | Q15: 43567 | R15: New | S15: Old | T15: 1 | U15: Date | V15: $ / Share
A16: 1 | B16: 2019-04-10 | C16: 287.769989 | D16: 288.390015 | E16: 287.309998 | F16: 288.290009 | G16: 52513100 | H16: 288.290009 | I16: =IF(F16=0,1,H16/F16) -> 1 | J16: =INDEX(OFFSET($T$15,0,0,$S$13+1,1),MATCH(B16,OFFSET($Q$15,0,0,$S$13+1,1),-1)) -> 1 | K16: =ROUND($I16*C16,2) -> 287.77 | L16: =ROUND($I16*D16,2) -> 288.39 | M16: 287.31 | N16: 288.29 | O16: =G16*J16 -> 52513100 | U16: 2019-03-15 | V16: 1.233 | W16: =(INDEX(OFFSET($F$15,1,0,$B$10,1),MATCH(U16,OFFSET($B$15,1,0,$B$10,1),-1))) -> 281.309998 | X16: =YEAR(U16)&RIGHT("0"&MONTH(U16),2) -> 201903 | Y16: =YEAR(U16)-1&RIGHT("0"&MONTH(U16),2) -> 201803 | Z16: =OFFSET(U15,AA16,0,1,1) -> 2018-03-16 | AA16: =MATCH(Y16,OFFSET($X$15,A16,0,$V$14+1-A16,1),-1) -> 5 | AB16: =IF(OR(AND(YEAR(U16)=YEAR(Z16),MONTH(U16)=MONTH(Z16)),MONTH(U16)=MONTH(Z16)),1,0) -> 1 | AC16: =(V16+IF(AA16-AB16=0,0,IFERROR(SUM(OFFSET(V16,1,0,AA16-AB16-1,1)),0))) -> 5.237 | AD16: =AC16/(INDEX(OFFSET($F$15,1,0,$B$10,1),MATCH(U16,OFFSET($B$15,1,0,$B$10,1),-1))) -> 0.01861647306
A17: 2 | B17: 2019-04-09 | C17: 287.720001 | D17: 288.079987 | E17: 286.700012 | F17: 287.309998 | G17: 66142300 | H17: 287.309998 | I17: =IF(F17=0,1,H17/F17) -> 1 | J17: =INDEX(OFFSET($T$15,0,0,$S$13+1,1),MATCH(B17,OFFSET($Q$15,0,0,$S$13+1,1),-1)) -> 1 | K17: =ROUND($I17*C17,2) -> 287.72 | L17: =ROUND($I17*D17,2) -> 288.08 | M17: =ROUND($I17*E17,2) -> 286.7 | N17: =ROUND($I17*F17,2) -> 287.31 | O17: =G17*J17 -> 66142300 | U17: 2018-12-21 | V17: 1.435 | W17: =(INDEX(OFFSET($F$15,1,0,$B$10,1),MATCH(U17,OFFSET($B$15,1,0,$B$10,1),-1))) -> 240.699997 | X17: =YEAR(U17)&RIGHT("0"&MONTH(U17),2) -> 201812 | Y17: =YEAR(U17)-1&RIGHT("0"&MONTH(U17),2) -> 201712 | Z17: =OFFSET(U16,AA17,0,1,1) -> 2017-12-15 | AA17: =MATCH(Y17,OFFSET($X$15,A17,0,$V$14+1-A17,1),-1) -> 5 | AB17: =IF(OR(AND(YEAR(U17)=YEAR(Z17),MONTH(U17)=MONTH(Z17)),MONTH(U17)=MONTH(Z17)),1,0) -> 1 | AC17: =(V17+IF(AA17-AB17=0,0,IFERROR(SUM(OFFSET(V17,1,0,AA17-AB17-1,1)),0))) -> 5.101 | AD17: =AC17/(INDEX(OFFSET($F$15,1,0,$B$10,1),MATCH(U17,OFFSET($B$15,1,0,$B$10,1),-1))) -> 0.02119235589
A18: 3 | B18: 2019-04-08 | C18: 288.100006 | D18: 288.910004 | E18: 287.369995 | F18: 288.790009 | G18: 53566300 | H18: 288.790009 | I18: 1 | J18: 1 | K18: 288.1 | L18: 288.91 | M18: 287.37 | N18: 288.79 | O18: 53566300 | U18: 2018-09-21 | V18: 1.323 | W18: 291.98999 | X18: 201809 | Y18: 201709 | Z18: 2017-09-15 | AA18: 5 | AB18: 1 | AC18: 5.017 | AD18: 0.01718209587
A19: 4 | B19: 2019-04-05 | C19: 287.920013 | D19: 288.630005 | E19: 287.600006 | F19: 288.570007 | G19: 58621700 | H19: 288.570007 | I19: 1 | J19: 1 | K19: 287.92 | L19: 288.63 | M19: 287.6 | N19: 288.57 | O19: 58621700 | U19: 2018-06-15 | V19: 1.246 | W19: 277.130005 | X19: 201806 | Y19: 201706 | Z19: 2017-06-16 | AA19: 5 | AB19: 1 | AC19: 4.929 | AD19: 0.01778587634
A20: 5 | B20: 2019-04-04 | C20: 286.779999 | D20: 287.459991 | E20: 286.01001 | F20: 287.179993 | G20: 48997500 | H20: 287.179993 | I20: 1 | J20: 1 | K20: 286.78 | L20: 287.46 | M20: 286.01 | N20: 287.18 | O20: 48997500 | U20: 2018-03-16 | V20: 1.097 | W20: 274.200012 | X20: 201803 | Y20: 201703 | Z20: 2017-03-17 | AA20: 5 | AB20: 1 | AC20: 4.866 | AD20: 0.0177461699
A21: 6 | B21: 2019-04-03 | C21: 287.320007 | D21: 287.76001 | E21: 285.75 | F21: 286.420013 | G21: 68243200 | H21: 286.420013 | I21: 1 | J21: 1 | K21: 287.32 | L21: 287.76 | M21: 285.75 | N21: 286.42 | O21: 68243200 | U21: 2017-12-15 | V21: 1.351 | W21: 266.51001 | X21: 201712 | Y21: 201612 | Z21: 2016-12-16 | AA21: 5 | AB21: 1 | AC21: 4.802 | AD21: 0.01801808495
A22: 7 | B22: 2019-04-02 | C22: 286.040009 | D22: 286.230011 | E22: 285.089996 | F22: 285.970001 | G22: 40070400 | H22: 285.970001 | I22: 1 | J22: 1 | K22: 286.04 | L22: 286.23 | M22: 285.09 | N22: 285.97 | O22: 40070400 | U22: 2017-09-15 | V22: 1.235 | W22: 249.190002 | X22: 201709 | Y22: 201609 | Z22: 2016-09-16 | AA22: 5 | AB22: 1 | AC22: 4.77993 | AD22: 0.0191818691
A23: 8 | B23: 2019-04-01 | C23: 284.700012 | D23: 286.160004 | E23: 284.399994 | F23: 285.829987 | G23: 77617900 | H23: 285.829987 | I23: 1 | J23: 1 | K23: 284.7 | L23: 286.16 | M23: 284.4 | N23: 285.83 | O23: 77617900 | U23: 2017-06-16 | V23: 1.183 | W23: 242.639999 | X23: 201706 | Y23: 201606 | Z23: 2016-06-17 | AA23: 5 | AB23: 1 | AC23: 4.627 | AD23: 0.01906940331
A24: 9 | B24: 2019-03-29 | C24: 282.390015 | D24: 282.839996 | E24: 281.140015 | F24: 282.480011 | G24: 82186800 | H24: 282.480011 | I24: 1 | J24: 1 | K24: 282.39 | L24: 282.84 | M24: 281.14 | N24: 282.48 | O24: 82186800 | U24: 2017-03-17 | V24: 1.033 | W24: 237.029999 | X24: 201703 | Y24: 201603 | Z24: 2016-03-18 | AA24: 5 | AB24: 1 | AC24: 4.52244 | AD24: 0.01907961026
A25: 10 | B25: 2019-03-28 | C25: 280.350006 | D25: 281.209991 | E25: 279.070007 | F25: 280.709991 | G25: 56238500 | H25: 280.709991 | I25: 1 | J25: 1 | K25: 280.35 | L25: 281.21 | M25: 279.07 | N25: 280.71 | O25: 56238500 | U25: 2016-12-16 | V25: 1.32893 | W25: 225.039993 | X25: 201612 | Y25: 201512 | Z25: 2015-12-18 | AA25: 5 | AB25: 1 | AC25: 4.53904 | AD25: 0.02016992597
A26: 11 | B26: 2019-03-27 | C26: 281.109985 | D26: 281.76001 | E26: 277.929993 | F26: 279.649994 | G26: 72224700 | H26: 279.649994 | I26: 1 | J26: 1 | K26: 281.11 | L26: 281.76 | M26: 277.93 | N26: 279.65 | O26: 72224700 | U26: 2016-09-16 | V26: 1.08207 | W26: 213.369995 | X26: 201609 | Y26: 201509 | Z26: 2015-09-18 | AA26: 5 | AB26: 1 | AC26: 4.42166 | AD26: 0.02072296998
A27: 12 | B27: 2019-03-26 | C27: 280.98999 | D27: 282.179993 | E27: 279.559998 | F27: 281.119995 | G27: 68125900 | H27: 281.119995 | I27: 1 | J27: 1 | K27: 280.99 | L27: 282.18 | M27: 279.56 | N27: 281.12 | O27: 68125900 | U27: 2016-06-17 | V27: 1.07844 | W27: 206.520004 | X27: 201606 | Y27: 201506 | Z27: 2015-06-19 | AA27: 5 | AB27: 1 | AC27: 4.37302 | AD27: 0.02117480106
A28: 13 | B28: 2019-03-25 | C28: 278.869995 | D28: 280.190002 | E28: 277.640015 | F28: 279.040009 | G28: 85575200 | H28: 279.040009 | I28: 1 | J28: 1 | K28: 278.87 | L28: 280.19 | M28: 277.64 | N28: 279.04 | O28: 85575200 | U28: 2016-03-18 | V28: 1.0496 | W28: 204.380005 | X28: 201603 | Y28: 201503 | Z28: 2015-03-20 | AA28: 5 | AB28: 1 | AC28: 4.32465 | AD28: 0.02115984878
A29: 14 | B29: 2019-03-22 | C29: 283.220001 | D29: 283.799988 | E29: 279.179993 | F29: 279.25 | G29: 122659300 | H29: 279.25 | I29: 1 | J29: 1 | K29: 283.22 | L29: 283.8 | M29: 279.18 | N29: 279.25 | O29: 122659300 | U29: 2015-12-18 | V29: 1.21155 | W29: 200.020004 | X29: 201512 | Y29: 201412 | Z29: 2014-12-19 | AA29: 5 | AB29: 1 | AC29: 4.20586 | AD29: 0.02102719686
A30: 15 | B30: 2019-03-21 | C30: 280.640015 | D30: 285.179993 | E30: 280.589996 | F30: 284.730011 | G30: 79550400 | H30: 284.730011 | I30: 1 | J30: 1 | K30: 280.64 | L30: 285.18 | M30: 280.59 | N30: 284.73 | O30: 79550400 | U30: 2015-09-18 | V30: 1.03343 | W30: 195.360001 | X30: 201509 | Y30: 201409 | Z30: 2014-09-19 | AA30: 5 | AB30: 1 | AC30: 4.12923 | AD30: 0.02113651709
A31: 16 | B31: 2019-03-20 | C31: 282.160004 | D31: 283.5 | E31: 280.320007 | F31: 281.549988 | G31: 84609200 | H31: 281.549988 | I31: 1 | J31: 1 | K31: 282.16 | L31: 283.5 | M31: 280.32 | N31: 281.55 | O31: 84609200 | U31: 2015-06-19 | V31: 1.03007 | W31: 210.809998 | X31: 201506 | Y31: 201406 | Z31: 2014-06-20 | AA31: 5 | AB31: 1 | AC31: 4.03499 | AD31: 0.01914041098
A32: 17 | B32: 2019-03-19 | C32: 283.51001 | D32: 284.359985 | E32: 281.410004 | F32: 282.399994 | G32: 90268100 | H32: 282.399994 | I32: 1 | J32: 1 | K32: 283.51 | L32: 284.36 | M32: 281.41 | N32: 282.4 | O32: 90268100 | U32: 2015-03-20 | V32: 0.93081 | W32: 210.410004 | X32: 201503 | Y32: 201403 | Z32: 2014-03-21 | AA32: 5 | AB32: 1 | AC32: 3.94161 | AD32: 0.01873299712
A33: 18 | B33: 2019-03-18 | C33: 281.549988 | D33: 282.660004 | E33: 281.299988 | F33: 282.329987 | G33: 62199800 | H33: 282.329987 | I33: 1 | J33: 1 | K33: 281.55 | L33: 282.66 | M33: 281.3 | N33: 282.33 | O33: 62199800 | U33: 2014-12-19 | V33: 1.13492 | W33: 206.520004 | X33: 201412 | Y33: 201312 | Z33: 2013-12-20 | AA33: 5 | AB33: 1 | AC33: 3.83541 | AD33: 0.01857161498
A34: 19 | B34: 2019-03-15 | C34: 280.540009 | D34: 282.209991 | E34: 280.329987 | F34: 281.309998 | G34: 81309000 | H34: 281.309998 | I34: 1 | J34: 1 | K34: 280.54 | L34: 282.21 | M34: 280.33 | N34: 281.31 | O34: 81309000 | U34: 2014-09-19 | V34: 0.93919 | W34: 200.699997 | X34: 201409 | Y34: 201309 | Z34: 2013-09-20 | AA34: 5 | AB34: 1 | AC34: 3.68074 | AD34: 0.01833951198
A35: 20 | B35: 2019-03-14 | C35: 281.369995 | D35: 281.839996 | E35: 280.670013 | F35: 281.160004 | G35: 67518400 | H35: 279.927002 | I35: 0.9956145896 | J35: 1 | K35: 280.14 | L35: 280.6 | M35: 279.44 | N35: 279.93 | O35: 67518400 | U35: 2014-06-20 | V35: 0.93669 | W35: 195.940002 | X35: 201406 | Y35: 201306 | Z35: 2013-06-21 | AA35: 5 | AB35: 1 | AC35: 3.5795 | AD35: 0.01826834727
A36: 21 | B36: 2019-03-13 | C36: 280.480011 | D36: 282.380005 | E36: 280.299988 | F36: 281.339996 | G36: 80639200 | H36: 280.106201 | I36: 0.9956145766 | J36: 1 | K36: 279.25 | L36: 281.14 | M36: 279.07 | N36: 280.11 | O36: 80639200 | U36: 2014-03-21 | V36: 0.82461 | W36: 186.199997 | X36: 201403 | Y36: 201303 | Z36: 2013-03-15 | AA36: 5 | AB36: 1 | AC36: 3.48181 | AD36: 0.01869930213
A37: 22 | B37: 2019-03-12 | C37: 279.059998 | D37: 280.070007 | E37: 278.850006 | F37: 279.48999 | G37: 79667500 | H37: 278.264313 | I37: 0.9956145943 | J37: 1 | K37: 277.84 | L37: 278.84 | M37: 277.63 | N37: 278.26 | O37: 79667500 | U37: 2013-12-20 | V37: 0.98025 | W37: 181.559998 | X37: 201312 | Y37: 201212 | Z37: 2012-12-21 | AA37: 5 | AB37: 1 | AC37: 3.3512 | AD37: 0.01845781029
A38: 23 | B38: 2019-03-11 | C38: 275.26001 | D38: 278.619995 | E38: 275.230011 | F38: 278.440002 | G38: 65098900 | H38: 277.218933 | I38: 0.9956146064 | J38: 1 | K38: 274.05 | L38: 277.4 | M38: 274.02 | N38: 277.22 | O38: 65098900 | U38: 2013-09-20 | V38: 0.83795 | W38: 170.720001 | X38: 201309 | Y38: 201209 | Z38: 2012-09-21 | AA38: 5 | AB38: 1 | AC38: 3.39295 | AD38: 0.01987435555
A39: 24 | B39: 2019-03-08 | C39: 272.940002 | D39: 274.649994 | E39: 272.420013 | F39: 274.459991 | G39: 85795800 | H39: 273.256378 | I39: 0.995614614 | J39: 1 | K39: 271.74 | L39: 273.45 | M39: 271.23 | N39: 273.26 | O39: 85795800 | U39: 2013-06-21 | V39: 0.839 | W39: 159.070007 | X39: 201306 | Y39: 201206 | Z39: 2012-06-15 | AA39: 5 | AB39: 1 | AC39: 3.334 | AD39: 0.02095932516
A40: 25 | B40: 2019-03-07 | C40: 276.829987 | D40: 276.98999 | E40: 274.070007 | F40: 275.01001 | G40: 94710600 | H40: 273.803986 | I40: 0.9956146178 | J40: 1 | K40: 275.62 | L40: 275.78 | M40: 272.87 | N40: 273.8 | O40: 94710600 | U40: 2013-03-15 | V40: 0.694 | W40: 155.830002 | X40: 201303 | Y40: 201203 | Z40: 2012-03-16 | AA40: 5 | AB40: 1 | AC40: 3.183 | AD40: 0.02042610511
A41: 26 | B41: 2019-03-06 | C41: 279.149994 | D41: 279.160004 | E41: 276.970001 | F41: 277.329987 | G41: 75039800 | H41: 276.11377 | I41: 0.9956145492 | J41: 1 | K41: 277.93 | L41: 277.94 | M41: 275.76 | N41: 276.11 | O41: 75039800 | U41: 2012-12-21 | V41: 1.022 | W41: 142.789993 | X41: 201212 | Y41: 201112 | Z41: 2011-12-16 | AA41: 5 | AB41: 1 | AC41: 3.103 | AD41: 0.02173121474
A42: 27 | B42: 2019-03-05 | C42: 279.540009 | D42: 279.76001 | E42: 278.410004 | F42: 279.019989 | G42: 59114600 | H42: 277.796387 | I42: 0.9956146439 | J42: 1 | K42: 278.31 | L42: 278.53 | M42: 277.19 | N42: 277.8 | O42: 59114600 | U42: 2012-09-21 | V42: 0.779 | W42: 145.869995 | X42: 201209 | Y42: 201109 | Z42: 2011-09-16 | AA42: 5 | AB42: 1 | AC42: 2.851 | AD42: 0.01954480083
A43: 28 | B43: 2019-03-04 | C43: 281.600006 | D43: 281.869995 | E43: 276.839996 | F43: 279.399994 | G43: 106494600 | H43: 278.174713 | I43: 0.995614599 | J43: 1 | K43: 280.37 | L43: 280.63 | M43: 275.63 | N43: 278.17 | O43: 106494600 | U43: 2012-06-15 | V43: 0.688 | W43: 134.139999 | X43: 201206 | Y43: 201106 | Z43: 2011-06-17 | AA43: 5 | AB43: 1 | AC43: 2.697 | AD43: 0.0201058597
A44: 29 | B44: 2019-03-01 | C44: 280.440002 | D44: 280.880005 | E44: 278.820007 | F44: 280.420013 | G44: 78880500 | H44: 279.190247 | I44: 0.9956145569 | J44: 1 | K44: 279.21 | L44: 279.65 | M44: 277.6 | N44: 279.19 | O44: 78880500 | U44: 2012-03-16 | V44: 0.614 | W44: 140.300003 | X44: 201203 | Y44: 201103 | Z44: 2011-03-18 | AA44: 5 | AB44: 1 | AC44: 2.637 | AD44: 0.01879543794
A45: 30 | B45: 2019-02-28 | C45: 278.959991 | D45: 279.450012 | E45: 278.320007 | F45: 278.679993 | G45: 69268300 | H45: 277.457855 | I45: 0.995614547 | J45: 1 | K45: 277.74 | L45: 278.22 | M45: 277.1 | N45: 277.46 | O45: 69268300 | U45: 2011-12-16 | V45: 0.77 | W45: 121.589996 | X45: 201112 | Y45: 201012 | Z45: 2010-12-17 | AA45: 5 | AB45: 1 | AC45: 2.576 | AD45: 0.02118595349
A46: 31 | B46: 2019-02-27 | C46: 278.519989 | D46: 279.589996 | E46: 277.480011 | F46: 279.200012 | G46: 56921600 | H46: 277.975616 | I46: 0.9956146277 | J46: 1 | K46: 277.3 | L46: 278.36 | M46: 276.26 | N46: 277.98 | O46: 56921600 | U46: 2011-09-16 | V46: 0.625 | W46: 121.519997 | X46: 201109 | Y46: 201009 | Z46: 2010-09-17 | AA46: 5 | AB46: 1 | AC46: 2.459 | AD46: 0.0202353527
A47: 32 | B47: 2019-02-26 | C47: 279.130005 | D47: 280.299988 | E47: 278.899994 | F47: 279.320007 | G47: 56844100 | H47: 278.095062 | I47: 0.9956145462 | J47: 1 | K47: 277.91 | L47: 279.07 | M47: 277.68 | N47: 278.1 | O47: 56844100 | U47: 2011-06-17 | V47: 0.628 | W47: 127.050003 | X47: 201106 | Y47: 201006 | Z47: 2010-06-18 | AA47: 5 | AB47: 1 | AC47: 2.436 | AD47: 0.01917355327
A48: 33 | B48: 2019-02-25 | C48: 280.730011 | D48: 281.309998 | E48: 279.429993 | F48: 279.519989 | G48: 69030700 | H48: 278.294189 | I48: 0.9956146249 | J48: 1 | K48: 279.5 | L48: 280.08 | M48: 278.2 | N48: 278.29 | O48: 69030700 | U48: 2011-03-18 | V48: 0.553 | W48: 127.760002 | X48: 201103 | Y48: 201003 | Z48: 2010-03-19 | AA48: 5 | AB48: 1 | AC48: 2.339 | AD48: 0.01830776427
A49: 34 | B49: 2019-02-22 | C49: 278.109985 | D49: 279.359985 | E49: 277.399994 | F49: 279.140015 | G49: 78114600 | H49: 277.915863 | I49: 0.9956145592 | J49: 1 | K49: 276.89 | L49: 278.13 | M49: 276.18 | N49: 277.92 | O49: 78114600 | U49: 2010-12-17 | V49: 0.653 | W49: 124.300003 | X49: 201012 | Y49: 200912 | Z49: 2009-12-18 | AA49: 5 | AB49: 1 | AC49: 2.266 | AD49: 0.01823008806
A50: 35 | B50: 2019-02-21 | C50: 277.700012 | D50: 278.100006 | E50: 276.350006 | F50: 277.420013 | G50: 64214700 | H50: 276.2034 | I50: 0.9956145449 | J50: 1 | K50: 276.48 | L50: 276.88 | M50: 275.14 | N50: 276.2 | O50: 64214700 | U50: 2010-09-17 | V50: 0.602 | W50: 112.489998 | X50: 201009 | Y50: 200909 | Z50: 2009-09-18 | AA50: 5 | AB50: 1 | AC50: 2.203 | AD50: 0.01958396337
A51: 36 | B51: 2019-02-20 | C51: 277.809998 | D51: 278.920013 | E51: 277.25 | F51: 278.410004 | G51: 76610800 | H51: 277.189056 | I51: 0.9956145685 | J51: 1 | K51: 276.59 | L51: 277.7 | M51: 276.03 | N51: 277.19 | O51: 76610800 | U51: 2010-06-18 | V51: 0.531 | W51: 111.730003 | X51: 201006 | Y51: 200906 | Z51: 2009-06-19 | AA51: 5 | AB51: 1 | AC51: 2.109 | AD51: 0.01887586094
A52: 37 | B52: 2019-02-19 | C52: 276.480011 | D52: 278.579987 | E52: 276.470001 | F52: 277.850006 | G52: 59120800 | H52: 276.631531 | I52: 0.9956146303 | J52: 1 | K52: 275.27 | L52: 277.36 | M52: 275.26 | N52: 276.63 | O52: 59120800 | U52: 2010-03-19 | V52: 0.48 | W52: 115.970001 | X52: 201003 | Y52: 200903 | Z52: 2009-03-20 | AA52: 5 | AB52: 1 | AC52: 2.096 | AD52: 0.01807363958
A53: 38 | B53: 2019-02-15 | C53: 276.359985 | D53: 277.410004 | E53: 276.130005 | F53: 277.369995 | G53: 97088700 | H53: 276.153625 | I53: 0.9956146302 | J53: 1 | K53: 275.15 | L53: 276.19 | M53: 274.92 | N53: 276.15 | O53: 97088700 | U53: 2009-12-18 | V53: 0.59 | W53: 110.209999 | X53: 200912 | Y53: 200812 | Z53: 2008-12-19 | AA53: 5 | AB53: 1 | AC53: 2.177 | AD53: 0.01975319862
A54: 39 | B54: 2019-02-14 | C54: 273.779999 | D54: 275.640015 | E54: 272.869995 | F54: 274.380005 | G54: 83234400 | H54: 273.176727 | I54: 0.9956145565 | J54: 1 | K54: 272.58 | L54: 274.43 | M54: 271.67 | N54: 273.18 | O54: 83234400 | U54: 2009-09-18 | V54: 0.508 | W54: 106.720001 | X54: 200909 | Y54: 200809 | Z54: 2008-09-19 | AA54: 5 | AB54: 1 | AC54: 2.306 | AD54: 0.02160794582
A55: 40 | B55: 2019-02-13 | C55: 275.029999 | D55: 275.929993 | E55: 274.559998 | F55: 274.98999 | G55: 65277200 | H55: 273.784058 | I55: 0.9956146331 | J55: 1 | K55: 273.82 | L55: 274.72 | M55: 273.36 | N55: 273.78 | O55: 65277200 | U55: 2009-06-19 | V55: 0.518 | W55: 92.040001 | X55: 200906 | Y55: 200806 | Z55: 2008-06-20 | AA55: 5 | AB55: 1 | AC55: 2.489 | AD55: 0.02704258988
A56: 41 | B56: 2019-02-12 | C56: 272.420013 | D56: 274.519989 | E56: 272.339996 | F56: 274.100006 | G56: 72270200 | H56: 272.89798 | I56: 0.9956146444 | J56: 1 | K56: 271.23 | L56: 273.32 | M56: 271.15 | N56: 272.9 | O56: 72270200 | U56: 2009-03-20 | V56: 0.561 | W56: 76.709999 | X56: 200903 | Y56: 200803 | Z56: 2008-03-20 | AA56: 5 | AB56: 1 | AC56: 2.64 | AD56: 0.03441533091
A57: 42 | B57: 2019-02-11 | C57: 271.200012 | D57: 271.48999 | E57: 270.029999 | F57: 270.619995 | G57: 68021400 | H57: 269.433228 | I57: 0.9956146367 | J57: 1 | K57: 270.01 | L57: 270.3 | M57: 268.85 | N57: 269.43 | O57: 68021400 | U57: 2008-12-19 | V57: 0.719 | W57: 88.190002 | X57: 200812 | Y57: 200712 | Z57: 2007-12-21 | AA57: 5 | AB57: 1 | AC57: 2.721 | AD57: 0.0308538376
A58: 43 | B58: 2019-02-08 | C58: 268.75 | D58: 270.579987 | E58: 267.829987 | F58: 270.470001 | G58: 75788900 | H58: 269.283875 | I58: 0.9956145746 | J58: 1 | K58: 267.57 | L58: 269.39 | M58: 266.66 | N58: 269.28 | O58: 75788900 | U58: 2008-09-19 | V58: 0.691 | W58: 124.120003 | X58: 200809 | Y58: 200709 | Z58: 2007-09-21 | AA58: 5 | AB58: 1 | AC58: 2.777 | AD58: 0.02237350897
A59: 44 | B59: 2019-02-07 | C59: 270.940002 | D59: 271.549988 | E59: 268.290009 | F59: 270.140015 | G59: 95482000 | H59: 268.955353 | I59: 0.9956146371 | J59: 1 | K59: 269.75 | L59: 270.36 | M59: 267.11 | N59: 268.96 | O59: 95482000 | U59: 2008-06-20 | V59: 0.669 | W59: 131.580002 | X59: 200806 | Y59: 200706 | Z59: 2007-06-15 | AA59: 5 | AB59: 1 | AC59: 2.805 | AD59: 0.02131782913
A60: 45 | B60: 2019-02-06 | C60: 272.790009 | D60: 273.339996 | E60: 271.920013 | F60: 272.73999 | G60: 58347800 | H60: 271.543915 | I60: 0.9956145962 | J60: 1 | K60: 271.59 | L60: 272.14 | M60: 270.73 | N60: 271.54 | O60: 58347800 | U60: 2008-03-20 | V60: 0.642 | W60: 132.080002 | X60: 200803 | Y60: 200703 | Z60: 2007-03-16 | AA60: 5 | AB60: 1 | AC60: 2.792 | AD60: 0.0211387035
A61: 46 | B61: 2019-02-05 | C61: 272.440002 | D61: 273.440002 | E61: 271.880005 | F61: 273.100006 | G61: 79552800 | H61: 271.902344 | I61: 0.9956145662 | J61: 1 | K61: 271.25 | L61: 272.24 | M61: 270.69 | N61: 271.9 | O61: 79552800 | U61: 2007-12-21 | V61: 0.775 | W61: 148.130005 | X61: 200712 | Y61: 200612 | Z61: 2006-12-15 | AA61: 5 | AB61: 1 | AC61: 2.701 | AD61: 0.01823398305
A62: 47 | B62: 2019-02-04 | C62: 270.109985 | D62: 272.029999 | E62: 269.359985 | F62: 271.959991 | G62: 60744800 | H62: 270.767334 | I62: 0.9956145866 | J62: 1 | K62: 268.93 | L62: 270.84 | M62: 268.18 | N62: 270.77 | O62: 60744800 | U62: 2007-09-21 | V62: 0.719 | W62: 151.970001 | X62: 200709 | Y62: 200609 | Z62: 2006-09-15 | AA62: 5 | AB62: 1 | AC62: 2.719 | AD62: 0.01789168903
A63: 48 | B63: 2019-02-01 | C63: 270.149994 | D63: 271.200012 | E63: 269.179993 | F63: 270.059998 | G63: 85782500 | H63: 268.875671 | I63: 0.9956145782 | J63: 1 | K63: 268.97 | L63: 270.01 | M63: 268 | N63: 268.88 | O63: 85782500 | U63: 2007-06-15 | V63: 0.656 | W63: 153.070007 | X63: 200706 | Y63: 200606 | Z63: 2006-06-16 | AA63: 5 | AB63: 1 | AC63: 2.579 | AD63: 0.01684849992
A64: 49 | B64: 2019-01-31 | C64: 267.51001 | D64: 270.470001 | E64: 267.269989 | F64: 269.929993 | G64: 104012100 | H64: 268.746246 | I64: 0.9956146148 | J64: 1 | K64: 266.34 | L64: 269.28 | M64: 266.1 | N64: 268.75 | O64: 104012100 | U64: 2007-03-16 | V64: 0.551 | W64: 138.529999 | X64: 200703 | Y64: 200603 | Z64: 2006-03-17 | AA64: 5 | AB64: 1 | AC64: 2.478 | AD64: 0.01788782226
A65: 50 | B65: 2019-01-30 | C65: 265.100006 | D65: 268.519989 | E65: 264.25 | F65: 267.579987 | G65: 92473700 | H65: 266.406525 | I65: 0.9956145375 | J65: 1 | K65: 263.94 | L65: 267.34 | M65: 263.09 | N65: 266.41 | O65: 92473700 | U65: 2006-12-15 | V65: 0.793 | W65: 142.339996 | X65: 200612 | Y65: 200512 | Z65: 2005-12-16 | AA65: 5 | AB65: 1 | AC65: 2.446 | AD65: 0.01718420731
A66: 51 | B66: 2019-01-29 | C66: 263.920013 | D66: 264.549988 | E66: 262.480011 | F66: 263.410004 | G66: 66136300 | H66: 262.254852 | I66: 0.9956146237 | J66: 1 | K66: 262.76 | L66: 263.39 | M66: 261.33 | N66: 262.25 | O66: 66136300 | U66: 2006-09-15 | V66: 0.579 | W66: 131.960007 | X66: 200609 | Y66: 200509 | Z66: 2005-09-16 | AA66: 5 | AB66: 1 | AC66: 2.325 | AD66: 0.01761897451
A67: 52 | B67: 2019-01-28 | C67: 263.390015 | D67: 263.829987 | E67: 261.790009 | F67: 263.76001 | G67: 85613700 | H67: 262.603302 | I67: 0.9956145437 | J67: 1 | K67: 262.23 | L67: 262.67 | M67: 260.64 | N67: 262.6 | O67: 85613700 | U67: 2006-06-16 | V67: 0.555 | W67: 124.650002 | X67: 200606 | Y67: 200506 | Z67: 2005-06-17 | AA67: 5 | AB67: 1 | AC67: 2.268 | AD67: 0.01819494556
A68: 53 | B68: 2019-01-25 | C68: 265.609985 | D68: 266.700012 | E68: 263.660004 | F68: 265.779999 | G68: 96883400 | H68: 264.614441 | I68: 0.9956145759 | J68: 1 | K68: 264.45 | L68: 265.53 | M68: 262.5 | N68: 264.61 | O68: 96883400 | U68: 2006-03-17 | V68: 0.519 | W68: 130.619995 | X68: 200603 | Y68: 200503 | Z68: 2005-03-18 | AA68: 5 | AB68: 1 | AC68: 2.201 | AD68: 0.0168504064
A69: 54 | B69: 2019-01-24 | C69: 263.209991 | D69: 264.200012 | E69: 262.079987 | F69: 263.549988 | G69: 59204100 | H69: 262.394226 | I69: 0.9956146384 | J69: 1 | K69: 262.06 | L69: 263.04 | M69: 260.93 | N69: 262.39 | O69: 59204100 | U69: 2005-12-16 | V69: 0.672 | W69: 126.360001 | X69: 200512 | Y69: 200412 | Z69: 2004-12-17 | AA69: 5 | AB69: 1 | AC69: 2.149 | AD69: 0.01700696409
A70: 55 | B70: 2019-01-23 | C70: 264.01001 | D70: 264.790009 | E70: 260.660004 | F70: 263.410004 | G70: 86030300 | H70: 262.254852 | I70: 0.9956146237 | J70: 1 | K70: 262.85 | L70: 263.63 | M70: 259.52 | N70: 262.25 | O70: 86030300 | U70: 2005-09-16 | V70: 0.522 | W70: 123.5 | X70: 200509 | Y70: 200409 | Z70: 2004-09-17 | AA70: 6 | AB70: 1 | AC70: 2.396 | AD70: 0.01940080972
A71: 56 | B71: 2019-01-22 | C71: 264.820007 | D71: 265.059998 | E71: 261.059998 | F71: 262.859985 | G71: 115531200 | H71: 261.707245 | I71: 0.9956146235 | J71: 1 | K71: 263.66 | L71: 263.9 | M71: 259.92 | N71: 261.71 | O71: 115531200 | U71: 2005-06-17 | V71: 0.488 | W71: 121.360001 | X71: 200506 | Y71: 200406 | Z71: 2004-06-18 | AA71: 6 | AB71: 1 | AC71: 2.343 | AD71: 0.01930619628
A72: 57 | B72: 2019-01-18 | C72: 264.980011 | D72: 266.980011 | E72: 263 | F72: 266.459991 | G72: 127900300 | H72: 265.291443 | I72: 0.9956145461 | J72: 1 | K72: 263.82 | L72: 265.81 | M72: 261.85 | N72: 265.29 | O72: 127900300 | U72: 2005-03-18 | V72: 0.467 | W72: 118.540001 | X72: 200503 | Y72: 200403 | Z72: 2004-03-19 | AA72: 6 | AB72: 1 | AC72: 2.269 | AD72: 0.01914121799
A73: 58 | B73: 2019-01-17 | C73: 260.01001 | D73: 263.920013 | E73: 259.959991 | F73: 262.959991 | G73: 96118400 | H73: 261.806793 | I73: 0.9956145496 | J73: 1 | K73: 258.87 | L73: 262.76 | M73: 258.82 | N73: 261.81 | O73: 96118400 | U73: 2004-12-17 | V73: 0.568 | W73: 119.440002 | X73: 200412 | Y73: 200312 | Z73: 2003-12-19 | AA73: 6 | AB73: 1 | AC73: 2.197 | AD73: 0.0183941725
A74: 59 | B74: 2019-01-16 | C74: 260.829987 | D74: 261.970001 | E74: 260.600006 | F74: 260.980011 | G74: 77636700 | H74: 259.83551 | I74: 0.9956146028 | J74: 1 | K74: 259.69 | L74: 260.82 | M74: 259.46 | N74: 259.84 | O74: 77636700 | U74: 2004-11-15 | V74: 0.351 | W74: 118.730003 | X74: 200411 | Y74: 200311 | Z74: 2003-12-19 | AA74: 5 | AB74: 0 | AC74: 2.145 | AD74: 0.01806620017
A75: 60 | B75: 2019-01-15 | C75: 257.820007 | D75: 260.700012 | E75: 257.809998 | F75: 260.350006 | G75: 85208300 | H75: 259.208252 | I75: 0.9956145421 | J75: 1 | K75: 256.69 | L75: 259.56 | M75: 256.68 | N75: 259.21 | O75: 85208300 | U75: 2004-09-17 | V75: 0.469 | W75: 113.150002 | X75: 200409 | Y75: 200309 | Z75: 2003-09-19 | AA75: 5 | AB75: 1 | AC75: 1.794 | AD75: 0.01585505938
A76: 61 | B76: 2019-01-14 | C76: 256.859985 | D76: 258.299988 | E76: 256.410004 | F76: 257.399994 | G76: 70908200 | H76: 256.271179 | I76: 0.9956145492 | J76: 1 | K76: 255.73 | L76: 257.17 | M76: 255.29 | N76: 256.27 | O76: 70908200 | U76: 2004-06-18 | V76: 0.414 | W76: 113.629997 | X76: 200406 | Y76: 200306 | Z76: 2003-06-20 | AA76: 5 | AB76: 1 | AC76: 1.725 | AD76: 0.01518085053
A77: 62 | B77: 2019-01-11 | C77: 257.679993 | D77: 259.01001 | E77: 257.029999 | F77: 258.980011 | G77: 73858100 | H77: 257.844269 | I77: 0.9956145573 | J77: 1 | K77: 256.55 | L77: 257.87 | M77: 255.9 | N77: 257.84 | O77: 73858100 | U77: 2004-03-19 | V77: 0.395 | W77: 111.059998 | X77: 200403 | Y77: 200303 | Z77: 2003-03-21 | AA77: 5 | AB77: 1 | AC77: 1.671 | AD77: 0.01504592139
A78: 63 | B78: 2019-01-10 | C78: 256.26001 | D78: 259.160004 | E78: 255.5 | F78: 258.880005 | G78: 96823900 | H78: 257.74472 | I78: 0.9956146285 | J78: 1 | K78: 255.14 | L78: 258.02 | M78: 254.38 | N78: 257.74 | O78: 96823900 | U78: 2003-12-19 | V78: 0.516 | W78: 108.900002 | X78: 200312 | Y78: 200212 | Z78: 2002-12-20 | AA78: 5 | AB78: 1 | AC78: 1.63 | AD78: 0.01496786015
A79: 64 | B79: 2019-01-09 | C79: 257.559998 | D79: 258.910004 | E79: 256.190002 | F79: 257.970001 | G79: 95006600 | H79: 256.838684 | I79: 0.9956145405 | J79: 1 | K79: 256.43 | L79: 257.77 | M79: 255.07 | N79: 256.84 | O79: 95006600 | U79: 2003-09-19 | V79: 0.4 | W79: 103.669998 | X79: 200309 | Y79: 200209 | Z79: 2002-09-20 | AA79: 5 | AB79: 1 | AC79: 1.55 | AD79: 0.01495128803
A80: 65 | B80: 2019-01-08 | C80: 256.820007 | D80: 257.309998 | E80: 254 | F80: 256.769989 | G80: 102512600 | H80: 255.643951 | I80: 0.9956146043 | J80: 1 | K80: 255.69 | L80: 256.18 | M80: 252.89 | N80: 255.64 | O80: 102512600 | U80: 2003-06-20 | V80: 0.36 | W80: 99.440002 | X80: 200306 | Y80: 200206 | Z80: 2002-06-21 | AA80: 5 | AB80: 1 | AC80: 1.528 | AD80: 0.01536604957
A81: 66 | B81: 2019-01-07 | C81: 252.690002 | D81: 255.949997 | E81: 251.690002 | F81: 254.380005 | G81: 103139100 | H81: 253.26445 | I81: =IF(F81=0,1,H81/F81) -> 0.9956146121 | J81: =INDEX(OFFSET($T$15,0,0,$S$13+1,1),MATCH(B81,OFFSET($Q$15,0,0,$S$13+1,1),-1)) -> 1 | K81: =ROUND($I81*C81,2) -> 251.58 | L81: =ROUND($I81*D81,2) -> 254.83 | M81: =ROUND($I81*E81,2) -> 250.59 | N81: =ROUND($I81*F81,2) -> 253.26 | O81: =G81*J81 -> 103139100 | U81: 2003-03-21 | V81: 0.354 | W81: =(INDEX(OFFSET($F$15,1,0,$B$10,1),MATCH(U81,OFFSET($B$15,1,0,$B$10,1),-1))) -> 89.669998 | X81: =YEAR(U81)&RIGHT("0"&MONTH(U81),2) -> 200303 | Y81: =YEAR(U81)-1&RIGHT("0"&MONTH(U81),2) -> 200203 | Z81: =OFFSET(U80,AA81,0,1,1) -> 2002-03-15 | AA81: =MATCH(Y81,OFFSET($X$15,A81,0,$V$14+1-A81,1),-1) -> 5 | AB81: =IF(OR(AND(YEAR(U81)=YEAR(Z81),MONTH(U81)=MONTH(Z81)),MONTH(U81)=MONTH(Z81)),1,0) -> 1 | AC81: =(V81+IF(AA81-AB81=0,0,IFERROR(SUM(OFFSET(V81,1,0,AA81-AB81-1,1)),0))) -> 1.521 | AD81: =AC81/(INDEX(OFFSET($F$15,1,0,$B$10,1),MATCH(U81,OFFSET($B$15,1,0,$B$10,1),-1))) -> 0.01696219509
A82: 67 | B82: 2019-01-04 | C82: 247.589996 | D82: 253.110001 | E82: 247.169998 | F82: 252.389999 | G82: 142628800 | H82: 251.283173 | I82: 0.9956146202 | J82: 1 | K82: 246.5 | L82: 252 | M82: 246.09 | N82: 251.28 | O82: 142628800 | U82: 2002-12-20 | V82: 0.436 | W82: 89.989998 | X82: 200212 | Y82: 200112 | Z82: 2001-12-21 | AA82: 5 | AB82: 1 | AC82: 1.498 | AD82: 0.0166462944
A83: 68 | B83: 2019-01-03 | C83: 248.229996 | D83: 248.570007 | E83: 243.669998 | F83: 244.210007 | G83: 143813100 | H83: 243.139038 | I83: 0.9956145573 | J83: 1 | K83: 247.14 | L83: 247.48 | M83: 242.6 | N83: 243.14 | O83: 143813100 | U83: 2002-09-20 | V83: 0.378 | W83: 84.349998 | X83: 200209 | Y83: 200109 | Z83: 2001-09-21 | AA83: 5 | AB83: 1 | AC83: 1.455 | AD83: 0.01724955583
A84: 69 | B84: 2019-01-02 | C84: 245.979996 | D84: 251.210007 | E84: 245.949997 | F84: 250.179993 | G84: 126925200 | H84: 249.082855 | I84: 0.9956146054 | J84: 1 | K84: 244.9 | L84: 250.11 | M84: 244.87 | N84: 249.08 | O84: 126925200 | U84: 2002-06-21 | V84: 0.353 | W84: 99.279999 | X84: 200206 | Y84: 200106 | Z84: 2001-06-15 | AA84: 5 | AB84: 1 | AC84: 1.446 | AD84: 0.01456486719
A85: 70 | B85: 2018-12-31 | C85: 249.559998 | D85: 250.190002 | E85: 247.470001 | F85: 249.919998 | G85: 144299400 | H85: 248.82399 | I85: 0.9956145646 | J85: 1 | K85: 248.47 | L85: 249.09 | M85: 246.38 | N85: 248.82 | O85: 144299400 | U85: 2002-03-15 | V85: 0.331 | W85: 116.650002 | X85: 200203 | Y85: 200103 | Z85: 2001-03-16 | AA85: 5 | AB85: 1 | AC85: 1.439 | AD85: 0.0123360478
A86: 71 | B86: 2018-12-28 | C86: 249.580002 | D86: 251.399994 | E86: 246.449997 | F86: 247.75 | G86: 153100200 | H86: 246.663513 | I86: 0.9956145832 | J86: 1 | K86: 248.49 | L86: 250.3 | M86: 245.37 | N86: 246.66 | O86: 153100200 | U86: 2001-12-21 | V86: 0.393 | W86: 114.949997 | X86: 200112 | Y86: 200012 | Z86: 2000-12-27 | AA86: 5 | AB86: 1 | AC86: 1.424 | AD86: 0.0123879951
A87: 72 | B87: 2018-12-27 | C87: 242.570007 | D87: 248.289993 | E87: 238.960007 | F87: 248.070007 | G87: 186267300 | H87: 246.982117 | I87: 0.9956145847 | J87: 1 | K87: 241.51 | L87: 247.2 | M87: 237.91 | N87: 246.98 | O87: 186267300 | U87: 2001-09-21 | V87: 0.369 | W87: 97.279999 | X87: 200109 | Y87: 200009 | Z87: 2000-09-15 | AA87: 6 | AB87: 1 | AC87: 1.442 | AD87: 0.01482319094
A88: 73 | B88: 2018-12-26 | C88: 235.970001 | D88: 246.179993 | E88: 233.759995 | F88: 246.179993 | G88: 218485400 | H88: 245.100388 | I88: 0.9956145705 | J88: 1 | K88: 234.94 | L88: 245.1 | M88: 232.73 | N88: 245.1 | O88: 218485400 | U88: 2001-06-15 | V88: 0.346 | W88: 121.849998 | X88: 200106 | Y88: 200006 | Z88: 2000-06-16 | AA88: 7 | AB88: 1 | AC88: 1.448 | AD88: 0.01188346347
A89: 74 | B89: 2018-12-24 | C89: 239.039993 | D89: 240.839996 | E89: 234.270004 | F89: 234.339996 | G89: 147311600 | H89: 233.312317 | I89: 0.9956145813 | J89: 1 | K89: 237.99 | L89: 239.78 | M89: 233.24 | N89: 233.31 | O89: 147311600 | U89: 2001-03-16 | V89: 0.316 | W89: 115.010002 | X89: 200103 | Y89: 200003 | Z89: 2000-03-17 | AA89: 7 | AB89: 1 | AC89: 1.45 | AD89: 0.01260759912
A90: 75 | B90: 2018-12-21 | C90: 246.740005 | D90: 249.710007 | E90: 239.979996 | F90: 240.699997 | G90: 255345600 | H90: 239.644424 | I90: 0.9956145699 | J90: 1 | K90: 245.66 | L90: 248.61 | M90: 238.93 | N90: 239.64 | O90: 255345600 | U90: 2000-12-27 | V90: 0 | W90: 133.3125 | X90: 200012 | Y90: 199912 | Z90: 1999-12-17 | AA90: 7 | AB90: 1 | AC90: 1.505 | AD90: 0.01128926395
A91: 76 | B91: 2018-12-20 | C91: 249.860001 | D91: 251.619995 | E91: 244.649994 | F91: 247.169998 | G91: 252053400 | H91: 244.657349 | I91: 0.9898343285 | J91: 1 | K91: 247.32 | L91: 249.06 | M91: 242.16 | N91: 244.66 | O91: 252053400 | U91: 2000-12-15 | V91: 0.411 | W91: 130.968704 | X91: 200012 | Y91: 199912 | Z91: 1999-12-17 | AA91: 6 | AB91: 1 | AC91: 1.505 | AD91: 0.0114912949
A92: 77 | B92: 2018-12-19 | C92: 255.169998 | D92: 259.399994 | E92: 249.350006 | F92: 251.259995 | G92: 214992800 | H92: 248.705765 | I92: 0.9898343148 | J92: 1 | K92: 252.58 | L92: 256.76 | M92: 246.82 | N92: 248.71 | O92: 214992800 | U92: 2000-09-15 | V92: 0.375 | W92: 146 | X92: 200009 | Y92: 199909 | Z92: 1999-09-17 | AA92: 6 | AB92: 1 | AC92: 1.442 | AD92: 0.009876712329
A93: 78 | B93: 2018-12-18 | C93: 257.200012 | D93: 257.950012 | E93: 253.279999 | F93: 255.080002 | G93: 134515100 | H93: 252.486938 | I93: 0.9898343109 | J93: 1 | K93: 254.59 | L93: 255.33 | M93: 250.71 | N93: 252.49 | O93: 134515100 | U93: 2000-09-14 | V93: 0 | W93: 149.640594 | X93: 200009 | Y93: 199909 | Z93: 1999-09-17 | AA93: 5 | AB93: 1 | AC93: 1.067 | AD93: 0.0071304181
A94: 79 | B94: 2018-12-17 | C94: 259.399994 | D94: 260.649994 | E94: 253.529999 | F94: 255.360001 | G94: 165492300 | H94: 252.764099 | I94: 0.9898343437 | J94: 1 | K94: 256.76 | L94: 258 | M94: 250.95 | N94: 252.76 | O94: 165492300 | U94: 2000-06-16 | V94: 0.348 | W94: 146.593704 | X94: 200006 | Y94: 199906 | Z94: 1999-06-18 | AA94: 5 | AB94: 1 | AC94: 1.439 | AD94: 0.009816246952
A95: 80 | B95: 2018-12-14 | C95: 262.959991 | D95: 264.029999 | E95: 259.850006 | F95: 260.470001 | G95: 116961100 | H95: 257.822144 | I95: 0.9898343111 | J95: 1 | K95: 260.29 | L95: 261.35 | M95: 257.21 | N95: 257.82 | O95: 116961100 | U95: 2000-03-17 | V95: 0.371 | W95: 146.9375 | X95: 200003 | Y95: 199903 | Z95: 1999-03-19 | AA95: 5 | AB95: 1 | AC95: 1.496 | AD95: 0.01018119949
A96: 81 | B96: 2018-12-13 | C96: 266.519989 | D96: 267.48999 | E96: 264.119995 | F96: 265.369995 | G96: 96662700 | H96: 262.672302 | I96: 0.98983422 | J96: 1 | K96: 263.81 | L96: 264.77 | M96: 261.44 | N96: 262.67 | O96: 96662700 | U96: 1999-12-17 | V96: 0.348 | W96: 142.6875 | X96: 199912 | Y96: 199812 | Z96: 1998-12-18 | AA96: 5 | AB96: 1 | AC96: 1.445 | AD96: 0.01012702584
A97: 82 | B97: 2018-12-12 | C97: 267.470001 | D97: 269 | E97: 265.369995 | F97: 265.459991 | G97: 97976700 | H97: 262.761414 | I97: 0.9898343363 | J97: 1 | K97: 264.75 | L97: 266.27 | M97: 262.67 | N97: 262.76 | O97: 97976700 | U97: 1999-09-17 | V97: 0.372 | W97: 133.75 | X97: 199909 | Y97: 199809 | Z97: 1998-09-18 | AA97: 5 | AB97: 1 | AC97: 1.489 | AD97: 0.01113271028
A98: 83 | B98: 2018-12-11 | C98: 267.660004 | D98: 267.869995 | E98: 262.480011 | F98: 264.130005 | G98: 121504400 | H98: 261.444946 | I98: 0.989834328 | J98: 1 | K98: 264.94 | L98: 265.15 | M98: 259.81 | N98: 261.44 | O98: 121504400 | U98: 1999-06-18 | V98: 0.405 | W98: 134.3125 | X98: 199906 | Y98: 199806 | Z98: 1998-06-19 | AA98: 5 | AB98: 1 | AC98: 1.476 | AD98: 0.01098929735
A99: 84 | B99: 2018-12-10 | C99: 263.369995 | D99: 265.160004 | E99: 258.619995 | F99: 264.070007 | G99: 151445900 | H99: 261.385559 | I99: 0.9898343321 | J99: 1 | K99: 260.69 | L99: 262.46 | M99: 255.99 | N99: 261.39 | O99: 151445900 | U99: 1999-03-19 | V99: 0.32 | W99: 129.6875 | X99: 199903 | Y99: 199803 | Z99: 1998-03-20 | AA99: 5 | AB99: 1 | AC99: 1.423 | AD99: 0.01097253012
A100: 85 | B100: 2018-12-07 | C100: 269.459991 | D100: 271.220001 | E100: 262.630005 | F100: 263.570007 | G100: 161018900 | H100: 260.890656 | I100: 0.9898343858 | J100: 1 | K100: 266.72 | L100: 268.46 | M100: 259.96 | N100: 260.89 | O100: 161018900 | U100: 1998-12-18 | V100: 0.392 | W100: 118.5 | X100: 199812 | Y100: 199712 | Z100: 1997-12-19 | AA100: 5 | AB100: 1 | AC100: 1.416 | AD100: 0.01194936709
A101: 86 | B101: 2018-12-06 | C101: 265.920013 | D101: 269.970001 | E101: 262.440002 | F101: 269.839996 | G101: 204185400 | H101: 267.096893 | I101: 0.989834335 | J101: 1 | K101: 263.22 | L101: 267.23 | M101: 259.77 | N101: 267.1 | O101: 204185400 | U101: 1998-09-18 | V101: 0.359 | W101: 102.093697 | X101: 199809 | Y101: 199709 | Z101: 1997-09-19 | AA101: 5 | AB101: 1 | AC101: 1.404 | AD101: 0.01375207325
A102: 87 | B102: 2018-12-04 | C102: 278.369995 | D102: 278.850006 | E102: 269.899994 | F102: 270.25 | G102: 177986000 | H102: 267.502716 | I102: 0.9898342868 | J102: 1 | K102: 275.54 | L102: 276.02 | M102: 267.16 | N102: 267.5 | O102: 177986000 | U102: 1998-06-19 | V102: 0.352 | W102: 110.0625 | X102: 199806 | Y102: 199706 | Z102: 1997-06-20 | AA102: 5 | AB102: 1 | AC102: 1.393 | AD102: 0.0126564452
A103: 88 | B103: 2018-12-03 | C103: 280.279999 | D103: 280.399994 | E103: 277.51001 | F103: 279.299988 | G103: 103176300 | H103: 276.460693 | I103: 0.9898342459 | J103: 1 | K103: 277.43 | L103: 277.55 | M103: 274.69 | N103: 276.46 | O103: 103176300 | U103: 1998-03-20 | V103: 0.313 | W103: 109.875 | X103: 199803 | Y103: 199703 | Z103: 1997-03-21 | AA103: 5 | AB103: 1 | AC103: 1.391 | AD103: 0.01265984073
A104: 89 | B104: 2018-11-30 | C104: 273.809998 | D104: 276.279999 | E104: 273.450012 | F104: 275.649994 | G104: 98204200 | H104: 272.847839 | I104: 0.9898343731 | J104: 1 | K104: 271.03 | L104: 273.47 | M104: 270.67 | N104: 272.85 | O104: 98204200 | U104: 1997-12-19 | V104: 0.38 | W104: 94.781197 | X104: 199712 | Y104: 199612 | Z104: 1996-12-20 | AA104: 5 | AB104: 1 | AC104: 1.377 | AD104: 0.01452819803
A105: 90 | B105: 2018-11-29 | C105: 273.709991 | D105: 275.549988 | E105: 272.429993 | F105: 273.980011 | G105: 82346400 | H105: 271.194794 | I105: 0.9898342328 | J105: 1 | K105: 270.93 | L105: 272.75 | M105: 269.66 | N105: 271.19 | O105: 82346400 | U105: 1997-09-19 | V105: 0.348 | W105: 95.031197 | X105: 199709 | Y105: 199609 | Z105: 1996-09-20 | AA105: 5 | AB105: 1 | AC105: 1.364 | AD105: 0.0143531813
A106: 91 | B106: 2018-11-28 | C106: 269.600006 | D106: 274.579987 | E106: 268.329987 | F106: 274.579987 | G106: 127629600 | H106: 271.788696 | I106: 0.9898343247 | J106: 1 | K106: 266.86 | L106: 271.79 | M106: 265.6 | N106: 271.79 | O106: 127629600 | U106: 1997-06-20 | V106: 0.35 | W106: 89.578102 | X106: 199706 | Y106: 199606 | Z106: 1996-06-21 | AA106: 5 | AB106: 1 | AC106: 1.368 | AD106: 0.01527158948
A107: 92 | B107: 2018-11-27 | C107: 266.339996 | D107: 268.399994 | E107: 265.660004 | F107: 268.399994 | G107: 75502400 | H107: 265.671539 | I107: 0.9898343701 | J107: 1 | K107: 263.63 | L107: 265.67 | M107: 262.96 | N107: 265.67 | O107: 75502400 | U107: 1997-03-21 | V107: 0.299 | W107: 78.4375 | X107: 199703 | Y107: 199603 | Z107: 1996-03-15 | AA107: 5 | AB107: 1 | AC107: 1.369 | AD107: 0.01745338645
A108: 93 | B108: 2018-11-26 | C108: 265.779999 | D108: 267.75 | E108: 265.339996 | F108: 267.5 | G108: 79981400 | H108: 264.78067 | I108: 0.9898342804 | J108: 1 | K108: 263.08 | L108: 265.03 | M108: 262.64 | N108: 264.78 | O108: 79981400 | U108: 1996-12-20 | V108: 0.367 | W108: 74.843697 | X108: 199612 | Y108: 199512 | Z108: 1995-12-15 | AA108: 5 | AB108: 1 | AC108: 1.355 | AD108: 0.01810439695
A109: 94 | B109: 2018-11-23 | C109: 263.179993 | D109: 264.820007 | E109: 263.070007 | F109: 263.25 | G109: 42807900 | H109: 260.573883 | I109: 0.9898343134 | J109: 1 | K109: 260.5 | L109: 262.13 | M109: 260.4 | N109: 260.57 | O109: 42807900 | U109: 1996-09-20 | V109: 0.352 | W109: 68.640602 | X109: 199609 | Y109: 199509 | Z109: 1995-09-15 | AA109: 5 | AB109: 1 | AC109: 1.37 | AD109: 0.01995903241
A110: 95 | B110: 2018-11-21 | C110: 265.859985 | D110: 267.149994 | E110: 265.01001 | F110: 265.019989 | G110: 75563700 | H110: 262.325867 | I110: 0.9898342687 | J110: 1 | K110: 263.16 | L110: 264.43 | M110: 262.32 | N110: 262.33 | O110: 75563700 | U110: 1996-06-21 | V110: 0.351 | W110: 66.8125 | X110: 199606 | Y110: 199506 | Z110: 1995-06-16 | AA110: 5 | AB110: 1 | AC110: 1.33 | AD110: 0.01990645463
A111: 96 | B111: 2018-11-20 | C111: 265.359985 | D111: 267 | E111: 263.149994 | F111: 264.119995 | G111: 136021300 | H111: 261.435028 | I111: 0.989834291 | J111: 1 | K111: 262.66 | L111: 264.29 | M111: 260.47 | N111: 261.44 | O111: 136021300 | U111: 1996-03-15 | V111: 0.285 | W111: 64.125 | X111: 199603 | Y111: 199503 | Z111: 1995-03-17 | AA111: 5 | AB111: 1 | AC111: 1.295 | AD111: 0.02019493177
A112: 97 | B112: 2018-11-19 | C112: 273.049988 | D112: 273.380005 | E112: 268.070007 | F112: 269.100006 | G112: 103061700 | H112: 266.364441 | I112: 0.9898343926 | J112: 1 | K112: 270.27 | L112: 270.6 | M112: 265.34 | N112: 266.36 | O112: 103061700 | U112: 1995-12-15 | V112: 0.382 | W112: 61.8125 | X112: 199512 | Y112: 199412 | Z112: 1994-12-16 | AA112: 5 | AB112: 1 | AC112: 1.278 | AD112: 0.02067542973
A113: 98 | B113: 2018-11-16 | C113: 271.790009 | D113: 274.75 | E113: 271.209991 | F113: 273.730011 | G113: 126668000 | H113: 270.947357 | I113: 0.9898343116 | J113: 1 | K113: 269.03 | L113: 271.96 | M113: 268.45 | N113: 270.95 | O113: 126668000 | U113: 1995-09-15 | V113: 0.312 | W113: 58.4375 | X113: 199509 | Y113: 199409 | Z113: 1994-09-19 | AA113: 5 | AB113: 1 | AC113: 1.259 | AD113: 0.02154438503
A114: 99 | B114: 2018-11-15 | C114: 268.779999 | D114: 273.540009 | E114: 267.01001 | F114: 273.019989 | G114: 135101400 | H114: 270.244537 | I114: 0.9898342535 | J114: 1 | K114: 266.05 | L114: 270.76 | M114: 264.3 | N114: 270.24 | O114: 135101400 | U114: 1995-06-16 | V114: 0.316 | W114: 53.9687 | X114: 199506 | Y114: 199406 | Z114: 1994-06-17 | AA114: 6 | AB114: 1 | AC114: 1.235 | AD114: 0.0228836344
A115: 100 | B115: 2018-11-14 | C115: 274.160004 | D115: 274.609985 | E115: 268.450012 | F115: 270.200012 | G115: 125335900 | H115: 267.453247 | I115: 0.9898343269 | J115: 1 | K115: 271.37 | L115: 271.82 | M115: 265.72 | N115: 267.45 | O115: 125335900 | U115: 1995-03-17 | V115: 0.268 | W115: 49.5625 | X115: 199503 | Y115: 199403 | Z115: 1994-03-18 | AA115: 6 | AB115: 1 | AC115: 1.224 | AD115: 0.02469609079
A116: 101 | B116: 2018-11-13 | C116: 273.089996 | D116: 275.329987 | E116: 271.25 | F116: 272.059998 | G116: 98176600 | H116: 269.294342 | I116: 0.9898343894 | J116: 1 | K116: 270.31 | L116: 272.53 | M116: 268.49 | N116: 269.29 | O116: 98176600 | U116: 1994-12-16 | V116: 0.363 | W116: 45.75 | X116: 199412 | Y116: 199312 | Z116: 1993-12-17 | AA116: 6 | AB116: 1 | AC116: 1.227 | AD116: 0.02681967213
A117: 102 | B117: 2018-11-12 | C117: 277.190002 | D117: 277.459991 | E117: 271.98999 | F117: 272.570007 | G117: 99673600 | H117: 269.799164 | I117: 0.9898343804 | J117: 1 | K117: 274.37 | L117: 274.64 | M117: 269.23 | N117: 269.8 | O117: 99673600 | U117: 1994-09-19 | V117: 0 | W117: 47.0625 | X117: 199409 | Y117: 199309 | Z117: 1993-09-17 | AA117: 6 | AB117: 1 | AC117: 1.181 | AD117: 0.02509428951
A118: 103 | B118: 2018-11-09 | C118: 279.029999 | D118: 279.23999 | E118: 276.179993 | F118: 277.76001 | G118: 98812600 | H118: 274.936371 | I118: 0.9898342494 | J118: 1 | K118: 276.19 | L118: 276.4 | M118: 273.37 | N118: 274.94 | O118: 98812600 | U118: 1994-09-16 | V118: 0.288 | W118: 47.015598 | X118: 199409 | Y118: 199309 | Z118: 1993-09-17 | AA118: 5 | AB118: 1 | AC118: 1.181 | AD118: 0.02511932317
A119: 104 | B119: 2018-11-08 | C119: 280.109985 | D119: 281.220001 | E119: 279.220001 | F119: 280.5 | G119: 65584900 | H119: 277.648529 | I119: 0.989834328 | J119: 1 | K119: 277.26 | L119: 278.36 | M119: 276.38 | N119: 277.65 | O119: 65584900 | U119: 1994-06-17 | V119: 0.305 | W119: 45.875 | X119: 199406 | Y119: 199306 | Z119: 1993-06-18 | AA119: 5 | AB119: 1 | AC119: 1.179 | AD119: 0.02570027248
A120: 105 | B120: 2018-11-07 | C120: 277.559998 | D120: 281.100006 | E120: 277.079987 | F120: 281.01001 | G120: 102752100 | H120: 278.153351 | I120: 0.9898343159 | J120: 1 | K120: 274.74 | L120: 278.24 | M120: 274.26 | N120: 278.15 | O120: 102752100 | U120: 1994-03-18 | V120: 0.271 | W120: 46.9687 | X120: 199403 | Y120: 199303 | Z120: 1993-03-19 | AA120: 5 | AB120: 1 | AC120: 1.192 | AD120: 0.0253786032
A121: 106 | B121: 2018-11-06 | C121: 273.320007 | D121: 275.299988 | E121: 273.25 | F121: 275.119995 | G121: 60085900 | H121: 272.323212 | I121: 0.9898343158 | J121: 1 | K121: 270.54 | L121: 272.5 | M121: 270.47 | N121: 272.32 | O121: 60085900 | U121: 1993-12-17 | V121: 0.317 | W121: 46.5625 | X121: 199312 | Y121: 199212 | Z121: 1993-03-19 | AA121: 4 | AB121: 0 | AC121: 1.134 | AD121: 0.02435436242
A122: 107 | B122: 2018-11-05 | C122: 272.440002 | D122: 274.01001 | E122: 271.350006 | F122: 273.390015 | G122: 65622500 | H122: 270.61084 | I122: 0.9898343946 | J122: 1 | K122: 269.67 | L122: 271.22 | M122: 268.59 | N122: 270.61 | O122: 65622500 | U122: 1993-09-17 | V122: 0.286 | W122: 45.8125 | X122: 199309 | Y122: 199209 | Z122: 1993-03-19 | AA122: 3 | AB122: 0 | AC122: 0.817 | AD122: 0.01783356071
A123: 108 | B123: 2018-11-02 | C123: 274.75 | D123: 275.230011 | E123: 269.589996 | F123: 271.890015 | G123: 122634100 | H123: 269.126068 | I123: 0.9898343196 | J123: 1 | K123: 271.96 | L123: 272.43 | M123: 266.85 | N123: 269.13 | O123: 122634100 | U123: 1993-06-18 | V123: 0.318 | W123: 44.5 | X123: 199306 | Y123: 199206 | Z123: 1993-03-19 | AA123: 2 | AB123: 0 | AC123: 0.531 | AD123: 0.01193258427
A124: 109 | B124: 2018-11-01 | C124: 271.600006 | D124: 273.730011 | E124: 270.380005 | F124: 273.51001 | G124: 99495000 | H124: 270.729584 | I124: 0.9898342807 | J124: 1 | K124: 268.84 | L124: 270.95 | M124: 267.63 | N124: 270.73 | O124: 99495000 | U124: 1993-03-19 | V124: 0.213 | W124: 45.0312 | X124: 199303 | Y124: 199203 | Z124: 1993-03-19 | AA124: 1 | AB124: 1 | AC124: 0.213 | AD124: 0.004730053829
A125: 110 | B125: 2018-10-31 | C125: 270.649994 | D125: 273.230011 | E125: 270.119995 | F125: 270.630005 | G125: 128296300 | H125: 267.878876 | I125: 0.9898343534 | J125: 1 | K125: 267.9 | L125: 270.45 | M125: 267.37 | N125: 267.88 | O125: 128296300
A126: 111 | B126: 2018-10-30 | C126: 263.670013 | D126: 268.119995 | E126: 263.119995 | F126: 267.769989 | G126: 157116000 | H126: 265.047943 | I126: 0.9898343873 | J126: 1 | K126: 260.99 | L126: 265.39 | M126: 260.45 | N126: 265.05 | O126: 157116000
A127: 112 | B127: 2018-10-29 | C127: 268.799988 | D127: 270.25 | E127: 259.850006 | F127: 263.859985 | G127: 160749100 | H127: 261.177673 | I127: 0.9898343358 | J127: 1 | K127: 266.07 | L127: 267.5 | M127: 257.21 | N127: 261.18 | O127: 160749100
A128: 113 | B128: 2018-10-26 | C128: 265.920013 | D128: 271 | E128: 262.290009 | F128: 265.329987 | G128: 201574600 | H128: 262.632721 | I128: 0.9898342964 | J128: 1 | K128: 263.22 | L128: 268.25 | M128: 259.62 | N128: 262.63 | O128: 201574600
A129: 114 | B129: 2018-10-25 | C129: 267.380005 | D129: 271.809998 | E129: 266.230011 | F129: 270.079987 | G129: 138061500 | H129: 267.334442 | I129: 0.9898343264 | J129: 1 | K129: 264.66 | L129: 269.05 | M129: 263.52 | N129: 267.33 | O129: 138061500
A130: 115 | B130: 2018-10-24 | C130: 273.329987 | D130: 273.76001 | E130: 264.700012 | F130: 265.320007 | G130: 177806700 | H130: 262.622864 | I130: 0.9898343776 | J130: 1 | K130: 270.55 | L130: 270.98 | M130: 262.01 | N130: 262.62 | O130: 177806700
A131: 116 | B131: 2018-10-23 | C131: 270.950012 | D131: 274.869995 | E131: 268.609985 | F131: 273.609985 | G131: 146352700 | H131: 270.828552 | I131: 0.9898343147 | J131: 1 | K131: 268.2 | L131: 272.08 | M131: 265.88 | N131: 270.83 | O131: 146352700
A132: 117 | B132: 2018-10-22 | C132: 277 | D132: 277.359985 | E132: 274.410004 | F132: 275.01001 | G132: 82415800 | H132: 272.214325 | I132: 0.9898342428 | J132: 1 | K132: 274.18 | L132: 274.54 | M132: 271.62 | N132: 272.21 | O132: 82415800
A133: 118 | B133: 2018-10-19 | C133: 277.130005 | D133: 279.299988 | E133: 275.470001 | F133: 276.25 | G133: 139901600 | H133: 273.441742 | I133: 0.9898343602 | J133: 1 | K133: 274.31 | L133: 276.46 | M133: 272.67 | N133: 273.44 | O133: 139901600
A134: 119 | B134: 2018-10-18 | C134: 279.399994 | D134: 280.070007 | E134: 274.970001 | F134: 276.399994 | G134: 134557500 | H134: 273.59021 | I134: 0.9898343558 | J134: 1 | K134: 276.56 | L134: 277.22 | M134: 272.17 | N134: 273.59 | O134: 134557500
A135: 120 | B135: 2018-10-17 | C135: 280.440002 | D135: 281.149994 | E135: 277.559998 | F135: 280.450012 | G135: 110626000 | H135: 277.59906 | I135: 0.9898343666 | J135: 1 | K135: 277.59 | L135: 278.29 | M135: 274.74 | N135: 277.6 | O135: 110626000
A136: 121 | B136: 2018-10-16 | C136: 276.600006 | D136: 280.820007 | E136: 276.070007 | F136: 280.399994 | G136: 118255800 | H136: 277.54953 | I136: 0.9898342936 | J136: 1 | K136: 273.79 | L136: 277.97 | M136: 273.26 | N136: 277.55 | O136: 118255800
A137: 122 | B137: 2018-10-15 | C137: 275.549988 | D137: 277.040009 | E137: 274.299988 | F137: 274.399994 | G137: 102263700 | H137: 271.610535 | I137: 0.9898343329 | J137: 1 | K137: 272.75 | L137: 274.22 | M137: 271.51 | N137: 271.61 | O137: 102263700
A138: 123 | B138: 2018-10-12 | C138: 276.769989 | D138: 277.089996 | E138: 272.369995 | F138: 275.950012 | G138: 183186500 | H138: 273.144806 | I138: 0.989834369 | J138: 1 | K138: 273.96 | L138: 274.27 | M138: 269.6 | N138: 273.14 | O138: 183186500
A139: 124 | B139: 2018-10-11 | C139: 277.079987 | D139: 278.899994 | E139: 270.359985 | F139: 272.170013 | G139: 274840500 | H139: 269.403229 | I139: 0.989834354 | J139: 1 | K139: 274.26 | L139: 276.06 | M139: 267.61 | N139: 269.4 | O139: 274840500
A140: 125 | B140: 2018-10-10 | C140: 286.829987 | D140: 286.910004 | E140: 277.880005 | F140: 278.299988 | G140: 214731000 | H140: 275.470886 | I140: 0.9898343438 | J140: 1 | K140: 283.91 | L140: 283.99 | M140: 275.06 | N140: 275.47 | O140: 214731000
A141: 126 | B141: 2018-10-09 | C141: 287.390015 | D141: 288.859985 | E141: 286.769989 | F141: 287.399994 | G141: 74339000 | H141: 284.478363 | I141: 0.9898342691 | J141: 1 | K141: 284.47 | L141: 285.92 | M141: 283.85 | N141: 284.48 | O141: 74339000
A142: 127 | B142: 2018-10-08 | C142: 287.049988 | D142: 288.220001 | E142: 285.5 | F142: 287.820007 | G142: 87742200 | H142: 284.894104 | I142: 0.9898342612 | J142: 1 | K142: 284.13 | L142: 285.29 | M142: 282.6 | N142: 284.89 | O142: 87742200
A143: 128 | B143: 2018-10-05 | C143: 289.690002 | D143: 290.269989 | E143: 286.220001 | F143: 287.820007 | G143: 105951700 | H143: 284.894104 | I143: 0.9898342612 | J143: 1 | K143: 286.75 | L143: 287.32 | M143: 283.31 | N143: 284.89 | O143: 105951700
A144: 129 | B144: 2018-10-04 | C144: 291.179993 | D144: 291.23999 | E144: 287.660004 | F144: 289.440002 | G144: 111545900 | H144: 286.49765 | I144: 0.9898343284 | J144: 1 | K144: 288.22 | L144: 288.28 | M144: 284.74 | N144: 286.5 | O144: 111545900
A145: 130 | B145: 2018-10-03 | C145: 292.73999 | D145: 293.209991 | E145: 291.320007 | F145: 291.720001 | G145: 64694600 | H145: 288.754486 | I145: =IF(F145=0,1,H145/F145) -> 0.9898343789 | J145: =INDEX(OFFSET($T$15,0,0,$S$13+1,1),MATCH(B145,OFFSET($Q$15,0,0,$S$13+1,1),-1)) -> 1 | K145: =ROUND($I145*C145,2) -> 289.76 | L145: =ROUND($I145*D145,2) -> 290.23 | M145: =ROUND($I145*E145,2) -> 288.36 | N145: =ROUND($I145*F145,2) -> 288.75 | O145: =G145*J145 -> 64694600
A146: 131 | B146: 2018-10-02 | C146: 291.559998 | D146: 292.359985 | E146: 291.140015 | F146: 291.559998 | G146: 47258200 | H146: 288.5961 | I146: 0.9898343462 | J146: 1 | K146: 288.6 | L146: 289.39 | M146: 288.18 | N146: 288.6 | O146: 47258200
A147: 132 | B147: 2018-10-01 | C147: 292.109985 | D147: 292.929993 | E147: 290.980011 | F147: 291.730011 | G147: 62078900 | H147: 288.764374 | I147: 0.9898343095 | J147: 1 | K147: 289.14 | L147: 289.95 | M147: 288.02 | N147: 288.76 | O147: 62078900
A148: 133 | B148: 2018-09-28 | C148: 289.98999 | D148: 291.279999 | E148: 289.950012 | F148: 290.720001 | G148: 70091400 | H148: 287.764648 | I148: 0.9898343664 | J148: 1 | K148: 287.04 | L148: 288.32 | M148: 287 | N148: 287.76 | O148: 70091400
A149: 134 | B149: 2018-09-27 | C149: 290.410004 | D149: 291.910004 | E149: 290.100006 | F149: 290.690002 | G149: 59249500 | H149: 287.734924 | I149: 0.9898342634 | J149: 1 | K149: 287.46 | L149: 288.94 | M149: 287.15 | N149: 287.73 | O149: 59249500
A150: 135 | B150: 2018-09-26 | C150: 290.910004 | D150: 292.23999 | E150: 289.410004 | F150: 289.880005 | G150: 79739700 | H150: 286.933197 | I150: 0.9898343868 | J150: 1 | K150: 287.95 | L150: 289.27 | M150: 286.47 | N150: 286.93 | O150: 79739700
A151: 136 | B151: 2018-09-25 | C151: 291.529999 | D151: 291.649994 | E151: 290.480011 | F151: 290.75 | G151: 44370000 | H151: 287.794312 | I151: 0.9898342631 | J151: 1 | K151: 288.57 | L151: 288.69 | M151: 287.53 | N151: 287.79 | O151: 44370000
A152: 137 | B152: 2018-09-24 | C152: 291.339996 | D152: 291.5 | E152: 290.369995 | F152: 291.019989 | G152: 53409600 | H152: 288.061584 | I152: 0.9898343581 | J152: 1 | K152: 288.38 | L152: 288.54 | M152: 287.42 | N152: 288.06 | O152: 53409600
A153: 138 | B153: 2018-09-21 | C153: 293.089996 | D153: 293.220001 | E153: 291.809998 | F153: 291.98999 | G153: 105479700 | H153: 289.021698 | I153: 0.9898342679 | J153: 1 | K153: 290.11 | L153: 290.24 | M153: 288.84 | N153: 289.02 | O153: 105479700
A154: 139 | B154: 2018-09-20 | C154: 292.640015 | D154: 293.940002 | E154: 291.23999 | F154: 293.579987 | G154: 100360600 | H154: 289.286011 | I154: 0.9853737442 | J154: 1 | K154: 288.36 | L154: 289.64 | M154: 286.98 | N154: 289.29 | O154: 100360600
A155: 140 | B155: 2018-09-19 | C155: 290.970001 | D155: 291.690002 | E155: 290.829987 | F155: 291.220001 | G155: 49080600 | H155: 286.960541 | I155: 0.9853737381 | J155: 1 | K155: 286.71 | L155: 287.42 | M155: 286.58 | N155: 286.96 | O155: 49080600
A156: 141 | B156: 2018-09-18 | C156: 289.579987 | D156: 291.579987 | E156: 289.549988 | F156: 290.910004 | G156: 61930400 | H156: 286.65509 | I156: 0.985373779 | J156: 1 | K156: 285.34 | L156: 287.32 | M156: 285.31 | N156: 286.66 | O156: 61930400
A157: 142 | B157: 2018-09-17 | C157: 290.820007 | D157: 290.859985 | E157: 289.029999 | F157: 289.339996 | G157: 68244000 | H157: 285.108002 | I157: 0.9853736294 | J157: 1 | K157: 286.57 | L157: 286.61 | M157: 284.8 | N157: 285.11 | O157: 68244000
A158: 143 | B158: 2018-09-14 | C158: 291.059998 | D158: 291.269989 | E158: 290 | F158: 290.880005 | G158: 55079900 | H158: 286.625488 | I158: 0.9853736354 | J158: 1 | K158: 286.8 | L158: 287.01 | M158: 285.76 | N158: 286.63 | O158: 55079900
A159: 144 | B159: 2018-09-13 | C159: 290.320007 | D159: 291.040009 | E159: 290 | F159: 290.829987 | G159: 51034200 | H159: 286.576233 | I159: 0.9853737435 | J159: 1 | K159: 286.07 | L159: 286.78 | M159: 285.76 | N159: 286.58 | O159: 51034200
A160: 145 | B160: 2018-09-12 | C160: 289.059998 | D160: 289.799988 | E160: 288.230011 | F160: 289.119995 | G160: 59810800 | H160: 284.891235 | I160: 0.9853736854 | J160: 1 | K160: 284.83 | L160: 285.56 | M160: 284.01 | N160: 284.89 | O160: 59810800
A161: 146 | B161: 2018-09-11 | C161: 287.369995 | D161: 289.549988 | E161: 286.980011 | F161: 289.049988 | G161: 50530500 | H161: 284.822235 | I161: 0.9853736268 | J161: 1 | K161: 283.17 | L161: 285.31 | M161: 282.78 | N161: 284.82 | O161: 50530500
A162: 147 | B162: 2018-09-10 | C162: 288.73999 | D162: 289.040009 | E162: 287.880005 | F162: 288.100006 | G162: 50210900 | H162: 283.886169 | I162: 0.9853737004 | J162: 1 | K162: 284.52 | L162: 284.81 | M162: 283.67 | N162: 283.89 | O162: 50210900
A163: 148 | B163: 2018-09-07 | C163: 286.980011 | D163: 288.700012 | E163: 286.709991 | F163: 287.600006 | G163: 73524800 | H163: 283.393494 | I163: 0.9853737416 | J163: 1 | K163: 282.78 | L163: 284.48 | M163: 282.52 | N163: 283.39 | O163: 73524800
A164: 149 | B164: 2018-09-06 | C164: 289.149994 | D164: 289.48999 | E164: 287 | F164: 288.160004 | G164: 65909900 | H164: 283.945313 | I164: 0.9853737821 | J164: 1 | K164: 284.92 | L164: 285.26 | M164: 282.8 | N164: 283.95 | O164: 65909900
A165: 150 | B165: 2018-09-05 | C165: 289.410004 | D165: 289.640015 | E165: 287.890015 | F165: 289.029999 | G165: 72452400 | H165: 284.802551 | I165: 0.9853736705 | J165: 1 | K165: 285.18 | L165: 285.4 | M165: 283.68 | N165: 284.8 | O165: 72452400
A166: 151 | B166: 2018-09-04 | C166: 289.839996 | D166: 290.209991 | E166: 288.679993 | F166: 289.809998 | G166: 57594400 | H166: 285.571136 | I166: 0.9853736516 | J166: 1 | K166: 285.6 | L166: 285.97 | M166: 284.46 | N166: 285.57 | O166: 57594400
A167: 152 | B167: 2018-08-31 | C167: 289.839996 | D167: 290.809998 | E167: 289.290009 | F167: 290.309998 | G167: 66140800 | H167: 286.063843 | I167: 0.9853737211 | J167: 1 | K167: 285.6 | L167: 286.56 | M167: 285.06 | N167: 286.06 | O167: 66140800
A168: 153 | B168: 2018-08-30 | C168: 290.940002 | D168: 291.359985 | E168: 289.630005 | F168: 290.299988 | G168: 61229500 | H168: 286.053986 | I168: 0.9853737438 | J168: 1 | K168: 286.68 | L168: 287.1 | M168: 285.39 | N168: 286.05 | O168: 61229500
A169: 154 | B169: 2018-08-29 | C169: 290.160004 | D169: 291.73999 | E169: 289.890015 | F169: 291.480011 | G169: 61485500 | H169: 287.216736 | I169: 0.9853736969 | J169: 1 | K169: 285.92 | L169: 287.47 | M169: 285.65 | N169: 287.22 | O169: 61485500
A170: 155 | B170: 2018-08-28 | C170: 290.299988 | D170: 290.420013 | E170: 289.399994 | F170: 289.920013 | G170: 46943500 | H170: 285.679565 | I170: 0.9853737313 | J170: 1 | K170: 286.05 | L170: 286.17 | M170: 285.17 | N170: 285.68 | O170: 46943500
A171: 156 | B171: 2018-08-27 | C171: 288.859985 | D171: 289.899994 | E171: 288.679993 | F171: 289.779999 | G171: 57072400 | H171: 285.541626 | I171: 0.9853738249 | J171: 1 | K171: 284.64 | L171: 285.66 | M171: 284.46 | N171: 285.54 | O171: 57072400
A172: 157 | B172: 2018-08-24 | C172: 286.440002 | D172: 287.670013 | E172: 286.380005 | F172: 287.51001 | G172: 57487400 | H172: 283.304779 | I172: 0.9853736188 | J172: 1 | K172: 282.25 | L172: 283.46 | M172: 282.19 | N172: 283.3 | O172: 57487400
A173: 158 | B173: 2018-08-23 | C173: 285.970001 | D173: 286.940002 | E173: 285.429993 | F173: 285.790009 | G173: 49204900 | H173: 281.609985 | I173: 0.9853737924 | J173: 1 | K173: 281.79 | L173: 282.74 | M173: 281.26 | N173: 281.61 | O173: 49204900
A174: 159 | B174: 2018-08-22 | C174: 285.880005 | D174: 286.76001 | E174: 285.579987 | F174: 286.170013 | G174: 44993300 | H174: 281.984406 | I174: 0.9853737051 | J174: 1 | K174: 281.7 | L174: 282.57 | M174: 281.4 | N174: 281.98 | O174: 44993300
A175: 160 | B175: 2018-08-21 | C175: 286.25 | D175: 287.309998 | E175: 285.709991 | F175: 286.339996 | G175: 67272000 | H175: 282.151917 | I175: 0.9853737548 | J175: 1 | K175: 282.06 | L175: 283.11 | M175: 281.53 | N175: 282.15 | O175: 67272000
A176: 161 | B176: 2018-08-20 | C176: 285.570007 | D176: 285.970001 | E176: 285.059998 | F176: 285.670013 | G176: 39807500 | H176: 281.49173 | I176: 0.9853737431 | J176: 1 | K176: 281.39 | L176: 281.79 | M176: 280.89 | N176: 281.49 | O176: 39807500
A177: 162 | B177: 2018-08-17 | C177: 283.829987 | D177: 285.559998 | E177: 283.369995 | F177: 285.059998 | G177: 65618500 | H177: 280.890656 | I177: 0.9853738089 | J177: 1 | K177: 279.68 | L177: 281.38 | M177: 279.23 | N177: 280.89 | O177: 65618500
A178: 163 | B178: 2018-08-16 | C178: 283.399994 | D178: 285.040009 | E178: 283.359985 | F178: 284.059998 | G178: 69967900 | H178: 279.905273 | I178: 0.9853737766 | J178: 1 | K178: 279.25 | L178: 280.87 | M178: 279.22 | N178: 279.91 | O178: 69967900
A179: 164 | B179: 2018-08-15 | C179: 282.380005 | D179: 282.540009 | E179: 280.160004 | F179: 281.779999 | G179: 102925400 | H179: 277.6586 | I179: 0.9853736993 | J179: 1 | K179: 278.25 | L179: 278.41 | M179: 276.06 | N179: 277.66 | O179: 102925400
A180: 165 | B180: 2018-08-14 | C180: 282.920013 | D180: 284.170013 | E180: 282.480011 | F180: 283.899994 | G180: 43842000 | H180: 279.747589 | I180: 0.9853737052 | J180: 1 | K180: 278.78 | L180: 280.01 | M180: 278.35 | N180: 279.75 | O180: 43842000
A181: 166 | B181: 2018-08-13 | C181: 283.470001 | D181: 284.160004 | E181: 281.769989 | F181: 282.100006 | G181: 65686900 | H181: 277.973938 | I181: 0.9853737401 | J181: 1 | K181: 279.32 | L181: 280 | M181: 277.65 | N181: 277.97 | O181: 65686900
A182: 167 | B182: 2018-08-10 | C182: 283.450012 | D182: 284.059998 | E182: 282.359985 | F182: 283.160004 | G182: 77076000 | H182: 279.018433 | I182: 0.985373743 | J182: 1 | K182: 279.3 | L182: 279.91 | M182: 278.23 | N182: 279.02 | O182: 77076000
A183: 168 | B183: 2018-08-09 | C183: 285.529999 | D183: 285.970001 | E183: 284.920013 | F183: 285.070007 | G183: 35652400 | H183: 280.900482 | I183: 0.9853736805 | J183: 1 | K183: 281.35 | L183: 281.79 | M183: 280.75 | N183: 280.9 | O183: 35652400
A184: 169 | B184: 2018-08-08 | C184: 285.390015 | D184: 285.910004 | E184: 284.940002 | F184: 285.459991 | G184: 42114600 | H184: 281.28476 | I184: 0.9853736736 | J184: 1 | K184: 281.22 | L184: 281.73 | M184: 280.77 | N184: 281.28 | O184: 42114600
A185: 170 | B185: 2018-08-07 | C185: 285.390015 | D185: 286.01001 | E185: 285.23999 | F185: 285.579987 | G185: 43196600 | H185: 281.403015 | I185: 0.985373723 | J185: 1 | K185: 281.22 | L185: 281.83 | M185: 281.07 | N185: 281.4 | O185: 43196600
A186: 171 | B186: 2018-08-06 | C186: 283.640015 | D186: 284.98999 | E186: 283.200012 | F186: 284.640015 | G186: 39400900 | H186: 280.476776 | I186: 0.9853736693 | J186: 1 | K186: 279.49 | L186: 280.82 | M186: 279.06 | N186: 280.48 | O186: 39400900
A187: 172 | B187: 2018-08-03 | C187: 282.529999 | D187: 283.660004 | E187: 282.329987 | F187: 283.600006 | G187: 53935400 | H187: 279.451996 | I187: 0.9853737309 | J187: 1 | K187: 278.4 | L187: 279.51 | M187: 278.2 | N187: 279.45 | O187: 53935400
A188: 173 | B188: 2018-08-02 | C188: 279.390015 | D188: 282.579987 | E188: 279.160004 | F188: 282.390015 | G188: 63426400 | H188: 278.259735 | I188: 0.9853738455 | J188: 1 | K188: 275.3 | L188: 278.45 | M188: 275.08 | N188: 278.26 | O188: 63426400
A189: 174 | B189: 2018-08-01 | C189: 281.559998 | D189: 282.130005 | E189: 280.130005 | F189: 280.859985 | G189: 53853300 | H189: 276.752045 | I189: 0.9853737085 | J189: 1 | K189: 277.44 | L189: 278 | M189: 276.03 | N189: 276.75 | O189: 53853300
A190: 175 | B190: 2018-07-31 | C190: 280.809998 | D190: 282.019989 | E190: 280.380005 | F190: 281.329987 | G190: 68570500 | H190: 277.215149 | I190: 0.9853736246 | J190: 1 | K190: 276.7 | L190: 277.9 | M190: 276.28 | N190: 277.22 | O190: 68570500
A191: 176 | B191: 2018-07-30 | C191: 281.51001 | D191: 281.690002 | E191: 279.359985 | F191: 279.950012 | G191: 63742500 | H191: 275.855408 | I191: 0.9853738031 | J191: 1 | K191: 277.39 | L191: 277.57 | M191: 275.27 | N191: 275.86 | O191: 63742500
A192: 177 | B192: 2018-07-27 | C192: 283.709991 | D192: 283.820007 | E192: 280.380005 | F192: 281.420013 | G192: 76768700 | H192: 277.303894 | I192: 0.9853737517 | J192: 1 | K192: 279.56 | L192: 279.67 | M192: 276.28 | N192: 277.3 | O192: 76768700
A193: 178 | B193: 2018-07-26 | C193: 283.200012 | D193: 284.109985 | E193: 283.089996 | F193: 283.339996 | G193: 57919500 | H193: 279.195801 | I193: 0.9853737734 | J193: 1 | K193: 279.06 | L193: 279.95 | M193: 278.95 | N193: 279.2 | O193: 57919500
A194: 179 | B194: 2018-07-25 | C194: 281.329987 | D194: 284.369995 | E194: 281.279999 | F194: 284.01001 | G194: 78882900 | H194: 279.855988 | I194: 0.9853736775 | J194: 1 | K194: 277.22 | L194: 280.21 | M194: 277.17 | N194: 279.86 | O194: 78882900
A195: 180 | B195: 2018-07-24 | C195: 281.790009 | D195: 282.559998 | E195: 280.630005 | F195: 281.609985 | G195: 68026900 | H195: 277.491089 | I195: 0.9853737573 | J195: 1 | K195: 277.67 | L195: 278.43 | M195: 276.53 | N195: 277.49 | O195: 68026900
A196: 181 | B196: 2018-07-23 | C196: 279.450012 | D196: 280.429993 | E196: 279.059998 | F196: 280.200012 | G196: 47047600 | H196: 276.101715 | I196: 0.985373673 | J196: 1 | K196: 275.36 | L196: 276.33 | M196: 274.98 | N196: 276.1 | O196: 47047600
A197: 182 | B197: 2018-07-20 | C197: 279.769989 | D197: 280.480011 | E197: 279.5 | F197: 279.679993 | G197: 82337700 | H197: 275.589325 | I197: 0.9853737554 | J197: 1 | K197: 275.68 | L197: 276.38 | M197: 275.41 | N197: 275.59 | O197: 82337700
A198: 183 | B198: 2018-07-19 | C198: 280.309998 | D198: 280.73999 | E198: 279.459991 | F198: 280 | G198: 61412100 | H198: 275.904663 | I198: 0.9853737964 | J198: 1 | K198: 276.21 | L198: 276.63 | M198: 275.37 | N198: 275.9 | O198: 61412100
A199: 184 | B199: 2018-07-18 | C199: 280.559998 | D199: 281.179993 | E199: 280.059998 | F199: 281.059998 | G199: 44593500 | H199: 276.949158 | I199: 0.9853737991 | J199: 1 | K199: 276.46 | L199: 277.07 | M199: 275.96 | N199: 276.95 | O199: 44593500
A200: 185 | B200: 2018-07-17 | C200: 278.470001 | D200: 280.910004 | E200: 278.410004 | F200: 280.470001 | G200: 52315500 | H200: 276.367798 | I200: 0.9853738261 | J200: 1 | K200: 274.4 | L200: 276.8 | M200: 274.34 | N200: 276.37 | O200: 52315500
... 4300 more rows

Sheet CalculationsAndCharts
A1: Fourier Market Model
A2: =InputPriceData!A1 -> SPDR S&P 500 ETF (SPY) -NYSEArca (Daily)
A4: User Charting Controls | E4: Click to Shift Chart One Bar:
A5: Data Control
A6: =InputPriceData!$B$10 -> 6597 | B6: Available Input Data Rows | E6: Earliest: | F6: =OFFSET(InputPriceData!B15,CalculationsAndCharts!A6,0,1,1) -> 1993-01-29
C7: FALSE | E7: Latest: | F7: =OFFSET(InputPriceData!B15,1,0,1,1) -> 2019-04-10
A8: =MIN(A6-A11,LOOKUP(2,1/(B:B<>0),ROW(A:A))-32) -> 1000 | B8: Logically Available for Calc / Plot | E8: $ Change: | F8: =G33-G34 -> -5.11 | Y8: ="Rate Of Change: F-ROC(" & A16 & ", " & A17 &")" -> Rate Of Change: F-ROC(20, 0.1)
Y9: ="Using " & $A$8 & " Available Bars" -> Using 1000 Available Bars
F10: Y-axis Range | Y10: Full Cycle and Half Cycle
A11: 78 | B11: Input Data Offset (Pan) | E11: Max High+ | F11: =CEILING(MAX(MAX(OFFSET($E$33,0,0,$A$12,1)))+2*F14,0.1) -> 298.2 | Y11: Zero Crossover
A12: 295 | B12: Data Points to Plot (Zoom) | E12: Min Low- | F12: =FLOOR(MIN(MIN(OFFSET($F$33,0,0,$A$12,1)))-2*F14,0.1) -> 248.7 | Y12: Bar Count Duration Statistics
B13: First: | C13: =OFFSET(B32,A12,0,1,1) -> 2017-10-16 | E13: White space %: | F13: 0.05 | Y13: Full Cycle Bar Count | AA13: Half Wave
B14: ="Last: " & IF(OFFSET(InputPriceData!P15,1+A11,0,1,1)="","",TEXT(OFFSET(InputPriceData!P15,1+A11,0,1,1),"H:MM AM/PM")) -> Last: | C14: =B33 -> 2018-12-17 | E14: Allowance: | F14: =FLOOR((CEILING(MAX(MAX(OFFSET($E$33,0,0,$A$12,1))),1)-FLOOR(MIN(MIN(OFFSET($F$33,0,0,$A$12,1))),1))*F13,0.01) -> 2.1 | Y14: From Up Cross to Next Up | Z14: From Dn Cross to Next Dn | AA14: Up Cross to Dn or Dn Cross to Up
A15: User Controls
A16: 20 | B16: Fundamental
A17: 0.1 | B17: Bandwidth | D17: Filter Coefficients (Precalc Area) | R17: 3 | X17: Number of cross over events | Y17: =SparceArrayStats(OFFSET(Y33,0,0,$A$8,1)) -> 117 | Z17: =SparceArrayStats(OFFSET(Z33,0,0,$A$8,1)) -> 117 | AA17: =SparceArrayStats(OFFSET(AA33,0,0,$A$8,1)) -> 235
D18: L | E18: G | F18: S | X18: Min Event Bar Count per event | Y18: 2 | Z18: 3 | AA18: 1
C19: 1 | D19: =COS(RADIANS(360/($A$16/$C19))) -> 0.9510565163 | E19: =COS(RADIANS($A$17*360/($A$16/$C19))) -> 0.9995065604 | F19: =1/E19-SQRT(1/(E19*E19)-1) -> 0.9690674172 | X19: Max Event Bar Count per | Y19: 21 | Z19: 21 | AA19: 14
C20: 2 | D20: =COS(RADIANS(360/($A$16/$C20))) -> 0.8090169944 | E20: =COS(RADIANS($A$17*360/($A$16/$C20))) -> 0.9980267284 | F20: =1/E20-SQRT(1/(E20*E20)-1) -> 0.9390625058 | X20: Average Bars per | Y20: 8.45 | Z20: 8.45 | AA20: 4.22
C21: 3 | D21: 0.5877852523 | E21: 0.9955619646 | F21: 0.9099299882 | X21: Median Bars per | Y21: 7.00 | Z21: 7.00 | AA21: 4.00
X22: Higest Rank Mode | Y22: 6(28) | Z22: 7(28) | AA22: 3(79) | AB22: <== Read as: Event Length Bar Count (# of Occurances) i.e. 6(3) ==> a bar count of 6, found 3 times in the data
X23: 2nd Rank Mode | Y23: 7(27) | Z23: 6(22) | AA23: 4(54)
X24: 3rd Rank Mode | Y24: 5(9) | Z24: 11(10) | AA24: 2(27)
A25: Help! I would like to plot data | X25: 4th Rank Mode | Y25: 9(8) | Z25: 8(10) | AA25: 5(18)
A26: From | B26: 2017-10-23 | C26: =OFFSET(InputPriceData!$A$15,MATCH(B26,OFFSET(InputPriceData!B15,1,0,InputPriceData!$B$10,1),0),0,1,1)-C27 -> 295 | E26: 193 | X26: 5th Rank Mode | Y26: 8(8) | Z26: 5(10) | AA26: 7(13)
A27: To | B27: 2018-12-24 | C27: =OFFSET(InputPriceData!$A$15,MATCH(B27,OFFSET(InputPriceData!$B$15,1,0,InputPriceData!$B$10,1),0),0,1,1)-1 -> 73 | E27: =$A$12-$E$26+1 -> 103 | Y27: Bar Count Duration Detail
H28: @ Cursor => | I28: =OFFSET(A32,$E$27,0,1,1)&"(RR)" -> 103(RR) | J28: =OFFSET($B$32,E27,0,1,1) -> 2018-07-23 | K28: =TEXT(OFFSET(D32,$E$27,0,1,1),"#,##0.00")&"(o)" -> 279.45(o) | L28: =TEXT(OFFSET(E32,$E$27,0,1,1),"#,##0.00")&"(h)" -> 280.43(h) | M28: =TEXT(OFFSET(F32,$E$27,0,1,1),"#,##0.00")&"(l)" -> 279.06(l) | N28: =TEXT(OFFSET(G32,$E$27,0,1,1),"#,##0.00")&"(c)" -> 280.20(c) | Y28: ="By F-ROC(" & A16 & ", " & A17 &") Event Type" -> By F-ROC(20, 0.1) Event Type
E29: Cursor ==> | T29: Chart Clutter Work Area | Y29: Full Cycle Bar Count | AA29: Half Wave | AU29: Chart Cursor work area
W30: ="F-ROC("&A16&", "&A17&")"&CHAR(10)&"Zero Crossings" -> F-ROC(20, 0.1) Zero Crossings | Y30: From Up Cross to Next Up | Z30: From Dn Cross to Next Dn | AA30: Up Cross to Dn or Dn Cross to Up
A31: Rel Row | H31: Fundamental Band Pass | K31: 2nd Harmonic Band Pass | N31: 3rd Harmonic Band Pass | Q31: ="Fourier("&A16&", "&A17&")" -> Fourier(20, 0.1) | AP31: Used To Color Vol Bars
B32: Date | C32: Volume | D32: Open | E32: High | F32: Low | G32: Close | H32: BP1 | I32: Q1 | J32: P1 | K32: BP2 | L32: Q2 | M32: P2 | N32: BP3 | O32: Q3 | P32: P3 | Q32: Wave | R32: ROC | T32: Fourier | U32: F-ROC | W32: X Up | X32: X Dn | AP32: Up Vol | AQ32: Dn Vol | AU32: Volume Cursor | AV32: =MAX(OFFSET(C33,0,0,A12,1)) -> 355026800 | AW32: Z Cursor | AY32: Price Chart Cursor
A33: 1 | B33: =OFFSET(InputPriceData!B$15,CalculationsAndCharts!$A33+$A$11,0,1,1) -> 2018-12-17 | C33: =OFFSET(InputPriceData!G$15,CalculationsAndCharts!$A33+$A$11,IF($C$7,8,0),1,1) -> 165492300 | D33: =OFFSET(InputPriceData!C$15,CalculationsAndCharts!$A33+$A$11,IF($C$7,8,0),1,1) -> 259.399994 | E33: =OFFSET(InputPriceData!D$15,CalculationsAndCharts!$A33+$A$11,IF($C$7,8,0),1,1) -> 260.649994 | F33: =OFFSET(InputPriceData!E$15,CalculationsAndCharts!$A33+$A$11,IF($C$7,8,0),1,1) -> 253.529999 | G33: =OFFSET(InputPriceData!F$15,CalculationsAndCharts!$A33+$A$11,IF($C$7,8,0),1,1) -> 255.360001 | H33: =IF($A$8-$A33<=1,0,0.5*(1-$F$19)*(G33-G35)+$D$19*(1+$F$19)*H34-$F$19*H35) -> -1.811001878 | I33: =IF($A$8-$A33<=2,0,($A$16/6.28)*(H33-H34)) -> -1.900811128 | J33: =SUMSQ(OFFSET(H33,0,0,$A$16,1))+SUMSQ(OFFSET(I33,0,0,$A$16,1)) -> 75.77593218 | K33: =IF($A$8-$A33<=1,0,0.5*(1-$F$20)*(G33-G35)+$D$20*(1+$F$20)*K34-$F$20*K35) -> 1.737753214 | L33: =IF($A$8-$A33<=2,0,($A$16/6.28)*(K33-K34)) -> 0.5398572784 | M33: =SUMSQ(OFFSET(K33,0,0,$A$16,1))+SUMSQ(OFFSET(L33,0,0,$A$16,1)) -> 174.2062275 | N33: =IF($A$8-$A33<=1,0,0.5*(1-$F$21)*(G33-G35)+$D$21*(1+$F$21)*N34-$F$21*N35) -> -0.9479743688 | O33: =IF($A$8-$A33<=2,0,($A$16/6.28)*(N33-N34)) -> -1.440976003 | P33: =SUMSQ(OFFSET(N33,0,0,$A$16,1))+SUMSQ(OFFSET(O33,0,0,$A$16,1)) -> 118.0510949 | Q33: =IF(J33=0,0,H33+SQRT(M33/J33)*K33+SQRT(P33/J33)*N33) -> -0.3593828452 | R33: =$A$16/12.57*(Q33-Q35) -> -0.508065051 | T33: =IF(OR($R$17=1,$R$17=3),Q33,NA()) -> -0.3593828452 | U33: =IF(OR($R$17=2,$R$17=3),R33,NA()) -> -0.508065051 | W33: =AND($R33>0,$R34<0) -> FALSE | X33: =AND($R33<0,$R34>0) -> TRUE | Y33: =IF(W33,MATCH(TRUE,OFFSET(W33,1,0,$A$8-$A33,1),0),NA()) ->  | Z33: =IF(X33,MATCH(TRUE,OFFSET(X33,1,0,$A$8-$A33,1),0),NA()) -> 10 | AA33: =IF(W33,MATCH(TRUE,OFFSET(X33,1,0,$A$8-$A33,1),0),IF(X33,MATCH(TRUE,OFFSET(W33,1,0,$A$8-$A33,1),0),NA())) -> 3 | AP33: =IF(G33>=D33,C33,NA()) ->  | AQ33: =IF(G33<D33,C33,NA()) -> 165492300 | AU33: =$E$27 -> 103 | AV33: 0 | AW33: =$E$27 -> 103 | AX33: -12 | AY33: =E27 -> 103 | AZ33: 246.596998
A34: 2 | B34: =OFFSET(InputPriceData!B$15,CalculationsAndCharts!$A34+$A$11,0,1,1) -> 2018-12-14 | C34: =OFFSET(InputPriceData!G$15,CalculationsAndCharts!$A34+$A$11,IF($C$7,8,0),1,1) -> 116961100 | D34: =OFFSET(InputPriceData!C$15,CalculationsAndCharts!$A34+$A$11,IF($C$7,8,0),1,1) -> 262.959991 | E34: =OFFSET(InputPriceData!D$15,CalculationsAndCharts!$A34+$A$11,IF($C$7,8,0),1,1) -> 264.029999 | F34: =OFFSET(InputPriceData!E$15,CalculationsAndCharts!$A34+$A$11,IF($C$7,8,0),1,1) -> 259.850006 | G34: =OFFSET(InputPriceData!F$15,CalculationsAndCharts!$A34+$A$11,IF($C$7,8,0),1,1) -> 260.470001 | H34: =IF($A$8-$A34<=1,0,0.5*(1-$F$19)*(G34-G36)+$D$19*(1+$F$19)*H35-$F$19*H36) -> -1.214147184 | I34: -1.837238953 | J34: =SUMSQ(OFFSET(H34,0,0,$A$16,1))+SUMSQ(OFFSET(I34,0,0,$A$16,1)) -> 70.87181595 | K34: =IF($A$8-$A34<=1,0,0.5*(1-$F$20)*(G34-G36)+$D$20*(1+$F$20)*K35-$F$20*K36) -> 1.568238029 | L34: =IF($A$8-$A34<=2,0,($A$16/6.28)*(K34-K35)) -> 3.578815212 | M34: =SUMSQ(OFFSET(K34,0,0,$A$16,1))+SUMSQ(OFFSET(L34,0,0,$A$16,1)) -> 173.9078259 | N34: =IF($A$8-$A34<=1,0,0.5*(1-$F$21)*(G34-G36)+$D$21*(1+$F$21)*N35-$F$21*N36) -> -0.4955079038 | O34: =IF($A$8-$A34<=2,0,($A$16/6.28)*(N34-N35)) -> -1.37121331 | P34: =SUMSQ(OFFSET(N34,0,0,$A$16,1))+SUMSQ(OFFSET(O34,0,0,$A$16,1)) -> 120.9960251 | Q34: =IF(J34=0,0,H34+SQRT(M34/J34)*K34+SQRT(P34/J34)*N34) -> 0.5950148563 | R34: =$A$16/12.57*(Q34-Q36) -> 3.082076471 | T34: 0.5950148563 | U34: 3.082076471 | W34: =AND($R34>0,$R35<0) -> FALSE | X34: =AND($R34<0,$R35>0) -> FALSE | Z34: =IF(X34,MATCH(TRUE,OFFSET(X34,1,0,$A$8-$A34,1),0),NA()) ->  | AA34: =IF(W34,MATCH(TRUE,OFFSET(X34,1,0,$A$8-$A34,1),0),IF(X34,MATCH(TRUE,OFFSET(W34,1,0,$A$8-$A34,1),0),NA())) ->  | AP34: =IF(G34>=D34,C34,NA()) ->  | AQ34: =IF(G34<D34,C34,NA()) -> 116961100 | AU34: =$E$27 -> 103 | AV34: =CEILING(AV32,10^INT(LOG10(AV32))) -> 400000000 | AW34: =$E$27 -> 103 | AX34: 12 | AY34: =E27 -> 103 | AZ34: 301.288502
A35: 3 | B35: =OFFSET(InputPriceData!B$15,CalculationsAndCharts!$A35+$A$11,0,1,1) -> 2018-12-13 | C35: =OFFSET(InputPriceData!G$15,CalculationsAndCharts!$A35+$A$11,IF($C$7,8,0),1,1) -> 96662700 | D35: =OFFSET(InputPriceData!C$15,CalculationsAndCharts!$A35+$A$11,IF($C$7,8,0),1,1) -> 266.519989 | E35: =OFFSET(InputPriceData!D$15,CalculationsAndCharts!$A35+$A$11,IF($C$7,8,0),1,1) -> 267.48999 | F35: =OFFSET(InputPriceData!E$15,CalculationsAndCharts!$A35+$A$11,IF($C$7,8,0),1,1) -> 264.119995 | G35: =OFFSET(InputPriceData!F$15,CalculationsAndCharts!$A35+$A$11,IF($C$7,8,0),1,1) -> 265.369995 | H35: -0.637254153 | I35: -1.844082023 | J35: 68.12698491 | K35: 0.4444900521 | L35: 4.884916024 | M35: 161.0340634 | N35: -0.06494692439 | O35: -0.8993816777 | P35: 119.9773062 | Q35: -0.04006396063 | R35: 3.186059004 | T35: -0.04006396063 | U35: 3.186059004 | W35: FALSE | X35: FALSE | AP35: =IF(G35>=D35,C35,NA()) ->  | AQ35: =IF(G35<D35,C35,NA()) -> 96662700
A36: 4 | B36: =OFFSET(InputPriceData!B$15,CalculationsAndCharts!$A36+$A$11,0,1,1) -> 2018-12-12 | C36: =OFFSET(InputPriceData!G$15,CalculationsAndCharts!$A36+$A$11,IF($C$7,8,0),1,1) -> 97976700 | D36: =OFFSET(InputPriceData!C$15,CalculationsAndCharts!$A36+$A$11,IF($C$7,8,0),1,1) -> 267.470001 | E36: =OFFSET(InputPriceData!D$15,CalculationsAndCharts!$A36+$A$11,IF($C$7,8,0),1,1) -> 269 | F36: =OFFSET(InputPriceData!E$15,CalculationsAndCharts!$A36+$A$11,IF($C$7,8,0),1,1) -> 265.369995 | G36: =OFFSET(InputPriceData!F$15,CalculationsAndCharts!$A36+$A$11,IF($C$7,8,0),1,1) -> 265.459991 | H36: -0.05821239761 | I36: -1.984408046 | J36: 66.02939747 | K36: -1.08937358 | L36: 3.705610513 | M36: 138.6054715 | N36: 0.2174589224 | O36: -0.5846432502 | P36: 121.081366 | Q36: -1.342070206 | R36: 1.029759929 | T36: -1.342070206 | U36: 1.029759929 | W36: TRUE | X36: FALSE | Y36: 11 | AA36: 7 | AP36: =IF(G36>=D36,C36,NA()) ->  | AQ36: =IF(G36<D36,C36,NA()) -> 97976700
A37: 5 | B37: =OFFSET(InputPriceData!B$15,CalculationsAndCharts!$A37+$A$11,0,1,1) -> 2018-12-11 | C37: =OFFSET(InputPriceData!G$15,CalculationsAndCharts!$A37+$A$11,IF($C$7,8,0),1,1) -> 121504400 | D37: =OFFSET(InputPriceData!C$15,CalculationsAndCharts!$A37+$A$11,IF($C$7,8,0),1,1) -> 267.660004 | E37: =OFFSET(InputPriceData!D$15,CalculationsAndCharts!$A37+$A$11,IF($C$7,8,0),1,1) -> 267.869995 | F37: =OFFSET(InputPriceData!E$15,CalculationsAndCharts!$A37+$A$11,IF($C$7,8,0),1,1) -> 262.480011 | G37: =OFFSET(InputPriceData!F$15,CalculationsAndCharts!$A37+$A$11,IF($C$7,8,0),1,1) -> 264.130005 | H37: 0.5648917289 | I37: -1.939489282 | J37: 63.12675031 | K37: -2.252935281 | L37: 0.9729368915 | M37: 124.944801 | N37: 0.401036903 | O37: 0.2434601817 | P37: 124.0503892 | Q37: -2.042502045 | R37: -1.762433437 | T37: -2.042502045 | U37: -1.762433437 | W37: FALSE | X37: FALSE | AQ37: 121504400
A38: 6 | B38: =OFFSET(InputPriceData!B$15,CalculationsAndCharts!$A38+$A$11,0,1,1) -> 2018-12-10 | C38: =OFFSET(InputPriceData!G$15,CalculationsAndCharts!$A38+$A$11,IF($C$7,8,0),1,1) -> 151445900 | D38: =OFFSET(InputPriceData!C$15,CalculationsAndCharts!$A38+$A$11,IF($C$7,8,0),1,1) -> 263.369995 | E38: =OFFSET(InputPriceData!D$15,CalculationsAndCharts!$A38+$A$11,IF($C$7,8,0),1,1) -> 265.160004 | F38: =OFFSET(InputPriceData!E$15,CalculationsAndCharts!$A38+$A$11,IF($C$7,8,0),1,1) -> 258.619995 | G38: =OFFSET(InputPriceData!F$15,CalculationsAndCharts!$A38+$A$11,IF($C$7,8,0),1,1) -> 264.070007 | H38: 1.173891363 | I38: -1.658069493 | J38: 59.67380308 | K38: -2.558437465 | L38: -2.234988367 | M38: 120.2277275 | N38: 0.3245904059 | O38: 1.073707003 | P38: 124.2259127 | Q38: -1.989274321 | R38: -3.512674003 | T38: -1.989274321 | U38: -3.512674003 | W38: FALSE | X38: FALSE | AP38: 151445900
A39: 7 | B39: =OFFSET(InputPriceData!B$15,CalculationsAndCharts!$A39+$A$11,0,1,1) -> 2018-12-07 | C39: =OFFSET(InputPriceData!G$15,CalculationsAndCharts!$A39+$A$11,IF($C$7,8,0),1,1) -> 161018900 | D39: =OFFSET(InputPriceData!C$15,CalculationsAndCharts!$A39+$A$11,IF($C$7,8,0),1,1) -> 269.459991 | E39: =OFFSET(InputPriceData!D$15,CalculationsAndCharts!$A39+$A$11,IF($C$7,8,0),1,1) -> 271.220001 | F39: =OFFSET(InputPriceData!E$15,CalculationsAndCharts!$A39+$A$11,IF($C$7,8,0),1,1) -> 262.630005 | G39: =OFFSET(InputPriceData!F$15,CalculationsAndCharts!$A39+$A$11,IF($C$7,8,0),1,1) -> 263.570007 | H39: 1.694525184 | I39: -0.8810328167 | J39: 56.23826225 | K39: -1.856651118 | L39: -4.115609855 | M39: 111.1999706 | N39: -0.01255359307 | O39: 2.054865266 | P39: 123.1848247 | Q39: -0.9348126294 | R39: -3.612885689 | T39: -0.9348126294 | U39: -3.612885689 | W39: FALSE | X39: FALSE | AQ39: 161018900
A40: 8 | B40: =OFFSET(InputPriceData!B$15,CalculationsAndCharts!$A40+$A$11,0,1,1) -> 2018-12-06 | C40: =OFFSET(InputPriceData!G$15,CalculationsAndCharts!$A40+$A$11,IF($C$7,8,0),1,1) -> 204185400 | D40: =OFFSET(InputPriceData!C$15,CalculationsAndCharts!$A40+$A$11,IF($C$7,8,0),1,1) -> 265.920013 | E40: =OFFSET(InputPriceData!D$15,CalculationsAndCharts!$A40+$A$11,IF($C$7,8,0),1,1) -> 269.970001 | F40: =OFFSET(InputPriceData!E$15,CalculationsAndCharts!$A40+$A$11,IF($C$7,8,0),1,1) -> 262.440002 | G40: =OFFSET(InputPriceData!F$15,CalculationsAndCharts!$A40+$A$11,IF($C$7,8,0),1,1) -> 269.839996 | H40: 1.971169488 | I40: 0.05467850835 | J40: 53.22826431 | K40: -0.5643496231 | L40: -4.401207934 | M40: 98.8909054 | N40: -0.6577812865 | O40: 1.498642458 | P40: 118.9947773 | Q40: 0.2184412898 | R40: -3.067387577 | T40: 0.2184412898 | U40: -3.067387577 | W40: FALSE | X40: FALSE | AP40: 204185400
A41: 9 | B41: =OFFSET(InputPriceData!B$15,CalculationsAndCharts!$A41+$A$11,0,1,1) -> 2018-12-04 | C41: =OFFSET(InputPriceData!G$15,CalculationsAndCharts!$A41+$A$11,IF($C$7,8,0),1,1) -> 177986000 | D41: =OFFSET(InputPriceData!C$15,CalculationsAndCharts!$A41+$A$11,IF($C$7,8,0),1,1) -> 278.369995 | E41: =OFFSET(InputPriceData!D$15,CalculationsAndCharts!$A41+$A$11,IF($C$7,8,0),1,1) -> 278.850006 | F41: =OFFSET(InputPriceData!E$15,CalculationsAndCharts!$A41+$A$11,IF($C$7,8,0),1,1) -> 269.899994 | G41: =OFFSET(InputPriceData!F$15,CalculationsAndCharts!$A41+$A$11,IF($C$7,8,0),1,1) -> 270.25 | H41: 1.954000437 | I41: 1.156121591 | J41: 49.9347536 | K41: 0.8176296682 | L41: -2.682421984 | M41: 92.29474082 | N41: -1.128355018 | O41: 0.02887163189 | P41: 117.3421181 | Q41: 1.335886026 | R41: -2.512632257 | T41: 1.335886026 | U41: -2.512632257 | W41: FALSE | X41: FALSE | AQ41: 177986000
A42: 10 | B42: =OFFSET(InputPriceData!B$15,CalculationsAndCharts!$A42+$A$11,0,1,1) -> 2018-12-03 | C42: =OFFSET(InputPriceData!G$15,CalculationsAndCharts!$A42+$A$11,IF($C$7,8,0),1,1) -> 103176300 | D42: =OFFSET(InputPriceData!C$15,CalculationsAndCharts!$A42+$A$11,IF($C$7,8,0),1,1) -> 280.279999 | E42: =OFFSET(InputPriceData!D$15,CalculationsAndCharts!$A42+$A$11,IF($C$7,8,0),1,1) -> 280.399994 | F42: =OFFSET(InputPriceData!E$15,CalculationsAndCharts!$A42+$A$11,IF($C$7,8,0),1,1) -> 277.51001 | G42: =OFFSET(InputPriceData!F$15,CalculationsAndCharts!$A42+$A$11,IF($C$7,8,0),1,1) -> 279.299988 | H42: 1.590978257 | I42: 1.971385912 | J42: 45.40136724 | K42: 1.659910171 | L42: -0.2137864029 | M42: 93.07118646 | N42: -1.137420711 | O42: -2.251304863 | P42: 116.4089216 | Q42: 2.146294382 | R42: -3.102940029 | T42: 2.146294382 | U42: -3.102940029 | W42: FALSE | X42: FALSE | AQ42: 103176300
A43: 11 | B43: =OFFSET(InputPriceData!B$15,CalculationsAndCharts!$A43+$A$11,0,1,1) -> 2018-11-30 | C43: =OFFSET(InputPriceData!G$15,CalculationsAndCharts!$A43+$A$11,IF($C$7,8,0),1,1) -> 98204200 | D43: =OFFSET(InputPriceData!C$15,CalculationsAndCharts!$A43+$A$11,IF($C$7,8,0),1,1) -> 273.809998 | E43: =OFFSET(InputPriceData!D$15,CalculationsAndCharts!$A43+$A$11,IF($C$7,8,0),1,1) -> 276.279999 | F43: =OFFSET(InputPriceData!E$15,CalculationsAndCharts!$A43+$A$11,IF($C$7,8,0),1,1) -> 273.450012 | G43: =OFFSET(InputPriceData!F$15,CalculationsAndCharts!$A43+$A$11,IF($C$7,8,0),1,1) -> 275.649994 | H43: 0.971963081 | I43: 2.071746503 | J43: 39.67006006 | K43: 1.727039102 | L43: 1.391647278 | M43: 94.50762183 | N43: -0.4305109839 | O43: -4.498969999 | P43: 111.7436901 | Q43: 2.9150754 | R43: -0.4745980277 | T43: 2.9150754 | U43: -0.4745980277 | W43: FALSE | X43: TRUE | Z43: 7 | AA43: 4 | AP43: 98204200
A44: 12 | B44: =OFFSET(InputPriceData!B$15,CalculationsAndCharts!$A44+$A$11,0,1,1) -> 2018-11-29 | C44: =OFFSET(InputPriceData!G$15,CalculationsAndCharts!$A44+$A$11,IF($C$7,8,0),1,1) -> 82346400 | D44: =OFFSET(InputPriceData!C$15,CalculationsAndCharts!$A44+$A$11,IF($C$7,8,0),1,1) -> 273.709991 | E44: =OFFSET(InputPriceData!D$15,CalculationsAndCharts!$A44+$A$11,IF($C$7,8,0),1,1) -> 275.549988 | F44: =OFFSET(InputPriceData!E$15,CalculationsAndCharts!$A44+$A$11,IF($C$7,8,0),1,1) -> 272.429993 | G44: =OFFSET(InputPriceData!F$15,CalculationsAndCharts!$A44+$A$11,IF($C$7,8,0),1,1) -> 273.980011 | H44: 0.3214346789 | I44: 2.185294223 | J44: 35.10938764 | K44: 1.290061856 | L44: 2.991604991 | M44: 99.123675 | N44: 0.9821655958 | O44: -2.406582902 | P44: 94.03943311 | Q44: 4.09649219 | R44: 6.130494373 | T44: 4.09649219 | U44: 6.130494373 | W44: FALSE | X44: FALSE | AP44: 82346400
A45: 13 | B45: =OFFSET(InputPriceData!B$15,CalculationsAndCharts!$A45+$A$11,0,1,1) -> 2018-11-28 | C45: =OFFSET(InputPriceData!G$15,CalculationsAndCharts!$A45+$A$11,IF($C$7,8,0),1,1) -> 127629600 | D45: =OFFSET(InputPriceData!C$15,CalculationsAndCharts!$A45+$A$11,IF($C$7,8,0),1,1) -> 269.600006 | E45: =OFFSET(InputPriceData!D$15,CalculationsAndCharts!$A45+$A$11,IF($C$7,8,0),1,1) -> 274.579987 | F45: =OFFSET(InputPriceData!E$15,CalculationsAndCharts!$A45+$A$11,IF($C$7,8,0),1,1) -> 268.329987 | G45: =OFFSET(InputPriceData!F$15,CalculationsAndCharts!$A45+$A$11,IF($C$7,8,0),1,1) -> 274.579987 | H45: -0.3647477069 | I45: 1.855905989 | J45: 30.65390027 | K45: 0.3506978889 | L45: 3.04959616 | M45: 103.3618092 | N45: 1.737832627 | O45: 1.26430519 | P45: 87.38338161 | Q45: 3.21336026 | R45: 10.84497017 | T45: 3.21336026 | U45: 10.84497017 | W45: FALSE | X45: FALSE | AP45: 127629600
A46: 14 | B46: =OFFSET(InputPriceData!B$15,CalculationsAndCharts!$A46+$A$11,0,1,1) -> 2018-11-27 | C46: =OFFSET(InputPriceData!G$15,CalculationsAndCharts!$A46+$A$11,IF($C$7,8,0),1,1) -> 75502400 | D46: =OFFSET(InputPriceData!C$15,CalculationsAndCharts!$A46+$A$11,IF($C$7,8,0),1,1) -> 266.339996 | E46: =OFFSET(InputPriceData!D$15,CalculationsAndCharts!$A46+$A$11,IF($C$7,8,0),1,1) -> 268.399994 | F46: =OFFSET(InputPriceData!E$15,CalculationsAndCharts!$A46+$A$11,IF($C$7,8,0),1,1) -> 265.660004 | G46: =OFFSET(InputPriceData!F$15,CalculationsAndCharts!$A46+$A$11,IF($C$7,8,0),1,1) -> 268.399994 | H46: -0.9475021874 | I46: 1.255194865 | J46: 27.29935771 | K46: -0.6068753053 | L46: 1.753720694 | M46: 106.2257795 | N46: 1.340840797 | O46: 3.968214192 | P46: 86.5970422 | Q46: 0.2434764768 | R46: 9.55327264 | T46: 0.2434764768 | U46: 9.55327264 | W46: FALSE | X46: FALSE | AP46: 75502400
A47: 15 | B47: =OFFSET(InputPriceData!B$15,CalculationsAndCharts!$A47+$A$11,0,1,1) -> 2018-11-26 | C47: =OFFSET(InputPriceData!G$15,CalculationsAndCharts!$A47+$A$11,IF($C$7,8,0),1,1) -> 79981400 | D47: =OFFSET(InputPriceData!C$15,CalculationsAndCharts!$A47+$A$11,IF($C$7,8,0),1,1) -> 265.779999 | E47: =OFFSET(InputPriceData!D$15,CalculationsAndCharts!$A47+$A$11,IF($C$7,8,0),1,1) -> 267.75 | F47: =OFFSET(InputPriceData!E$15,CalculationsAndCharts!$A47+$A$11,IF($C$7,8,0),1,1) -> 265.339996 | G47: =OFFSET(InputPriceData!F$15,CalculationsAndCharts!$A47+$A$11,IF($C$7,8,0),1,1) -> 267.5 | H47: -1.341633375 | I47: 0.6085784737 | J47: 25.01175213 | K47: -1.157543603 | L47: -0.1184144719 | M47: 109.5081657 | N47: 0.09482154102 | O47: 3.810548538 | P47: 72.11693504 | Q47: -3.602703494 | R47: 2.47533217 | T47: -3.602703494 | U47: 2.47533217 | W47: TRUE | X47: FALSE | Y47: 7 | AA47: 3 | AP47: 79981400
A48: 16 | B48: =OFFSET(InputPriceData!B$15,CalculationsAndCharts!$A48+$A$11,0,1,1) -> 2018-11-23 | C48: =OFFSET(InputPriceData!G$15,CalculationsAndCharts!$A48+$A$11,IF($C$7,8,0),1,1) -> 42807900 | D48: =OFFSET(InputPriceData!C$15,CalculationsAndCharts!$A48+$A$11,IF($C$7,8,0),1,1) -> 263.179993 | E48: =OFFSET(InputPriceData!D$15,CalculationsAndCharts!$A48+$A$11,IF($C$7,8,0),1,1) -> 264.820007 | F48: =OFFSET(InputPriceData!E$15,CalculationsAndCharts!$A48+$A$11,IF($C$7,8,0),1,1) -> 263.070007 | G48: =OFFSET(InputPriceData!F$15,CalculationsAndCharts!$A48+$A$11,IF($C$7,8,0),1,1) -> 263.25 | H48: -1.532727016 | I48: 0.01650920106 | J48: 23.31268615 | K48: -1.120361459 | L48: -1.789446196 | M48: 112.3088762 | N48: -1.1016907 | O48: 0.7611084679 | P48: 60.10537501 | Q48: -5.760755377 | R48: -6.465550269 | T48: -5.760755377 | U48: -6.465550269 | W48: FALSE | X48: FALSE | AP48: 42807900
A49: 17 | B49: =OFFSET(InputPriceData!B$15,CalculationsAndCharts!$A49+$A$11,0,1,1) -> 2018-11-21 | C49: =OFFSET(InputPriceData!G$15,CalculationsAndCharts!$A49+$A$11,IF($C$7,8,0),1,1) -> 75563700 | D49: =OFFSET(InputPriceData!C$15,CalculationsAndCharts!$A49+$A$11,IF($C$7,8,0),1,1) -> 265.859985 | E49: =OFFSET(InputPriceData!D$15,CalculationsAndCharts!$A49+$A$11,IF($C$7,8,0),1,1) -> 267.149994 | F49: =OFFSET(InputPriceData!E$15,CalculationsAndCharts!$A49+$A$11,IF($C$7,8,0),1,1) -> 265.01001 | G49: =OFFSET(InputPriceData!F$15,CalculationsAndCharts!$A49+$A$11,IF($C$7,8,0),1,1) -> 265.019989 | H49: -1.537910905 | I49: -0.4258268005 | J49: 21.42740455 | K49: -0.5584753535 | L49: -2.517070262 | M49: 112.9760158 | N49: -1.340678759 | O49: -2.720688958 | P49: 65.17378552 | Q49: -5.158449763 | R49: -11.48625661 | T49: -5.158449763 | U49: -11.48625661 | W49: FALSE | X49: FALSE | AQ49: 75563700
A50: 18 | B50: =OFFSET(InputPriceData!B$15,CalculationsAndCharts!$A50+$A$11,0,1,1) -> 2018-11-20 | C50: =OFFSET(InputPriceData!G$15,CalculationsAndCharts!$A50+$A$11,IF($C$7,8,0),1,1) -> 136021300 | D50: =OFFSET(InputPriceData!C$15,CalculationsAndCharts!$A50+$A$11,IF($C$7,8,0),1,1) -> 265.359985 | E50: =OFFSET(InputPriceData!D$15,CalculationsAndCharts!$A50+$A$11,IF($C$7,8,0),1,1) -> 267 | F50: =OFFSET(InputPriceData!E$15,CalculationsAndCharts!$A50+$A$11,IF($C$7,8,0),1,1) -> 263.149994 | G50: =OFFSET(InputPriceData!F$15,CalculationsAndCharts!$A50+$A$11,IF($C$7,8,0),1,1) -> 264.119995 | H50: -1.404201289 | I50: -0.6767751719 | J50: 19.60213503 | K50: 0.2318847087 | L50: -1.96758661 | M50: 117.1593403 | N50: -0.4863824262 | O50: -3.687139779 | P50: 61.26352991 | Q50: -1.697157033 | R50: -7.085316003 | T50: -1.697157033 | U50: -7.085316003 | W50: FALSE | X50: TRUE | Z50: 11 | AA50: 4 | AQ50: 136021300
A51: 19 | B51: =OFFSET(InputPriceData!B$15,CalculationsAndCharts!$A51+$A$11,0,1,1) -> 2018-11-19 | C51: =OFFSET(InputPriceData!G$15,CalculationsAndCharts!$A51+$A$11,IF($C$7,8,0),1,1) -> 103061700 | D51: =OFFSET(InputPriceData!C$15,CalculationsAndCharts!$A51+$A$11,IF($C$7,8,0),1,1) -> 273.049988 | E51: =OFFSET(InputPriceData!D$15,CalculationsAndCharts!$A51+$A$11,IF($C$7,8,0),1,1) -> 273.380005 | F51: =OFFSET(InputPriceData!E$15,CalculationsAndCharts!$A51+$A$11,IF($C$7,8,0),1,1) -> 268.070007 | G51: =OFFSET(InputPriceData!F$15,CalculationsAndCharts!$A51+$A$11,IF($C$7,8,0),1,1) -> 269.100006 | H51: -1.191693886 | I51: -0.5873505421 | J51: 18.88132918 | K51: 0.8497069041 | L51: -0.0350898899 | M51: 122.5659349 | N51: 0.6713794644 | O51: -0.6873799391 | P51: 49.53595054 | Q51: 2.060662516 | R51: 2.383313906 | T51: 2.060662516 | U51: 2.383313906 | W51: FALSE | X51: FALSE | AQ51: 103061700
A52: 20 | B52: =OFFSET(InputPriceData!B$15,CalculationsAndCharts!$A52+$A$11,0,1,1) -> 2018-11-16 | C52: =OFFSET(InputPriceData!G$15,CalculationsAndCharts!$A52+$A$11,IF($C$7,8,0),1,1) -> 126668000 | D52: =OFFSET(InputPriceData!C$15,CalculationsAndCharts!$A52+$A$11,IF($C$7,8,0),1,1) -> 271.790009 | E52: =OFFSET(InputPriceData!D$15,CalculationsAndCharts!$A52+$A$11,IF($C$7,8,0),1,1) -> 274.75 | F52: =OFFSET(InputPriceData!E$15,CalculationsAndCharts!$A52+$A$11,IF($C$7,8,0),1,1) -> 271.209991 | G52: =OFFSET(InputPriceData!F$15,CalculationsAndCharts!$A52+$A$11,IF($C$7,8,0),1,1) -> 273.730011 | H52: -1.007265815 | I52: -0.7258725998 | J52: 19.10764528 | K52: 0.8607251296 | L52: 1.448691572 | M52: 128.8431663 | N52: 0.8872167653 | O52: 2.307191143 | P52: 56.68705956 | Q52: 2.755964075 | R52: 7.279104415 | T52: 2.755964075 | U52: 7.279104415 | W52: FALSE | X52: FALSE | AP52: 126668000
A53: 21 | B53: =OFFSET(InputPriceData!B$15,CalculationsAndCharts!$A53+$A$11,0,1,1) -> 2018-11-15 | C53: =OFFSET(InputPriceData!G$15,CalculationsAndCharts!$A53+$A$11,IF($C$7,8,0),1,1) -> 135101400 | D53: =OFFSET(InputPriceData!C$15,CalculationsAndCharts!$A53+$A$11,IF($C$7,8,0),1,1) -> 268.779999 | E53: =OFFSET(InputPriceData!D$15,CalculationsAndCharts!$A53+$A$11,IF($C$7,8,0),1,1) -> 273.540009 | F53: =OFFSET(InputPriceData!E$15,CalculationsAndCharts!$A53+$A$11,IF($C$7,8,0),1,1) -> 267.01001 | G53: =OFFSET(InputPriceData!F$15,CalculationsAndCharts!$A53+$A$11,IF($C$7,8,0),1,1) -> 273.019989 | H53: -0.7793418189 | I53: -1.175296069 | J53: 19.72651282 | K53: 0.4058359759 | L53: 1.68763966 | M53: 128.9562595 | N53: 0.1627587462 | O53: 2.427654637 | P53: 69.02378105 | Q53: 0.562749726 | R53: 5.873418754 | T53: 0.562749726 | U53: 5.873418754 | W53: FALSE | X53: FALSE | AP53: 135101400
A54: 22 | B54: =OFFSET(InputPriceData!B$15,CalculationsAndCharts!$A54+$A$11,0,1,1) -> 2018-11-14 | C54: =OFFSET(InputPriceData!G$15,CalculationsAndCharts!$A54+$A$11,IF($C$7,8,0),1,1) -> 125335900 | D54: =OFFSET(InputPriceData!C$15,CalculationsAndCharts!$A54+$A$11,IF($C$7,8,0),1,1) -> 274.160004 | E54: =OFFSET(InputPriceData!D$15,CalculationsAndCharts!$A54+$A$11,IF($C$7,8,0),1,1) -> 274.609985 | F54: =OFFSET(InputPriceData!E$15,CalculationsAndCharts!$A54+$A$11,IF($C$7,8,0),1,1) -> 268.450012 | G54: =OFFSET(InputPriceData!F$15,CalculationsAndCharts!$A54+$A$11,IF($C$7,8,0),1,1) -> 270.200012 | H54: -0.4102988533 | I54: -1.391554586 | J54: 20.31743395 | K54: -0.1240828773 | L54: 1.542118602 | M54: 128.7010004 | N54: -0.5995248097 | O54: 0.8646416205 | P54: 67.94513282 | Q54: -1.81895305 | R54: 1.823998443 | T54: -1.81895305 | U54: 1.823998443 | W54: TRUE | X54: FALSE | Y54: 14 | AA54: 7 | AQ54: 125335900
A55: 23 | B55: =OFFSET(InputPriceData!B$15,CalculationsAndCharts!$A55+$A$11,0,1,1) -> 2018-11-13 | C55: =OFFSET(InputPriceData!G$15,CalculationsAndCharts!$A55+$A$11,IF($C$7,8,0),1,1) -> 98176600 | D55: =OFFSET(InputPriceData!C$15,CalculationsAndCharts!$A55+$A$11,IF($C$7,8,0),1,1) -> 273.089996 | E55: =OFFSET(InputPriceData!D$15,CalculationsAndCharts!$A55+$A$11,IF($C$7,8,0),1,1) -> 275.329987 | F55: =OFFSET(InputPriceData!E$15,CalculationsAndCharts!$A55+$A$11,IF($C$7,8,0),1,1) -> 271.25 | G55: =OFFSET(InputPriceData!F$15,CalculationsAndCharts!$A55+$A$11,IF($C$7,8,0),1,1) -> 272.059998 | H55: 0.02664928651 | I55: -1.307070672 | J55: 21.17022643 | K55: -0.6083081185 | L55: 1.123096316 | M55: 135.4803873 | N55: -0.8710222785 | O55: -1.076329647 | P55: 72.91375425 | Q55: -3.128693961 | R55: -1.9033815 | T55: -3.128693961 | U55: -1.9033815 | W55: FALSE | X55: FALSE | AQ55: 98176600
A56: 24 | B56: =OFFSET(InputPriceData!B$15,CalculationsAndCharts!$A56+$A$11,0,1,1) -> 2018-11-12 | C56: =OFFSET(InputPriceData!G$15,CalculationsAndCharts!$A56+$A$11,IF($C$7,8,0),1,1) -> 99673600 | D56: =OFFSET(InputPriceData!C$15,CalculationsAndCharts!$A56+$A$11,IF($C$7,8,0),1,1) -> 277.190002 | E56: =OFFSET(InputPriceData!D$15,CalculationsAndCharts!$A56+$A$11,IF($C$7,8,0),1,1) -> 277.459991 | F56: =OFFSET(InputPriceData!E$15,CalculationsAndCharts!$A56+$A$11,IF($C$7,8,0),1,1) -> 271.98999 | G56: =OFFSET(InputPriceData!F$15,CalculationsAndCharts!$A56+$A$11,IF($C$7,8,0),1,1) -> 272.570007 | H56: 0.4370694774 | I56: -0.9206449295 | J56: 22.84434637 | K56: -0.9609603618 | L56: 0.5780733222 | M56: 141.5468532 | N56: -0.5330547693 | O56: -1.753274641 | P56: 82.07344282 | Q56: -2.965336071 | R56: -2.623911338 | T56: -2.965336071 | U56: -2.623911338 | W56: FALSE | X56: FALSE | AQ56: 99673600
A57: 25 | B57: =OFFSET(InputPriceData!B$15,CalculationsAndCharts!$A57+$A$11,0,1,1) -> 2018-11-09 | C57: =OFFSET(InputPriceData!G$15,CalculationsAndCharts!$A57+$A$11,IF($C$7,8,0),1,1) -> 98812600 | D57: =OFFSET(InputPriceData!C$15,CalculationsAndCharts!$A57+$A$11,IF($C$7,8,0),1,1) -> 279.029999 | E57: =OFFSET(InputPriceData!D$15,CalculationsAndCharts!$A57+$A$11,IF($C$7,8,0),1,1) -> 279.23999 | F57: =OFFSET(InputPriceData!E$15,CalculationsAndCharts!$A57+$A$11,IF($C$7,8,0),1,1) -> 276.179993 | G57: =OFFSET(InputPriceData!F$15,CalculationsAndCharts!$A57+$A$11,IF($C$7,8,0),1,1) -> 277.76001 | H57: 0.7261519853 | I57: -0.3169817068 | J57: 25.95001619 | K57: -1.142475385 | L57: 0.0001402895694 | M57: 143.8399028 | N57: 0.01747346788 | O57: -0.6287460403 | P57: 82.81607495 | Q57: -1.932418689 | R57: -1.935073233 | T57: -1.932418689 | U57: -1.935073233 | W57: FALSE | X57: FALSE | AQ57: 98812600
A58: 26 | B58: =OFFSET(InputPriceData!B$15,CalculationsAndCharts!$A58+$A$11,0,1,1) -> 2018-11-08 | C58: =OFFSET(InputPriceData!G$15,CalculationsAndCharts!$A58+$A$11,IF($C$7,8,0),1,1) -> 65584900 | D58: =OFFSET(InputPriceData!C$15,CalculationsAndCharts!$A58+$A$11,IF($C$7,8,0),1,1) -> 280.109985 | E58: =OFFSET(InputPriceData!D$15,CalculationsAndCharts!$A58+$A$11,IF($C$7,8,0),1,1) -> 281.220001 | F58: =OFFSET(InputPriceData!E$15,CalculationsAndCharts!$A58+$A$11,IF($C$7,8,0),1,1) -> 279.220001 | G58: =OFFSET(InputPriceData!F$15,CalculationsAndCharts!$A58+$A$11,IF($C$7,8,0),1,1) -> 280.5 | H58: 0.8256842412 | I58: 0.09959958 | J58: 30.01369676 | K58: -1.142519436 | L58: -1.098939356 | M58: 143.8389506 | N58: 0.2148997245 | O58: 0.4134438155 | P58: 83.88678066 | Q58: -1.316207796 | R58: -3.851785669 | T58: -1.316207796 | U58: -3.851785669 | W58: FALSE | X58: FALSE | AP58: 65584900
A59: 27 | B59: =OFFSET(InputPriceData!B$15,CalculationsAndCharts!$A59+$A$11,0,1,1) -> 2018-11-07 | C59: =OFFSET(InputPriceData!G$15,CalculationsAndCharts!$A59+$A$11,IF($C$7,8,0),1,1) -> 102752100 | D59: =OFFSET(InputPriceData!C$15,CalculationsAndCharts!$A59+$A$11,IF($C$7,8,0),1,1) -> 277.559998 | E59: =OFFSET(InputPriceData!D$15,CalculationsAndCharts!$A59+$A$11,IF($C$7,8,0),1,1) -> 281.100006 | F59: =OFFSET(InputPriceData!E$15,CalculationsAndCharts!$A59+$A$11,IF($C$7,8,0),1,1) -> 277.079987 | G59: =OFFSET(InputPriceData!F$15,CalculationsAndCharts!$A59+$A$11,IF($C$7,8,0),1,1) -> 281.01001 | H59: 0.7944099731 | I59: 0.08092760069 | J59: 33.54541742 | K59: -0.7974524781 | L59: -2.727710069 | M59: 143.6078773 | N59: 0.08507836647 | O59: -0.1591950353 | P59: 89.97983591 | Q59: -0.7162251615 | R59: -7.171533546 | T59: -0.7162251615 | U59: -7.171533546 | W59: FALSE | X59: FALSE | AP59: 102752100
A60: 28 | B60: =OFFSET(InputPriceData!B$15,CalculationsAndCharts!$A60+$A$11,0,1,1) -> 2018-11-06 | C60: =OFFSET(InputPriceData!G$15,CalculationsAndCharts!$A60+$A$11,IF($C$7,8,0),1,1) -> 60085900 | D60: =OFFSET(InputPriceData!C$15,CalculationsAndCharts!$A60+$A$11,IF($C$7,8,0),1,1) -> 273.320007 | E60: =OFFSET(InputPriceData!D$15,CalculationsAndCharts!$A60+$A$11,IF($C$7,8,0),1,1) -> 275.299988 | F60: =OFFSET(InputPriceData!E$15,CalculationsAndCharts!$A60+$A$11,IF($C$7,8,0),1,1) -> 273.25 | G60: =OFFSET(InputPriceData!F$15,CalculationsAndCharts!$A60+$A$11,IF($C$7,8,0),1,1) -> 275.119995 | H60: 0.7689987065 | I60: -0.06024266359 | J60: 34.49665901 | K60: 0.05904848348 | L60: -3.617937322 | M60: 136.6543522 | N60: 0.1350656075 | O60: -1.003844403 | P60: 89.96215733 | Q60: 1.104639497 | R60: -6.952666548 | T60: 1.104639497 | U60: -6.952666548 | W60: FALSE | X60: FALSE | AP60: 60085900
A61: 29 | B61: =OFFSET(InputPriceData!B$15,CalculationsAndCharts!$A61+$A$11,0,1,1) -> 2018-11-05 | C61: =OFFSET(InputPriceData!G$15,CalculationsAndCharts!$A61+$A$11,IF($C$7,8,0),1,1) -> 65622500 | D61: =OFFSET(InputPriceData!C$15,CalculationsAndCharts!$A61+$A$11,IF($C$7,8,0),1,1) -> 272.440002 | E61: =OFFSET(InputPriceData!D$15,CalculationsAndCharts!$A61+$A$11,IF($C$7,8,0),1,1) -> 274.01001 | F61: =OFFSET(InputPriceData!E$15,CalculationsAndCharts!$A61+$A$11,IF($C$7,8,0),1,1) -> 271.350006 | G61: =OFFSET(InputPriceData!F$15,CalculationsAndCharts!$A61+$A$11,IF($C$7,8,0),1,1) -> 273.390015 | H61: 0.7879149029 | I61: 0.02320745134 | J61: 34.48602633 | K61: 1.195080802 | L61: -2.685541564 | M61: 124.3755457 | N61: 0.45027275 | O61: -0.3715865982 | P61: 91.54010964 | Q61: 3.791083672 | R61: -1.802196937 | T61: 3.791083672 | U61: -1.802196937 | W61: FALSE | X61: TRUE | Z61: 11 | AA61: 7 | AP61: 65622500
A62: 30 | B62: =OFFSET(InputPriceData!B$15,CalculationsAndCharts!$A62+$A$11,0,1,1) -> 2018-11-02 | C62: =OFFSET(InputPriceData!G$15,CalculationsAndCharts!$A62+$A$11,IF($C$7,8,0),1,1) -> 122634100 | D62: =OFFSET(InputPriceData!C$15,CalculationsAndCharts!$A62+$A$11,IF($C$7,8,0),1,1) -> 274.75 | E62: =OFFSET(InputPriceData!D$15,CalculationsAndCharts!$A62+$A$11,IF($C$7,8,0),1,1) -> 275.230011 | F62: =OFFSET(InputPriceData!E$15,CalculationsAndCharts!$A62+$A$11,IF($C$7,8,0),1,1) -> 269.589996 | G62: =OFFSET(InputPriceData!F$15,CalculationsAndCharts!$A62+$A$11,IF($C$7,8,0),1,1) -> 271.890015 | H62: 0.7806277631 | I62: 0.2772856704 | J62: 34.41432658 | K62: 2.038340854 | L62: -0.287416654 | M62: 117.5763068 | N62: 0.5669509419 | O62: 1.172789194 | P62: 91.83415118 | Q62: 5.474390422 | R62: 4.636147282 | T62: 5.474390422 | U62: 4.636147282 | W62: FALSE | X62: FALSE | AQ62: 122634100
A63: 31 | B63: =OFFSET(InputPriceData!B$15,CalculationsAndCharts!$A63+$A$11,0,1,1) -> 2018-11-01 | C63: =OFFSET(InputPriceData!G$15,CalculationsAndCharts!$A63+$A$11,IF($C$7,8,0),1,1) -> 99495000 | D63: =OFFSET(InputPriceData!C$15,CalculationsAndCharts!$A63+$A$11,IF($C$7,8,0),1,1) -> 271.600006 | E63: =OFFSET(InputPriceData!D$15,CalculationsAndCharts!$A63+$A$11,IF($C$7,8,0),1,1) -> 273.730011 | F63: =OFFSET(InputPriceData!E$15,CalculationsAndCharts!$A63+$A$11,IF($C$7,8,0),1,1) -> 270.380005 | G63: =OFFSET(InputPriceData!F$15,CalculationsAndCharts!$A63+$A$11,IF($C$7,8,0),1,1) -> 273.51001 | H63: 0.6935600626 | I63: 0.441755386 | J63: 34.22959314 | K63: 2.128589683 | L63: 2.237075175 | M63: 115.2644836 | N63: 0.1986951351 | O63: 1.637783276 | P63: 91.09740232 | Q63: 4.923764447 | R63: 7.175389943 | T63: 4.923764447 | U63: 7.175389943 | W63: FALSE | X63: FALSE | AP63: 99495000
A64: 32 | B64: =OFFSET(InputPriceData!B$15,CalculationsAndCharts!$A64+$A$11,0,1,1) -> 2018-10-31 | C64: =OFFSET(InputPriceData!G$15,CalculationsAndCharts!$A64+$A$11,IF($C$7,8,0),1,1) -> 128296300 | D64: =OFFSET(InputPriceData!C$15,CalculationsAndCharts!$A64+$A$11,IF($C$7,8,0),1,1) -> 270.649994 | E64: =OFFSET(InputPriceData!D$15,CalculationsAndCharts!$A64+$A$11,IF($C$7,8,0),1,1) -> 273.230011 | F64: =OFFSET(InputPriceData!E$15,CalculationsAndCharts!$A64+$A$11,IF($C$7,8,0),1,1) -> 270.119995 | G64: =OFFSET(InputPriceData!F$15,CalculationsAndCharts!$A64+$A$11,IF($C$7,8,0),1,1) -> 270.630005 | H64: 0.5548488714 | I64: 0.3398329773 | J64: 34.08499578 | K64: 1.426148078 | L64: 3.580250818 | M64: 106.3545286 | N64: -0.3155688136 | O64: 0.0255998181 | P64: 90.24036921 | Q64: 2.560571856 | R64: 4.639650704 | T64: 2.560571856 | U64: 4.639650704 | W64: FALSE | X64: FALSE | AQ64: 128296300
A65: 33 | B65: =OFFSET(InputPriceData!B$15,CalculationsAndCharts!$A65+$A$11,0,1,1) -> 2018-10-30 | C65: =OFFSET(InputPriceData!G$15,CalculationsAndCharts!$A65+$A$11,IF($C$7,8,0),1,1) -> 157116000 | D65: =OFFSET(InputPriceData!C$15,CalculationsAndCharts!$A65+$A$11,IF($C$7,8,0),1,1) -> 263.670013 | E65: =OFFSET(InputPriceData!D$15,CalculationsAndCharts!$A65+$A$11,IF($C$7,8,0),1,1) -> 268.119995 | F65: =OFFSET(InputPriceData!E$15,CalculationsAndCharts!$A65+$A$11,IF($C$7,8,0),1,1) -> 263.119995 | G65: =OFFSET(InputPriceData!F$15,CalculationsAndCharts!$A65+$A$11,IF($C$7,8,0),1,1) -> 267.769989 | H65: 0.4481413165 | I65: 0.1485083467 | J65: 34.31896486 | K65: 0.3019493213 | L65: 3.492251791 | M65: 91.73634697 | N65: -0.3236071565 | O65: -1.930665391 | P65: 91.28610515 | Q65: 0.4140318677 | R65: 1.681459498 | T65: 0.4140318677 | U65: 1.681459498 | W65: FALSE | X65: FALSE | AP65: 157116000
A66: 34 | B66: =OFFSET(InputPriceData!B$15,CalculationsAndCharts!$A66+$A$11,0,1,1) -> 2018-10-29 | C66: =OFFSET(InputPriceData!G$15,CalculationsAndCharts!$A66+$A$11,IF($C$7,8,0),1,1) -> 160749100 | D66: =OFFSET(InputPriceData!C$15,CalculationsAndCharts!$A66+$A$11,IF($C$7,8,0),1,1) -> 268.799988 | E66: =OFFSET(InputPriceData!D$15,CalculationsAndCharts!$A66+$A$11,IF($C$7,8,0),1,1) -> 270.25 | F66: =OFFSET(InputPriceData!E$15,CalculationsAndCharts!$A66+$A$11,IF($C$7,8,0),1,1) -> 259.850006 | G66: =OFFSET(InputPriceData!F$15,CalculationsAndCharts!$A66+$A$11,IF($C$7,8,0),1,1) -> 263.859985 | H66: 0.4015096957 | I66: 0.1563935168 | J66: 34.78808194 | K66: -0.7946177411 | L66: 2.468765448 | M66: 80.06524878 | N66: 0.2826217761 | O66: -1.727598243 | P66: 87.62200908 | Q66: -0.3554486118 | R66: 2.64485255 | T66: -0.3554486118 | U66: 2.64485255 | W66: FALSE | X66: FALSE | AQ66: 160749100
A67: 35 | B67: =OFFSET(InputPriceData!B$15,CalculationsAndCharts!$A67+$A$11,0,1,1) -> 2018-10-26 | C67: =OFFSET(InputPriceData!G$15,CalculationsAndCharts!$A67+$A$11,IF($C$7,8,0),1,1) -> 201574600 | D67: =OFFSET(InputPriceData!C$15,CalculationsAndCharts!$A67+$A$11,IF($C$7,8,0),1,1) -> 265.920013 | E67: =OFFSET(InputPriceData!D$15,CalculationsAndCharts!$A67+$A$11,IF($C$7,8,0),1,1) -> 271 | F67: =OFFSET(InputPriceData!E$15,CalculationsAndCharts!$A67+$A$11,IF($C$7,8,0),1,1) -> 262.290009 | G67: =OFFSET(InputPriceData!F$15,CalculationsAndCharts!$A67+$A$11,IF($C$7,8,0),1,1) -> 265.329987 | H67: 0.3524021314 | I67: 0.589147369 | J67: 35.24223563 | K67: -1.569810092 | L67: 1.300129194 | M67: 74.27902981 | N67: 0.8250876246 | O67: 1.355338209 | P67: 85.32864072 | Q67: -0.6427654268 | R67: 3.568130838 | T67: -0.6427654268 | U67: 3.568130838 | W67: FALSE | X67: FALSE | AQ67: 201574600
A68: 36 | B68: =OFFSET(InputPriceData!B$15,CalculationsAndCharts!$A68+$A$11,0,1,1) -> 2018-10-25 | C68: =OFFSET(InputPriceData!G$15,CalculationsAndCharts!$A68+$A$11,IF($C$7,8,0),1,1) -> 138061500 | D68: =OFFSET(InputPriceData!C$15,CalculationsAndCharts!$A68+$A$11,IF($C$7,8,0),1,1) -> 267.380005 | E68: =OFFSET(InputPriceData!D$15,CalculationsAndCharts!$A68+$A$11,IF($C$7,8,0),1,1) -> 271.809998 | F68: =OFFSET(InputPriceData!E$15,CalculationsAndCharts!$A68+$A$11,IF($C$7,8,0),1,1) -> 266.230011 | G68: =OFFSET(InputPriceData!F$15,CalculationsAndCharts!$A68+$A$11,IF($C$7,8,0),1,1) -> 270.079987 | H68: 0.1674098575 | I68: 0.660467263 | J68: 35.321265 | K68: -1.978050659 | L68: -1.100809987 | M68: 70.87325541 | N68: 0.3995114268 | O68: 2.588785359 | P68: 84.19180662 | Q68: -2.017738439 | R68: 1.322454794 | T68: -2.017738439 | U68: 1.322454794 | W68: TRUE | X68: FALSE | Y68: 8 | AA68: 4 | AP68: 138061500
A69: 37 | B69: =OFFSET(InputPriceData!B$15,CalculationsAndCharts!$A69+$A$11,0,1,1) -> 2018-10-24 | C69: =OFFSET(InputPriceData!G$15,CalculationsAndCharts!$A69+$A$11,IF($C$7,8,0),1,1) -> 177806700 | D69: =OFFSET(InputPriceData!C$15,CalculationsAndCharts!$A69+$A$11,IF($C$7,8,0),1,1) -> 273.329987 | E69: =OFFSET(InputPriceData!D$15,CalculationsAndCharts!$A69+$A$11,IF($C$7,8,0),1,1) -> 273.76001 | F69: =OFFSET(InputPriceData!E$15,CalculationsAndCharts!$A69+$A$11,IF($C$7,8,0),1,1) -> 264.700012 | G69: =OFFSET(InputPriceData!F$15,CalculationsAndCharts!$A69+$A$11,IF($C$7,8,0),1,1) -> 265.320007 | H69: -0.03997686305 | I69: 0.8483105225 | J69: 35.32876126 | K69: -1.632396323 | L69: -2.857646618 | M69: 66.05753961 | N69: -0.4133671759 | O69: 2.262396938 | P69: 77.74613985 | Q69: -2.885335659 | R69: -0.5670979805 | T69: -2.885335659 | U69: -0.5670979805 | W69: FALSE | X69: FALSE | AQ69: 177806700
A70: 38 | B70: =OFFSET(InputPriceData!B$15,CalculationsAndCharts!$A70+$A$11,0,1,1) -> 2018-10-23 | C70: =OFFSET(InputPriceData!G$15,CalculationsAndCharts!$A70+$A$11,IF($C$7,8,0),1,1) -> 146352700 | D70: =OFFSET(InputPriceData!C$15,CalculationsAndCharts!$A70+$A$11,IF($C$7,8,0),1,1) -> 270.950012 | E70: =OFFSET(InputPriceData!D$15,CalculationsAndCharts!$A70+$A$11,IF($C$7,8,0),1,1) -> 274.869995 | F70: =OFFSET(InputPriceData!E$15,CalculationsAndCharts!$A70+$A$11,IF($C$7,8,0),1,1) -> 268.609985 | G70: =OFFSET(InputPriceData!F$15,CalculationsAndCharts!$A70+$A$11,IF($C$7,8,0),1,1) -> 273.609985 | H70: -0.3063463671 | I70: 1.270886285 | J70: 35.06982853 | K70: -0.7350952847 | L70: -2.965029029 | M70: 55.41634711 | N70: -1.123759814 | O70: 0.9171434558 | P70: 72.74687742 | Q70: -2.848901277 | R70: -3.184127021 | T70: -2.848901277 | U70: -3.184127021 | W70: FALSE | X70: FALSE | AP70: 146352700
A71: 39 | B71: =OFFSET(InputPriceData!B$15,CalculationsAndCharts!$A71+$A$11,0,1,1) -> 2018-10-22 | C71: =OFFSET(InputPriceData!G$15,CalculationsAndCharts!$A71+$A$11,IF($C$7,8,0),1,1) -> 82415800 | D71: =OFFSET(InputPriceData!C$15,CalculationsAndCharts!$A71+$A$11,IF($C$7,8,0),1,1) -> 277 | E71: =OFFSET(InputPriceData!D$15,CalculationsAndCharts!$A71+$A$11,IF($C$7,8,0),1,1) -> 277.359985 | F71: =OFFSET(InputPriceData!E$15,CalculationsAndCharts!$A71+$A$11,IF($C$7,8,0),1,1) -> 274.410004 | G71: =OFFSET(InputPriceData!F$15,CalculationsAndCharts!$A71+$A$11,IF($C$7,8,0),1,1) -> 275.01001 | H71: -0.7054046607 | I71: 1.222225568 | J71: 33.88518536 | K71: 0.1959238304 | L71: -2.638575058 | M71: 46.46616999 | N71: -1.41174286 | O71: -2.466035825 | P71: 71.65578703 | Q71: -2.528914578 | R71: -5.69120573 | T71: -2.528914578 | U71: -5.69120573 | W71: FALSE | X71: FALSE | AQ71: 82415800
A72: 40 | B72: =OFFSET(InputPriceData!B$15,CalculationsAndCharts!$A72+$A$11,0,1,1) -> 2018-10-19 | C72: =OFFSET(InputPriceData!G$15,CalculationsAndCharts!$A72+$A$11,IF($C$7,8,0),1,1) -> 139901600 | D72: =OFFSET(InputPriceData!C$15,CalculationsAndCharts!$A72+$A$11,IF($C$7,8,0),1,1) -> 277.130005 | E72: =OFFSET(InputPriceData!D$15,CalculationsAndCharts!$A72+$A$11,IF($C$7,8,0),1,1) -> 279.299988 | F72: =OFFSET(InputPriceData!E$15,CalculationsAndCharts!$A72+$A$11,IF($C$7,8,0),1,1) -> 275.470001 | G72: =OFFSET(InputPriceData!F$15,CalculationsAndCharts!$A72+$A$11,IF($C$7,8,0),1,1) -> 276.25 | H72: -1.089183489 | I72: 0.9869256923 | J72: 32.49025372 | K72: 1.024436399 | L72: -1.379557305 | M72: 40.0446489 | N72: -0.6374076106 | O72: -4.247436591 | P72: 64.17253988 | Q72: -0.8476774445 | R72: -3.39612105 | T72: -0.8476774445 | U72: -3.39612105 | W72: FALSE | X72: TRUE | Z72: 11 | AA72: 4 | AQ72: 139901600
A73: 41 | B73: =OFFSET(InputPriceData!B$15,CalculationsAndCharts!$A73+$A$11,0,1,1) -> 2018-10-18 | C73: =OFFSET(InputPriceData!G$15,CalculationsAndCharts!$A73+$A$11,IF($C$7,8,0),1,1) -> 134557500 | D73: =OFFSET(InputPriceData!C$15,CalculationsAndCharts!$A73+$A$11,IF($C$7,8,0),1,1) -> 279.399994 | E73: =OFFSET(InputPriceData!D$15,CalculationsAndCharts!$A73+$A$11,IF($C$7,8,0),1,1) -> 280.070007 | F73: =OFFSET(InputPriceData!E$15,CalculationsAndCharts!$A73+$A$11,IF($C$7,8,0),1,1) -> 274.970001 | G73: =OFFSET(InputPriceData!F$15,CalculationsAndCharts!$A73+$A$11,IF($C$7,8,0),1,1) -> 276.399994 | H73: -1.399078157 | I73: 0.788793993 | J73: 31.04094466 | K73: 1.457617392 | L73: 0.7955644903 | M73: 37.41534404 | N73: 0.6962874789 | O73: -2.087230931 | P73: 45.90999161 | Q73: 1.048008223 | R73: 2.730267755 | T73: 1.048008223 | U73: 2.730267755 | W73: FALSE | X73: FALSE | AQ73: 134557500
A74: 42 | B74: =OFFSET(InputPriceData!B$15,CalculationsAndCharts!$A74+$A$11,0,1,1) -> 2018-10-17 | C74: =OFFSET(InputPriceData!G$15,CalculationsAndCharts!$A74+$A$11,IF($C$7,8,0),1,1) -> 110626000 | D74: =OFFSET(InputPriceData!C$15,CalculationsAndCharts!$A74+$A$11,IF($C$7,8,0),1,1) -> 280.440002 | E74: =OFFSET(InputPriceData!D$15,CalculationsAndCharts!$A74+$A$11,IF($C$7,8,0),1,1) -> 281.149994 | F74: =OFFSET(InputPriceData!E$15,CalculationsAndCharts!$A74+$A$11,IF($C$7,8,0),1,1) -> 277.559998 | G74: =OFFSET(InputPriceData!F$15,CalculationsAndCharts!$A74+$A$11,IF($C$7,8,0),1,1) -> 280.450012 | H74: -1.64675947 | I74: 0.4957267771 | J74: 29.23546242 | K74: 1.207810142 | L74: 2.777428295 | M74: 34.95895408 | N74: 1.351677991 | O74: 2.061218854 | P74: 41.62148741 | Q74: 1.286784636 | R74: 5.960467198 | T74: 1.286784636 | U74: 5.960467198 | W74: FALSE | X74: FALSE | AP74: 110626000
A75: 43 | B75: =OFFSET(InputPriceData!B$15,CalculationsAndCharts!$A75+$A$11,0,1,1) -> 2018-10-16 | C75: =OFFSET(InputPriceData!G$15,CalculationsAndCharts!$A75+$A$11,IF($C$7,8,0),1,1) -> 118255800 | D75: =OFFSET(InputPriceData!C$15,CalculationsAndCharts!$A75+$A$11,IF($C$7,8,0),1,1) -> 276.600006 | E75: =OFFSET(InputPriceData!D$15,CalculationsAndCharts!$A75+$A$11,IF($C$7,8,0),1,1) -> 280.820007 | F75: =OFFSET(InputPriceData!E$15,CalculationsAndCharts!$A75+$A$11,IF($C$7,8,0),1,1) -> 276.070007 | G75: =OFFSET(InputPriceData!F$15,CalculationsAndCharts!$A75+$A$11,IF($C$7,8,0),1,1) -> 280.399994 | H75: -1.802417678 | I75: -0.3668165404 | J75: 27.21850269 | K75: 0.3356976577 | L75: 2.754116383 | M75: 26.10741646 | N75: 0.7044552712 | O75: 3.252782909 | P75: 35.60250093 | Q75: -0.6679650605 | R75: 3.980347651 | T75: -0.6679650605 | U75: 3.980347651 | W75: FALSE | X75: FALSE | AP75: 118255800
A76: 44 | B76: =OFFSET(InputPriceData!B$15,CalculationsAndCharts!$A76+$A$11,0,1,1) -> 2018-10-15 | C76: =OFFSET(InputPriceData!G$15,CalculationsAndCharts!$A76+$A$11,IF($C$7,8,0),1,1) -> 102263700 | D76: =OFFSET(InputPriceData!C$15,CalculationsAndCharts!$A76+$A$11,IF($C$7,8,0),1,1) -> 275.549988 | E76: =OFFSET(InputPriceData!D$15,CalculationsAndCharts!$A76+$A$11,IF($C$7,8,0),1,1) -> 277.040009 | F76: =OFFSET(InputPriceData!E$15,CalculationsAndCharts!$A76+$A$11,IF($C$7,8,0),1,1) -> 274.299988 | G76: =OFFSET(InputPriceData!F$15,CalculationsAndCharts!$A76+$A$11,IF($C$7,8,0),1,1) -> 274.399994 | H76: -1.687237285 | I76: -1.139086029 | J76: 24.96958594 | K76: -0.5290948864 | L76: 1.808513696 | M76: 18.62918619 | N76: -0.3169185624 | O76: 2.000078527 | P76: 24.68738906 | Q76: -2.459368998 | R76: 0.2565975453 | T76: -2.459368998 | U76: 0.2565975453 | W76: TRUE | X76: FALSE | Y76: 13 | AA76: 7 | AQ76: 102263700
A77: 45 | B77: =OFFSET(InputPriceData!B$15,CalculationsAndCharts!$A77+$A$11,0,1,1) -> 2018-10-12 | C77: =OFFSET(InputPriceData!G$15,CalculationsAndCharts!$A77+$A$11,IF($C$7,8,0),1,1) -> 183186500 | D77: =OFFSET(InputPriceData!C$15,CalculationsAndCharts!$A77+$A$11,IF($C$7,8,0),1,1) -> 276.769989 | E77: =OFFSET(InputPriceData!D$15,CalculationsAndCharts!$A77+$A$11,IF($C$7,8,0),1,1) -> 277.089996 | F77: =OFFSET(InputPriceData!E$15,CalculationsAndCharts!$A77+$A$11,IF($C$7,8,0),1,1) -> 272.369995 | G77: =OFFSET(InputPriceData!F$15,CalculationsAndCharts!$A77+$A$11,IF($C$7,8,0),1,1) -> 275.950012 | H77: -1.329564272 | I77: -1.709886991 | J77: 21.98223223 | K77: -1.096968187 | L77: 0.3177398318 | M77: 15.50828108 | N77: -0.9449432198 | O77: -0.757241654 | P77: 20.77669081 | Q77: -3.169613559 | R77: -3.410607079 | T77: -3.169613559 | U77: -3.410607079 | W77: FALSE | X77: FALSE | AQ77: 183186500
A78: 46 | B78: =OFFSET(InputPriceData!B$15,CalculationsAndCharts!$A78+$A$11,0,1,1) -> 2018-10-11 | C78: =OFFSET(InputPriceData!G$15,CalculationsAndCharts!$A78+$A$11,IF($C$7,8,0),1,1) -> 274840500 | D78: =OFFSET(InputPriceData!C$15,CalculationsAndCharts!$A78+$A$11,IF($C$7,8,0),1,1) -> 277.079987 | E78: =OFFSET(InputPriceData!D$15,CalculationsAndCharts!$A78+$A$11,IF($C$7,8,0),1,1) -> 278.899994 | F78: =OFFSET(InputPriceData!E$15,CalculationsAndCharts!$A78+$A$11,IF($C$7,8,0),1,1) -> 270.359985 | G78: =OFFSET(InputPriceData!F$15,CalculationsAndCharts!$A78+$A$11,IF($C$7,8,0),1,1) -> 272.170013 | H78: -0.7926597562 | I78: -1.896071127 | J78: 18.27760433 | K78: -1.196738494 | L78: -0.9218253989 | M78: 15.45595305 | N78: -0.7071693405 | O78: -2.410411678 | P78: 19.3429692 | Q78: -2.620640555 | R78: -3.496909213 | T78: -2.620640555 | U78: -3.496909213 | W78: FALSE | X78: FALSE | AQ78: 274840500
A79: 47 | B79: =OFFSET(InputPriceData!B$15,CalculationsAndCharts!$A79+$A$11,0,1,1) -> 2018-10-10 | C79: =OFFSET(InputPriceData!G$15,CalculationsAndCharts!$A79+$A$11,IF($C$7,8,0),1,1) -> 214731000 | D79: =OFFSET(InputPriceData!C$15,CalculationsAndCharts!$A79+$A$11,IF($C$7,8,0),1,1) -> 286.829987 | E79: =OFFSET(InputPriceData!D$15,CalculationsAndCharts!$A79+$A$11,IF($C$7,8,0),1,1) -> 286.910004 | F79: =OFFSET(InputPriceData!E$15,CalculationsAndCharts!$A79+$A$11,IF($C$7,8,0),1,1) -> 277.880005 | G79: =OFFSET(InputPriceData!F$15,CalculationsAndCharts!$A79+$A$11,IF($C$7,8,0),1,1) -> 278.299988 | H79: -0.1972934223 | I79: -1.244971235 | J79: 15.19080558 | K79: -0.907285319 | L79: -0.5473946967 | M79: 14.12338339 | N79: 0.04969992654 | O79: -0.1115021232 | P79: 13.05556793 | Q79: -1.02604701 | R79: -0.9442989791 | T79: -1.02604701 | U79: -0.9442989791 | W79: FALSE | X79: FALSE | AQ79: 214731000
A80: 48 | B80: =OFFSET(InputPriceData!B$15,CalculationsAndCharts!$A80+$A$11,0,1,1) -> 2018-10-09 | C80: =OFFSET(InputPriceData!G$15,CalculationsAndCharts!$A80+$A$11,IF($C$7,8,0),1,1) -> 74339000 | D80: =OFFSET(InputPriceData!C$15,CalculationsAndCharts!$A80+$A$11,IF($C$7,8,0),1,1) -> 287.390015 | E80: =OFFSET(InputPriceData!D$15,CalculationsAndCharts!$A80+$A$11,IF($C$7,8,0),1,1) -> 288.859985 | F80: =OFFSET(InputPriceData!E$15,CalculationsAndCharts!$A80+$A$11,IF($C$7,8,0),1,1) -> 286.769989 | G80: =OFFSET(InputPriceData!F$15,CalculationsAndCharts!$A80+$A$11,IF($C$7,8,0),1,1) -> 287.399994 | H80: 0.1936275454 | I80: -0.7395024551 | J80: 14.8894005 | K80: -0.7354033842 | L80: -0.522812167 | M80: 13.3269698 | N80: 0.08471159324 | O80: 1.611434936 | P80: 13.04405181 | Q80: -0.4228331149 | R80: -0.6334011837 | T80: -0.4228331149 | U80: -0.6334011837 | W80: FALSE | X80: FALSE | AP80: 74339000
A81: 49 | B81: =OFFSET(InputPriceData!B$15,CalculationsAndCharts!$A81+$A$11,0,1,1) -> 2018-10-08 | C81: =OFFSET(InputPriceData!G$15,CalculationsAndCharts!$A81+$A$11,IF($C$7,8,0),1,1) -> 87742200 | D81: =OFFSET(InputPriceData!C$15,CalculationsAndCharts!$A81+$A$11,IF($C$7,8,0),1,1) -> 287.049988 | E81: =OFFSET(InputPriceData!D$15,CalculationsAndCharts!$A81+$A$11,IF($C$7,8,0),1,1) -> 288.220001 | F81: =OFFSET(InputPriceData!E$15,CalculationsAndCharts!$A81+$A$11,IF($C$7,8,0),1,1) -> 285.5 | G81: =OFFSET(InputPriceData!F$15,CalculationsAndCharts!$A81+$A$11,IF($C$7,8,0),1,1) -> 287.820007 | H81: 0.4258313163 | I81: -0.6068907819 | J81: 15.6807007 | K81: -0.5712403638 | L81: -1.230770936 | M81: 12.72467512 | N81: -0.4212789768 | O81: 0.676304459 | P81: 10.44321176 | Q81: -0.4325551015 | R81: -1.701221461 | T81: -0.4325551015 | U81: -1.701221461 | W81: FALSE | X81: FALSE | AP81: 87742200
A82: 50 | B82: =OFFSET(InputPriceData!B$15,CalculationsAndCharts!$A82+$A$11,0,1,1) -> 2018-10-05 | C82: =OFFSET(InputPriceData!G$15,CalculationsAndCharts!$A82+$A$11,IF($C$7,8,0),1,1) -> 105951700 | D82: =OFFSET(InputPriceData!C$15,CalculationsAndCharts!$A82+$A$11,IF($C$7,8,0),1,1) -> 289.690002 | E82: =OFFSET(InputPriceData!D$15,CalculationsAndCharts!$A82+$A$11,IF($C$7,8,0),1,1) -> 290.269989 | F82: =OFFSET(InputPriceData!E$15,CalculationsAndCharts!$A82+$A$11,IF($C$7,8,0),1,1) -> 286.220001 | G82: =OFFSET(InputPriceData!F$15,CalculationsAndCharts!$A82+$A$11,IF($C$7,8,0),1,1) -> 287.820007 | H82: 0.6163950218 | I82: -0.3486987044 | J82: 16.6560162 | K82: -0.1847782897 | L82: -1.375309263 | M82: 11.6706256 | N82: -0.6336385769 | O82: -0.7474096272 | P82: 9.817207031 | Q82: -0.02474047094 | R82: -1.748058487 | T82: -0.02474047094 | U82: -1.748058487 | W82: FALSE | X82: FALSE | AP82: =IF(G82>=D82,C82,NA()) ->  | AQ82: =IF(G82<D82,C82,NA()) -> 105951700
A83: 51 | B83: =OFFSET(InputPriceData!B$15,CalculationsAndCharts!$A83+$A$11,0,1,1) -> 2018-10-04 | C83: =OFFSET(InputPriceData!G$15,CalculationsAndCharts!$A83+$A$11,IF($C$7,8,0),1,1) -> 111545900 | D83: =OFFSET(InputPriceData!C$15,CalculationsAndCharts!$A83+$A$11,IF($C$7,8,0),1,1) -> 291.179993 | E83: =OFFSET(InputPriceData!D$15,CalculationsAndCharts!$A83+$A$11,IF($C$7,8,0),1,1) -> 291.23999 | F83: =OFFSET(InputPriceData!E$15,CalculationsAndCharts!$A83+$A$11,IF($C$7,8,0),1,1) -> 287.660004 | G83: =OFFSET(InputPriceData!F$15,CalculationsAndCharts!$A83+$A$11,IF($C$7,8,0),1,1) -> 289.440002 | H83: 0.7258864149 | I83: 0.0683003357 | J83: 17.79315127 | K83: 0.2470688189 | L83: -0.7512665418 | M83: 10.82159235 | N83: -0.398951954 | O83: -1.305993126 | P83: 8.884116443 | Q83: 0.6366625865 | R83: -0.7596877968 | T83: 0.6366625865 | U83: -0.7596877968 | W83: FALSE | X83: TRUE | Z83: 19 | AA83: 6 | AQ83: 111545900
A84: 52 | B84: =OFFSET(InputPriceData!B$15,CalculationsAndCharts!$A84+$A$11,0,1,1) -> 2018-10-03 | C84: =OFFSET(InputPriceData!G$15,CalculationsAndCharts!$A84+$A$11,IF($C$7,8,0),1,1) -> 64694600 | D84: =OFFSET(InputPriceData!C$15,CalculationsAndCharts!$A84+$A$11,IF($C$7,8,0),1,1) -> 292.73999 | E84: =OFFSET(InputPriceData!D$15,CalculationsAndCharts!$A84+$A$11,IF($C$7,8,0),1,1) -> 293.209991 | F84: =OFFSET(InputPriceData!E$15,CalculationsAndCharts!$A84+$A$11,IF($C$7,8,0),1,1) -> 291.320007 | G84: =OFFSET(InputPriceData!F$15,CalculationsAndCharts!$A84+$A$11,IF($C$7,8,0),1,1) -> 291.720001 | H84: 0.7044401095 | I84: 0.4013439075 | J84: 19.08463587 | K84: 0.482966513 | L84: 0.02561147502 | M84: 10.7582464 | N84: 0.01112988772 | O84: -1.070444343 | P84: 7.248369249 | Q84: 1.073914288 | R84: 0.4301644618 | T84: 1.073914288 | U84: 0.4301644618 | W84: FALSE | X84: FALSE | AQ84: 64694600
A85: 53 | B85: =OFFSET(InputPriceData!B$15,CalculationsAndCharts!$A85+$A$11,0,1,1) -> 2018-10-02 | C85: =OFFSET(InputPriceData!G$15,CalculationsAndCharts!$A85+$A$11,IF($C$7,8,0),1,1) -> 47258200 | D85: =OFFSET(InputPriceData!C$15,CalculationsAndCharts!$A85+$A$11,IF($C$7,8,0),1,1) -> 291.559998 | E85: =OFFSET(InputPriceData!D$15,CalculationsAndCharts!$A85+$A$11,IF($C$7,8,0),1,1) -> 292.359985 | F85: =OFFSET(InputPriceData!E$15,CalculationsAndCharts!$A85+$A$11,IF($C$7,8,0),1,1) -> 291.140015 | G85: =OFFSET(InputPriceData!F$15,CalculationsAndCharts!$A85+$A$11,IF($C$7,8,0),1,1) -> 291.559998 | H85: 0.5784181226 | I85: 0.5978586145 | J85: 20.52546526 | K85: 0.4749245098 | L85: 0.6247755436 | M85: 10.69567574 | N85: 0.3472494113 | O85: -0.2179729798 | P85: 6.332343577 | Q85: 1.114126367 | R85: 1.376527265 | T85: 1.114126367 | U85: 1.376527265 | W85: FALSE | X85: FALSE | AP85: 47258200
A86: 54 | B86: =OFFSET(InputPriceData!B$15,CalculationsAndCharts!$A86+$A$11,0,1,1) -> 2018-10-01 | C86: =OFFSET(InputPriceData!G$15,CalculationsAndCharts!$A86+$A$11,IF($C$7,8,0),1,1) -> 62078900 | D86: =OFFSET(InputPriceData!C$15,CalculationsAndCharts!$A86+$A$11,IF($C$7,8,0),1,1) -> 292.109985 | E86: =OFFSET(InputPriceData!D$15,CalculationsAndCharts!$A86+$A$11,IF($C$7,8,0),1,1) -> 292.929993 | F86: =OFFSET(InputPriceData!E$15,CalculationsAndCharts!$A86+$A$11,IF($C$7,8,0),1,1) -> 290.980011 | G86: =OFFSET(InputPriceData!F$15,CalculationsAndCharts!$A86+$A$11,IF($C$7,8,0),1,1) -> 291.730011 | H86: 0.3906905176 | I86: 0.6979853669 | J86: 22.18985058 | K86: 0.2787449891 | L86: 0.9286024206 | M86: 10.58841497 | N86: 0.415692927 | O86: 0.7734996994 | P86: 6.232978618 | Q86: 0.8035559237 | R86: 1.796257689 | T86: 0.8035559237 | U86: 1.796257689 | W86: FALSE | X86: FALSE | AQ86: 62078900
A87: 55 | B87: =OFFSET(InputPriceData!B$15,CalculationsAndCharts!$A87+$A$11,0,1,1) -> 2018-09-28 | C87: =OFFSET(InputPriceData!G$15,CalculationsAndCharts!$A87+$A$11,IF($C$7,8,0),1,1) -> 70091400 | D87: =OFFSET(InputPriceData!C$15,CalculationsAndCharts!$A87+$A$11,IF($C$7,8,0),1,1) -> 289.98999 | E87: =OFFSET(InputPriceData!D$15,CalculationsAndCharts!$A87+$A$11,IF($C$7,8,0),1,1) -> 291.279999 | F87: =OFFSET(InputPriceData!E$15,CalculationsAndCharts!$A87+$A$11,IF($C$7,8,0),1,1) -> 289.950012 | G87: =OFFSET(InputPriceData!F$15,CalculationsAndCharts!$A87+$A$11,IF($C$7,8,0),1,1) -> 290.720001 | H87: 0.1715231124 | I87: 0.7217278462 | J87: 24.00976225 | K87: -0.01283617092 | L87: 0.8652747975 | M87: 10.66355356 | N87: 0.1728140214 | O87: 1.162330621 | P87: 5.947454206 | Q87: 0.2489789808 | R87: 1.519107581 | T87: 0.2489789808 | U87: 1.519107581 | W87: FALSE | X87: FALSE | AP87: 70091400
A88: 56 | B88: =OFFSET(InputPriceData!B$15,CalculationsAndCharts!$A88+$A$11,0,1,1) -> 2018-09-27 | C88: =OFFSET(InputPriceData!G$15,CalculationsAndCharts!$A88+$A$11,IF($C$7,8,0),1,1) -> 59249500 | D88: =OFFSET(InputPriceData!C$15,CalculationsAndCharts!$A88+$A$11,IF($C$7,8,0),1,1) -> 290.410004 | E88: =OFFSET(InputPriceData!D$15,CalculationsAndCharts!$A88+$A$11,IF($C$7,8,0),1,1) -> 291.910004 | F88: =OFFSET(InputPriceData!E$15,CalculationsAndCharts!$A88+$A$11,IF($C$7,8,0),1,1) -> 290.100006 | G88: =OFFSET(InputPriceData!F$15,CalculationsAndCharts!$A88+$A$11,IF($C$7,8,0),1,1) -> 290.690002 | H88: -0.0550994313 | I88: 0.6846191476 | J88: 26.0593144 | K88: -0.2845324573 | L88: 0.4772761428 | M88: 11.11666112 | N88: -0.1921577936 | O88: 0.615489741 | P88: 5.033620818 | Q88: -0.3253920337 | R88: 0.8122785824 | T88: -0.3253920337 | U88: 0.8122785824 | W88: FALSE | X88: FALSE | AP88: 59249500
A89: 57 | B89: =OFFSET(InputPriceData!B$15,CalculationsAndCharts!$A89+$A$11,0,1,1) -> 2018-09-26 | C89: =OFFSET(InputPriceData!G$15,CalculationsAndCharts!$A89+$A$11,IF($C$7,8,0),1,1) -> 79739700 | D89: =OFFSET(InputPriceData!C$15,CalculationsAndCharts!$A89+$A$11,IF($C$7,8,0),1,1) -> 290.910004 | E89: =OFFSET(InputPriceData!D$15,CalculationsAndCharts!$A89+$A$11,IF($C$7,8,0),1,1) -> 292.23999 | F89: =OFFSET(InputPriceData!E$15,CalculationsAndCharts!$A89+$A$11,IF($C$7,8,0),1,1) -> 289.410004 | G89: =OFFSET(InputPriceData!F$15,CalculationsAndCharts!$A89+$A$11,IF($C$7,8,0),1,1) -> 289.880005 | H89: -0.2700698436 | I89: 0.6239859319 | J89: 28.03833604 | K89: -0.4343971662 | L89: -0.03112148001 | M89: 11.36233248 | N89: -0.3854215723 | O89: -0.3761650052 | P89: 4.782451688 | Q89: -0.7057801341 | R89: 0.1641996662 | T89: -0.7057801341 | U89: 0.1641996662 | W89: TRUE | X89: FALSE | Y89: 20 | AA89: 13 | AQ89: 79739700
A90: 58 | B90: =OFFSET(InputPriceData!B$15,CalculationsAndCharts!$A90+$A$11,0,1,1) -> 2018-09-25 | C90: =OFFSET(InputPriceData!G$15,CalculationsAndCharts!$A90+$A$11,IF($C$7,8,0),1,1) -> 44370000 | D90: =OFFSET(InputPriceData!C$15,CalculationsAndCharts!$A90+$A$11,IF($C$7,8,0),1,1) -> 291.529999 | E90: =OFFSET(InputPriceData!D$15,CalculationsAndCharts!$A90+$A$11,IF($C$7,8,0),1,1) -> 291.649994 | F90: =OFFSET(InputPriceData!E$15,CalculationsAndCharts!$A90+$A$11,IF($C$7,8,0),1,1) -> 290.480011 | G90: =OFFSET(InputPriceData!F$15,CalculationsAndCharts!$A90+$A$11,IF($C$7,8,0),1,1) -> 290.75 | H90: -0.4660014263 | I90: 0.5542558484 | J90: 29.73271075 | K90: -0.4246250215 | L90: -0.4486409309 | M90: 11.5854638 | N90: -0.2673057606 | O90: -0.9702811328 | P90: 4.574370857 | Q90: -0.8359091227 | R90: -0.1668807076 | T90: -0.8359091227 | U90: -0.1668807076 | W90: FALSE | X90: FALSE | AQ90: 44370000
A91: 59 | B91: =OFFSET(InputPriceData!B$15,CalculationsAndCharts!$A91+$A$11,0,1,1) -> 2018-09-24 | C91: =OFFSET(InputPriceData!G$15,CalculationsAndCharts!$A91+$A$11,IF($C$7,8,0),1,1) -> 53409600 | D91: =OFFSET(InputPriceData!C$15,CalculationsAndCharts!$A91+$A$11,IF($C$7,8,0),1,1) -> 291.339996 | E91: =OFFSET(InputPriceData!D$15,CalculationsAndCharts!$A91+$A$11,IF($C$7,8,0),1,1) -> 291.5 | F91: =OFFSET(InputPriceData!E$15,CalculationsAndCharts!$A91+$A$11,IF($C$7,8,0),1,1) -> 290.369995 | G91: =OFFSET(InputPriceData!F$15,CalculationsAndCharts!$A91+$A$11,IF($C$7,8,0),1,1) -> 291.019989 | H91: -0.6400377627 | I91: 0.4322627603 | J91: 31.16178852 | K91: -0.2837517692 | L91: -0.7059945708 | M91: 12.81396403 | N91: 0.03736251507 | O91: -0.7679241392 | P91: 3.781448224 | Q91: -0.8089796244 | R91: -0.1054156978 | T91: -0.8089796244 | U91: -0.1054156978 | W91: FALSE | X91: FALSE | AQ91: 53409600
A92: 60 | B92: =OFFSET(InputPriceData!B$15,CalculationsAndCharts!$A92+$A$11,0,1,1) -> 2018-09-21 | C92: =OFFSET(InputPriceData!G$15,CalculationsAndCharts!$A92+$A$11,IF($C$7,8,0),1,1) -> 105479700 | D92: =OFFSET(InputPriceData!C$15,CalculationsAndCharts!$A92+$A$11,IF($C$7,8,0),1,1) -> 293.089996 | E92: =OFFSET(InputPriceData!D$15,CalculationsAndCharts!$A92+$A$11,IF($C$7,8,0),1,1) -> 293.220001 | F92: =OFFSET(InputPriceData!E$15,CalculationsAndCharts!$A92+$A$11,IF($C$7,8,0),1,1) -> 291.809998 | G92: =OFFSET(InputPriceData!F$15,CalculationsAndCharts!$A92+$A$11,IF($C$7,8,0),1,1) -> 291.98999 | H92: -0.7757682694 | I92: 0.3304807492 | J92: 32.49995931 | K92: -0.06206947394 | L92: -0.565235184 | M92: 15.63132301 | N92: 0.2784906948 | O92: 0.3269567488 | P92: 3.229609223 | Q92: -0.731024598 | R92: -0.05742040008 | T92: -0.731024598 | U92: -0.05742040008 | W92: FALSE | X92: FALSE | AQ92: 105479700
A93: 61 | B93: =OFFSET(InputPriceData!B$15,CalculationsAndCharts!$A93+$A$11,0,1,1) -> 2018-09-20 | C93: =OFFSET(InputPriceData!G$15,CalculationsAndCharts!$A93+$A$11,IF($C$7,8,0),1,1) -> 100360600 | D93: =OFFSET(InputPriceData!C$15,CalculationsAndCharts!$A93+$A$11,IF($C$7,8,0),1,1) -> 292.640015 | E93: =OFFSET(InputPriceData!D$15,CalculationsAndCharts!$A93+$A$11,IF($C$7,8,0),1,1) -> 293.940002 | F93: =OFFSET(InputPriceData!E$15,CalculationsAndCharts!$A93+$A$11,IF($C$7,8,0),1,1) -> 291.23999 | G93: =OFFSET(InputPriceData!F$15,CalculationsAndCharts!$A93+$A$11,IF($C$7,8,0),1,1) -> 293.579987 | H93: -0.8795392246 | I93: 0.02332740673 | J93: 33.95150567 | K93: 0.1154143738 | L93: -0.5365266784 | M93: 17.92151236 | N93: 0.1758262757 | O93: 0.7224473258 | P93: 3.080323188 | Q93: -0.7427258583 | R93: -0.4275489664 | T93: -0.7427258583 | U93: -0.4275489664 | W93: FALSE | X93: FALSE | AP93: 100360600
A94: 62 | B94: =OFFSET(InputPriceData!B$15,CalculationsAndCharts!$A94+$A$11,0,1,1) -> 2018-09-19 | C94: =OFFSET(InputPriceData!G$15,CalculationsAndCharts!$A94+$A$11,IF($C$7,8,0),1,1) -> 49080600 | D94: =OFFSET(InputPriceData!C$15,CalculationsAndCharts!$A94+$A$11,IF($C$7,8,0),1,1) -> 290.970001 | E94: =OFFSET(InputPriceData!D$15,CalculationsAndCharts!$A94+$A$11,IF($C$7,8,0),1,1) -> 291.690002 | F94: =OFFSET(InputPriceData!E$15,CalculationsAndCharts!$A94+$A$11,IF($C$7,8,0),1,1) -> 290.829987 | G94: =OFFSET(InputPriceData!F$15,CalculationsAndCharts!$A94+$A$11,IF($C$7,8,0),1,1) -> 291.220001 | H94: -0.8868640304 | I94: -0.3925229378 | J94: 35.49688317 | K94: 0.2838837509 | L94: -0.4906991628 | M94: 18.66472648 | N94: -0.05102218464 | O94: 0.2325227098 | P94: 2.643775106 | Q94: -0.6949358766 | R94: -0.8683226695 | T94: -0.6949358766 | U94: -0.8683226695 | W94: FALSE | X94: FALSE | AP94: 49080600
A95: 63 | B95: =OFFSET(InputPriceData!B$15,CalculationsAndCharts!$A95+$A$11,0,1,1) -> 2018-09-18 | C95: =OFFSET(InputPriceData!G$15,CalculationsAndCharts!$A95+$A$11,IF($C$7,8,0),1,1) -> 61930400 | D95: =OFFSET(InputPriceData!C$15,CalculationsAndCharts!$A95+$A$11,IF($C$7,8,0),1,1) -> 289.579987 | E95: =OFFSET(InputPriceData!D$15,CalculationsAndCharts!$A95+$A$11,IF($C$7,8,0),1,1) -> 291.579987 | F95: =OFFSET(InputPriceData!E$15,CalculationsAndCharts!$A95+$A$11,IF($C$7,8,0),1,1) -> 289.549988 | G95: =OFFSET(InputPriceData!F$15,CalculationsAndCharts!$A95+$A$11,IF($C$7,8,0),1,1) -> 290.910004 | H95: -0.7636118279 | I95: -0.7424581378 | J95: 37.07007452 | K95: 0.437963288 | L95: -0.1667568797 | M95: 20.09293001 | N95: -0.1240343155 | O95: -0.3825669998 | P95: 2.598408645 | Q95: -0.4740113329 | R95: -0.8947314707 | T95: -0.4740113329 | U95: -0.8947314707 | W95: FALSE | X95: FALSE | AP95: 61930400
A96: 64 | B96: =OFFSET(InputPriceData!B$15,CalculationsAndCharts!$A96+$A$11,0,1,1) -> 2018-09-17 | C96: =OFFSET(InputPriceData!G$15,CalculationsAndCharts!$A96+$A$11,IF($C$7,8,0),1,1) -> 68244000 | D96: =OFFSET(InputPriceData!C$15,CalculationsAndCharts!$A96+$A$11,IF($C$7,8,0),1,1) -> 290.820007 | E96: =OFFSET(InputPriceData!D$15,CalculationsAndCharts!$A96+$A$11,IF($C$7,8,0),1,1) -> 290.859985 | F96: =OFFSET(InputPriceData!E$15,CalculationsAndCharts!$A96+$A$11,IF($C$7,8,0),1,1) -> 289.029999 | G96: =OFFSET(InputPriceData!F$15,CalculationsAndCharts!$A96+$A$11,IF($C$7,8,0),1,1) -> 289.339996 | H96: -0.5304799726 | I96: -0.9356943508 | J96: 38.68376855 | K96: 0.4903249482 | L96: 0.4351316208 | M96: 23.51655586 | N96: -0.003908277593 | O96: -0.435933431 | P96: 2.619443058 | Q96: -0.1491950788 | R96: -0.4100398587 | T96: -0.1491950788 | U96: -0.4100398587 | W96: FALSE | X96: FALSE | AQ96: 68244000
A97: 65 | B97: =OFFSET(InputPriceData!B$15,CalculationsAndCharts!$A97+$A$11,0,1,1) -> 2018-09-14 | C97: =OFFSET(InputPriceData!G$15,CalculationsAndCharts!$A97+$A$11,IF($C$7,8,0),1,1) -> 55079900 | D97: =OFFSET(InputPriceData!C$15,CalculationsAndCharts!$A97+$A$11,IF($C$7,8,0),1,1) -> 291.059998 | E97: =OFFSET(InputPriceData!D$15,CalculationsAndCharts!$A97+$A$11,IF($C$7,8,0),1,1) -> 291.269989 | F97: =OFFSET(InputPriceData!E$15,CalculationsAndCharts!$A97+$A$11,IF($C$7,8,0),1,1) -> 290 | G97: =OFFSET(InputPriceData!F$15,CalculationsAndCharts!$A97+$A$11,IF($C$7,8,0),1,1) -> 290.880005 | H97: =IF($A$8-$A97<=1,0,0.5*(1-$F$19)*(G97-G99)+$D$19*(1+$F$19)*H98-$F$19*H99) -> -0.2366719465 | I97: =IF($A$8-$A97<=2,0,($A$16/6.28)*(H97-H98)) -> -0.9647865933 | J97: 40.50131509 | K97: 0.3536936193 | L97: 1.061541614 | M97: 27.19283589 | N97: 0.1329748197 | O97: 0.1221830746 | P97: 2.835598772 | Q97: 0.08832739641 | R97: -0.1666486068 | T97: =IF(OR($R$17=1,$R$17=3),Q97,NA()) -> 0.08832739641 | U97: =IF(OR($R$17=2,$R$17=3),R97,NA()) -> -0.1666486068 | W97: FALSE | X97: FALSE | AQ97: 55079900
A98: 66 | B98: =OFFSET(InputPriceData!B$15,CalculationsAndCharts!$A98+$A$11,0,1,1) -> 2018-09-13 | C98: =OFFSET(InputPriceData!G$15,CalculationsAndCharts!$A98+$A$11,IF($C$7,8,0),1,1) -> 51034200 | D98: =OFFSET(InputPriceData!C$15,CalculationsAndCharts!$A98+$A$11,IF($C$7,8,0),1,1) -> 290.320007 | E98: =OFFSET(InputPriceData!D$15,CalculationsAndCharts!$A98+$A$11,IF($C$7,8,0),1,1) -> 291.040009 | F98: =OFFSET(InputPriceData!E$15,CalculationsAndCharts!$A98+$A$11,IF($C$7,8,0),1,1) -> 290 | G98: =OFFSET(InputPriceData!F$15,CalculationsAndCharts!$A98+$A$11,IF($C$7,8,0),1,1) -> 290.829987 | H98: 0.06627104383 | I98: -1.064051036 | J98: =SUMSQ(OFFSET(H98,0,0,$A$16,1))+SUMSQ(OFFSET(I98,0,0,$A$16,1)) -> 42.97947832 | K98: =IF($A$8-$A98<=1,0,0.5*(1-$F$20)*(G98-G100)+$D$20*(1+$F$20)*K99-$F$20*K100) -> 0.02036955251 | L98: =IF($A$8-$A98<=2,0,($A$16/6.28)*(K98-K99)) -> 0.9741460394 | M98: =SUMSQ(OFFSET(K98,0,0,$A$16,1))+SUMSQ(OFFSET(L98,0,0,$A$16,1)) -> 27.87527752 | N98: =IF($A$8-$A98<=1,0,0.5*(1-$F$21)*(G98-G100)+$D$21*(1+$F$21)*N99-$F$21*N100) -> 0.09460933432 | O98: =IF($A$8-$A98<=2,0,($A$16/6.28)*(N98-N99)) -> 0.1175616357 | P98: =SUMSQ(OFFSET(N98,0,0,$A$16,1))+SUMSQ(OFFSET(O98,0,0,$A$16,1)) -> 3.205989719 | Q98: =IF(J98=0,0,H98+SQRT(M98/J98)*K98+SQRT(P98/J98)*N98) -> 0.1085149724 | R98: =$A$16/12.57*(Q98-Q100) -> -0.4780133442 | T98: 0.1085149724 | U98: -0.4780133442 | W98: =AND($R98>0,$R99<0) -> FALSE | X98: =AND($R98<0,$R99>0) -> FALSE | Y98: =IF(W98,MATCH(TRUE,OFFSET(W98,1,0,$A$8-$A98,1),0),NA()) ->  | Z98: =IF(X98,MATCH(TRUE,OFFSET(X98,1,0,$A$8-$A98,1),0),NA()) ->  | AA98: =IF(W98,MATCH(TRUE,OFFSET(X98,1,0,$A$8-$A98,1),0),IF(X98,MATCH(TRUE,OFFSET(W98,1,0,$A$8-$A98,1),0),NA())) ->  | AP98: 51034200
A99: 67 | B99: =OFFSET(InputPriceData!B$15,CalculationsAndCharts!$A99+$A$11,0,1,1) -> 2018-09-12 | C99: =OFFSET(InputPriceData!G$15,CalculationsAndCharts!$A99+$A$11,IF($C$7,8,0),1,1) -> 59810800 | D99: =OFFSET(InputPriceData!C$15,CalculationsAndCharts!$A99+$A$11,IF($C$7,8,0),1,1) -> 289.059998 | E99: =OFFSET(InputPriceData!D$15,CalculationsAndCharts!$A99+$A$11,IF($C$7,8,0),1,1) -> 289.799988 | F99: =OFFSET(InputPriceData!E$15,CalculationsAndCharts!$A99+$A$11,IF($C$7,8,0),1,1) -> 288.230011 | G99: =OFFSET(InputPriceData!F$15,CalculationsAndCharts!$A99+$A$11,IF($C$7,8,0),1,1) -> 289.119995 | H99: 0.400383069 | I99: -1.061680926 | J99: 45.23909855 | K99: -0.2855123039 | L99: 0.4948502213 | M99: 27.72488618 | N99: 0.0576949807 | O99: 0.007613877284 | P99: 3.564929443 | Q99: 0.1930660458 | R99: -0.8393062408 | T99: 0.1930660458 | U99: -0.8393062408 | W99: FALSE | X99: FALSE | AP99: 59810800
A100: 68 | B100: =OFFSET(InputPriceData!B$15,CalculationsAndCharts!$A100+$A$11,0,1,1) -> 2018-09-11 | C100: =OFFSET(InputPriceData!G$15,CalculationsAndCharts!$A100+$A$11,IF($C$7,8,0),1,1) -> 50530500 | D100: =OFFSET(InputPriceData!C$15,CalculationsAndCharts!$A100+$A$11,IF($C$7,8,0),1,1) -> 287.369995 | E100: =OFFSET(InputPriceData!D$15,CalculationsAndCharts!$A100+$A$11,IF($C$7,8,0),1,1) -> 289.549988 | F100: =OFFSET(InputPriceData!E$15,CalculationsAndCharts!$A100+$A$11,IF($C$7,8,0),1,1) -> 286.980011 | G100: =OFFSET(InputPriceData!F$15,CalculationsAndCharts!$A100+$A$11,IF($C$7,8,0),1,1) -> 289.049988 | H100: 0.7337508796 | I100: -0.9150220536 | J100: 47.3156861 | K100: -0.4408952734 | L100: -0.1321641867 | M100: 28.69205451 | N100: 0.05530422323 | O100: -1.178040714e-05 | P100: 5.310060308 | Q100: 0.4089463592 | R100: -1.171360122 | T100: 0.4089463592 | U100: -1.171360122 | W100: FALSE | X100: FALSE | AP100: 50530500
A101: 69 | B101: =OFFSET(InputPriceData!B$15,CalculationsAndCharts!$A101+$A$11,0,1,1) -> 2018-09-10 | C101: =OFFSET(InputPriceData!G$15,CalculationsAndCharts!$A101+$A$11,IF($C$7,8,0),1,1) -> 50210900 | D101: =OFFSET(InputPriceData!C$15,CalculationsAndCharts!$A101+$A$11,IF($C$7,8,0),1,1) -> 288.73999 | E101: =OFFSET(InputPriceData!D$15,CalculationsAndCharts!$A101+$A$11,IF($C$7,8,0),1,1) -> 289.040009 | F101: =OFFSET(InputPriceData!E$15,CalculationsAndCharts!$A101+$A$11,IF($C$7,8,0),1,1) -> 287.880005 | G101: =OFFSET(InputPriceData!F$15,CalculationsAndCharts!$A101+$A$11,IF($C$7,8,0),1,1) -> 288.100006 | H101: 1.021067804 | I101: -0.6945392495 | J101: 49.53710806 | K101: -0.3993957187 | L101: -0.7921781318 | M101: 31.80687706 | N101: 0.05530792228 | O101: -0.07615777158 | P101: 6.181841611 | Q101: 0.7205700181 | R101: -1.22189529 | T101: 0.7205700181 | U101: -1.22189529 | W101: FALSE | X101: FALSE | AQ101: 50210900
A102: 70 | B102: =OFFSET(InputPriceData!B$15,CalculationsAndCharts!$A102+$A$11,0,1,1) -> 2018-09-07 | C102: =OFFSET(InputPriceData!G$15,CalculationsAndCharts!$A102+$A$11,IF($C$7,8,0),1,1) -> 73524800 | D102: =OFFSET(InputPriceData!C$15,CalculationsAndCharts!$A102+$A$11,IF($C$7,8,0),1,1) -> 286.980011 | E102: =OFFSET(InputPriceData!D$15,CalculationsAndCharts!$A102+$A$11,IF($C$7,8,0),1,1) -> 288.700012 | F102: =OFFSET(InputPriceData!E$15,CalculationsAndCharts!$A102+$A$11,IF($C$7,8,0),1,1) -> 286.709991 | G102: =OFFSET(InputPriceData!F$15,CalculationsAndCharts!$A102+$A$11,IF($C$7,8,0),1,1) -> 287.600006 | H102: 1.239153129 | I102: -0.3211980644 | J102: 51.86497155 | K102: -0.1506517854 | L102: -1.026591146 | M102: 33.98043631 | N102: 0.07922146256 | O102: 0.144056828 | P102: 6.448722093 | Q102: 1.145146196 | R102: -0.6450868245 | T102: 1.145146196 | U102: -0.6450868245 | W102: FALSE | X102: TRUE | Z102: 19 | AA102: 7 | AP102: 73524800
A103: 71 | B103: =OFFSET(InputPriceData!B$15,CalculationsAndCharts!$A103+$A$11,0,1,1) -> 2018-09-06 | C103: =OFFSET(InputPriceData!G$15,CalculationsAndCharts!$A103+$A$11,IF($C$7,8,0),1,1) -> 65909900 | D103: =OFFSET(InputPriceData!C$15,CalculationsAndCharts!$A103+$A$11,IF($C$7,8,0),1,1) -> 289.149994 | E103: =OFFSET(InputPriceData!D$15,CalculationsAndCharts!$A103+$A$11,IF($C$7,8,0),1,1) -> 289.48999 | F103: =OFFSET(InputPriceData!E$15,CalculationsAndCharts!$A103+$A$11,IF($C$7,8,0),1,1) -> 287 | G103: =OFFSET(InputPriceData!F$15,CalculationsAndCharts!$A103+$A$11,IF($C$7,8,0),1,1) -> 288.160004 | H103: 1.340009321 | I103: 0.1656370862 | J103: 54.60435858 | K103: 0.1716978344 | L103: -0.7298070443 | M103: 34.32564332 | N103: 0.03398761858 | O103: 0.4773660602 | P103: 7.256285169 | Q103: 1.488531208 | R103: 0.3009813254 | T103: 1.488531208 | U103: 0.3009813254 | W103: FALSE | X103: FALSE | AQ103: 65909900
A104: 72 | B104: =OFFSET(InputPriceData!B$15,CalculationsAndCharts!$A104+$A$11,0,1,1) -> 2018-09-05 | C104: =OFFSET(InputPriceData!G$15,CalculationsAndCharts!$A104+$A$11,IF($C$7,8,0),1,1) -> 72452400 | D104: =OFFSET(InputPriceData!C$15,CalculationsAndCharts!$A104+$A$11,IF($C$7,8,0),1,1) -> 289.410004 | E104: =OFFSET(InputPriceData!D$15,CalculationsAndCharts!$A104+$A$11,IF($C$7,8,0),1,1) -> 289.640015 | F104: =OFFSET(InputPriceData!E$15,CalculationsAndCharts!$A104+$A$11,IF($C$7,8,0),1,1) -> 287.890015 | G104: =OFFSET(InputPriceData!F$15,CalculationsAndCharts!$A104+$A$11,IF($C$7,8,0),1,1) -> 289.029999 | H104: 1.287999276 | I104: 0.6627217063 | J104: 57.5645423 | K104: 0.4008572463 | L104: -0.1032250041 | M104: 34.34128738 | N104: -0.1159053243 | O104: 0.4653119908 | P104: 9.477574571 | Q104: 1.550583265 | R104: 1.157992563 | T104: 1.550583265 | U104: 1.157992563 | W104: FALSE | X104: FALSE | AQ104: 72452400
A105: 73 | B105: =OFFSET(InputPriceData!B$15,CalculationsAndCharts!$A105+$A$11,0,1,1) -> 2018-09-04 | C105: =OFFSET(InputPriceData!G$15,CalculationsAndCharts!$A105+$A$11,IF($C$7,8,0),1,1) -> 57594400 | D105: =OFFSET(InputPriceData!C$15,CalculationsAndCharts!$A105+$A$11,IF($C$7,8,0),1,1) -> 289.839996 | E105: =OFFSET(InputPriceData!D$15,CalculationsAndCharts!$A105+$A$11,IF($C$7,8,0),1,1) -> 290.209991 | F105: =OFFSET(InputPriceData!E$15,CalculationsAndCharts!$A105+$A$11,IF($C$7,8,0),1,1) -> 288.679993 | G105: =OFFSET(InputPriceData!F$15,CalculationsAndCharts!$A105+$A$11,IF($C$7,8,0),1,1) -> 289.809998 | H105: 1.07990466 | I105: 1.090959986 | J105: 60.30117365 | K105: 0.4332698976 | L105: 0.5664928959 | M105: 35.20360778 | N105: -0.2620132894 | O105: -0.008857256984 | P105: 10.93718158 | Q105: 1.299364445 | R105: 1.687337989 | T105: 1.299364445 | U105: 1.687337989 | W105: FALSE | X105: FALSE | AQ105: 57594400
A106: 74 | B106: =OFFSET(InputPriceData!B$15,CalculationsAndCharts!$A106+$A$11,0,1,1) -> 2018-08-31 | C106: =OFFSET(InputPriceData!G$15,CalculationsAndCharts!$A106+$A$11,IF($C$7,8,0),1,1) -> 66140800 | D106: =OFFSET(InputPriceData!C$15,CalculationsAndCharts!$A106+$A$11,IF($C$7,8,0),1,1) -> 289.839996 | E106: =OFFSET(InputPriceData!D$15,CalculationsAndCharts!$A106+$A$11,IF($C$7,8,0),1,1) -> 290.809998 | F106: =OFFSET(InputPriceData!E$15,CalculationsAndCharts!$A106+$A$11,IF($C$7,8,0),1,1) -> 289.290009 | G106: =OFFSET(InputPriceData!F$15,CalculationsAndCharts!$A106+$A$11,IF($C$7,8,0),1,1) -> 290.309998 | H106: 0.7373432246 | I106: 1.384217934 | J106: 62.4045804 | K106: 0.2553911283 | L106: 0.9746359243 | M106: 36.53741902 | N106: -0.2592321107 | O106: -0.6468204507 | P106: 11.23165789 | Q106: 0.8227849395 | R106: 1.97361928 | T106: 0.8227849395 | U106: 1.97361928 | W106: FALSE | X106: FALSE | AP106: 66140800
A107: 75 | B107: =OFFSET(InputPriceData!B$15,CalculationsAndCharts!$A107+$A$11,0,1,1) -> 2018-08-30 | C107: =OFFSET(InputPriceData!G$15,CalculationsAndCharts!$A107+$A$11,IF($C$7,8,0),1,1) -> 61229500 | D107: =OFFSET(InputPriceData!C$15,CalculationsAndCharts!$A107+$A$11,IF($C$7,8,0),1,1) -> 290.940002 | E107: =OFFSET(InputPriceData!D$15,CalculationsAndCharts!$A107+$A$11,IF($C$7,8,0),1,1) -> 291.359985 | F107: =OFFSET(InputPriceData!E$15,CalculationsAndCharts!$A107+$A$11,IF($C$7,8,0),1,1) -> 289.630005 | G107: =OFFSET(InputPriceData!F$15,CalculationsAndCharts!$A107+$A$11,IF($C$7,8,0),1,1) -> 290.299988 | H107: 0.3026987933 | I107: 1.583741409 | J107: 63.8425469 | K107: -0.05064455196 | L107: 1.095174839 | M107: 37.34928047 | N107: -0.05613048923 | O107: -0.6810970105 | P107: 12.7559001 | Q107: 0.2388725182 | R107: 1.961076021 | T107: 0.2388725182 | U107: 1.961076021 | W107: FALSE | X107: FALSE | AQ107: 61229500
A108: 76 | B108: =OFFSET(InputPriceData!B$15,CalculationsAndCharts!$A108+$A$11,0,1,1) -> 2018-08-29 | C108: =OFFSET(InputPriceData!G$15,CalculationsAndCharts!$A108+$A$11,IF($C$7,8,0),1,1) -> 61485500 | D108: =OFFSET(InputPriceData!C$15,CalculationsAndCharts!$A108+$A$11,IF($C$7,8,0),1,1) -> 290.160004 | E108: =OFFSET(InputPriceData!D$15,CalculationsAndCharts!$A108+$A$11,IF($C$7,8,0),1,1) -> 291.73999 | F108: =OFFSET(InputPriceData!E$15,CalculationsAndCharts!$A108+$A$11,IF($C$7,8,0),1,1) -> 289.890015 | G108: =OFFSET(InputPriceData!F$15,CalculationsAndCharts!$A108+$A$11,IF($C$7,8,0),1,1) -> 291.480011 | H108: -0.1945960092 | I108: 1.553349078 | J108: 64.49294047 | K108: -0.3945294515 | L108: 0.6314816766 | M108: 36.96489405 | N108: 0.1577339721 | O108: -0.3737687826 | P108: 14.83450598 | Q108: -0.4176347778 | R108: 1.487187999 | T108: -0.4176347778 | U108: 1.487187999 | W108: FALSE | X108: FALSE | AP108: 61485500
A109: 77 | B109: =OFFSET(InputPriceData!B$15,CalculationsAndCharts!$A109+$A$11,0,1,1) -> 2018-08-28 | C109: =OFFSET(InputPriceData!G$15,CalculationsAndCharts!$A109+$A$11,IF($C$7,8,0),1,1) -> 46943500 | D109: =OFFSET(InputPriceData!C$15,CalculationsAndCharts!$A109+$A$11,IF($C$7,8,0),1,1) -> 290.299988 | E109: =OFFSET(InputPriceData!D$15,CalculationsAndCharts!$A109+$A$11,IF($C$7,8,0),1,1) -> 290.420013 | F109: =OFFSET(InputPriceData!E$15,CalculationsAndCharts!$A109+$A$11,IF($C$7,8,0),1,1) -> 289.399994 | G109: =OFFSET(InputPriceData!F$15,CalculationsAndCharts!$A109+$A$11,IF($C$7,8,0),1,1) -> 289.920013 | H109: -0.6823476198 | I109: 1.300412471 | J109: 65.06120237 | K109: -0.592814698 | L109: -0.2477327143 | M109: 36.69228593 | N109: 0.2750973698 | O109: 0.0793127127 | P109: 15.40778243 | Q109: -0.9936637609 | R109: 0.6629528642 | T109: -0.9936637609 | U109: 0.6629528642 | W109: TRUE | X109: FALSE | Y109: 20 | AA109: 12 | AQ109: 46943500
A110: 78 | B110: =OFFSET(InputPriceData!B$15,CalculationsAndCharts!$A110+$A$11,0,1,1) -> 2018-08-27 | C110: =OFFSET(InputPriceData!G$15,CalculationsAndCharts!$A110+$A$11,IF($C$7,8,0),1,1) -> 57072400 | D110: =OFFSET(InputPriceData!C$15,CalculationsAndCharts!$A110+$A$11,IF($C$7,8,0),1,1) -> 288.859985 | E110: =OFFSET(InputPriceData!D$15,CalculationsAndCharts!$A110+$A$11,IF($C$7,8,0),1,1) -> 289.899994 | F110: =OFFSET(InputPriceData!E$15,CalculationsAndCharts!$A110+$A$11,IF($C$7,8,0),1,1) -> 288.679993 | G110: =OFFSET(InputPriceData!F$15,CalculationsAndCharts!$A110+$A$11,IF($C$7,8,0),1,1) -> 289.779999 | H110: -1.090677136 | I110: 0.8739897244 | J110: 65.88006755 | K110: -0.5150266257 | L110: -1.159669306 | M110: 36.8850451 | N110: 0.250193178 | O110: 0.396709701 | P110: 16.10813374 | Q110: -1.352332435 | R110: -0.3867637314 | T110: -1.352332435 | U110: -0.3867637314 | W110: FALSE | X110: FALSE | AP110: 57072400
A111: 79 | B111: =OFFSET(InputPriceData!B$15,CalculationsAndCharts!$A111+$A$11,0,1,1) -> 2018-08-24 | C111: =OFFSET(InputPriceData!G$15,CalculationsAndCharts!$A111+$A$11,IF($C$7,8,0),1,1) -> 57487400 | D111: =OFFSET(InputPriceData!C$15,CalculationsAndCharts!$A111+$A$11,IF($C$7,8,0),1,1) -> 286.440002 | E111: =OFFSET(InputPriceData!D$15,CalculationsAndCharts!$A111+$A$11,IF($C$7,8,0),1,1) -> 287.670013 | F111: =OFFSET(InputPriceData!E$15,CalculationsAndCharts!$A111+$A$11,IF($C$7,8,0),1,1) -> 286.380005 | G111: =OFFSET(InputPriceData!F$15,CalculationsAndCharts!$A111+$A$11,IF($C$7,8,0),1,1) -> 287.51001 | H111: -1.365109909 | I111: 0.2667304783 | J111: 67.10961755 | K111: -0.1508904635 | L111: -1.836718391 | M111: 36.52468084 | N111: 0.1256263319 | O111: 0.1532398933 | P111: 18.57780096 | Q111: -1.410329636 | R111: -1.057668096 | T111: -1.410329636 | U111: -1.057668096 | W111: FALSE | X111: FALSE | AP111: 57487400
A112: 80 | B112: =OFFSET(InputPriceData!B$15,CalculationsAndCharts!$A112+$A$11,0,1,1) -> 2018-08-23 | C112: =OFFSET(InputPriceData!G$15,CalculationsAndCharts!$A112+$A$11,IF($C$7,8,0),1,1) -> 49204900 | D112: =OFFSET(InputPriceData!C$15,CalculationsAndCharts!$A112+$A$11,IF($C$7,8,0),1,1) -> 285.970001 | E112: =OFFSET(InputPriceData!D$15,CalculationsAndCharts!$A112+$A$11,IF($C$7,8,0),1,1) -> 286.940002 | F112: =OFFSET(InputPriceData!E$15,CalculationsAndCharts!$A112+$A$11,IF($C$7,8,0),1,1) -> 285.429993 | G112: =OFFSET(InputPriceData!F$15,CalculationsAndCharts!$A112+$A$11,IF($C$7,8,0),1,1) -> 285.790009 | H112: -1.448863279 | I112: -0.251744898 | J112: 68.69827943 | K112: 0.4258391114 | L112: -1.55954924 | M112: 33.82180474 | N112: 0.07750900542 | O112: 0.1707750029 | P112: 19.05260885 | Q112: -1.10925143 | R112: -0.9398524553 | T112: -1.10925143 | U112: -0.9398524553 | W112: FALSE | X112: FALSE | AQ112: 49204900
A113: 81 | B113: =OFFSET(InputPriceData!B$15,CalculationsAndCharts!$A113+$A$11,0,1,1) -> 2018-08-22 | C113: =OFFSET(InputPriceData!G$15,CalculationsAndCharts!$A113+$A$11,IF($C$7,8,0),1,1) -> 44993300 | D113: =OFFSET(InputPriceData!C$15,CalculationsAndCharts!$A113+$A$11,IF($C$7,8,0),1,1) -> 285.880005 | E113: =OFFSET(InputPriceData!D$15,CalculationsAndCharts!$A113+$A$11,IF($C$7,8,0),1,1) -> 286.76001 | F113: =OFFSET(InputPriceData!E$15,CalculationsAndCharts!$A113+$A$11,IF($C$7,8,0),1,1) -> 285.579987 | G113: =OFFSET(InputPriceData!F$15,CalculationsAndCharts!$A113+$A$11,IF($C$7,8,0),1,1) -> 286.170013 | H113: -1.369815382 | I113: -0.6656701408 | J113: 70.32290899 | K113: 0.9155375729 | L113: -0.4540775511 | M113: 31.37671591 | N113: 0.02388565452 | O113: 0.3401858483 | P113: 19.82057214 | Q113: -0.7455852374 | R113: -0.5903353151 | T113: -0.7455852374 | U113: -0.5903353151 | W113: FALSE | X113: FALSE | AP113: 44993300
A114: 82 | B114: =OFFSET(InputPriceData!B$15,CalculationsAndCharts!$A114+$A$11,0,1,1) -> 2018-08-21 | C114: =OFFSET(InputPriceData!G$15,CalculationsAndCharts!$A114+$A$11,IF($C$7,8,0),1,1) -> 67272000 | D114: =OFFSET(InputPriceData!C$15,CalculationsAndCharts!$A114+$A$11,IF($C$7,8,0),1,1) -> 286.25 | E114: =OFFSET(InputPriceData!D$15,CalculationsAndCharts!$A114+$A$11,IF($C$7,8,0),1,1) -> 287.309998 | F114: =OFFSET(InputPriceData!E$15,CalculationsAndCharts!$A114+$A$11,IF($C$7,8,0),1,1) -> 285.709991 | G114: =OFFSET(InputPriceData!F$15,CalculationsAndCharts!$A114+$A$11,IF($C$7,8,0),1,1) -> 286.339996 | H114: -1.160794957 | I114: -1.079976147 | J114: 72.3011171 | K114: 1.058117924 | L114: 0.7937037527 | M114: 30.45817265 | N114: -0.08293270185 | O114: 0.066526532 | P114: 20.84732355 | Q114: -0.5185541621 | R114: -0.5008666517 | T114: -0.5185541621 | U114: -0.5008666517 | W114: FALSE | X114: FALSE | AP114: 67272000
A115: 83 | B115: =OFFSET(InputPriceData!B$15,CalculationsAndCharts!$A115+$A$11,0,1,1) -> 2018-08-20 | C115: =OFFSET(InputPriceData!G$15,CalculationsAndCharts!$A115+$A$11,IF($C$7,8,0),1,1) -> 39807500 | D115: =OFFSET(InputPriceData!C$15,CalculationsAndCharts!$A115+$A$11,IF($C$7,8,0),1,1) -> 285.570007 | E115: =OFFSET(InputPriceData!D$15,CalculationsAndCharts!$A115+$A$11,IF($C$7,8,0),1,1) -> 285.970001 | F115: =OFFSET(InputPriceData!E$15,CalculationsAndCharts!$A115+$A$11,IF($C$7,8,0),1,1) -> 285.059998 | G115: =OFFSET(InputPriceData!F$15,CalculationsAndCharts!$A115+$A$11,IF($C$7,8,0),1,1) -> 285.670013 | H115: -0.8216824471 | I115: -1.439749668 | J115: 74.93783569 | K115: 0.8088949456 | L115: 1.728853526 | M115: 28.8524572 | N115: -0.1038220329 | O115: -0.4147257156 | P115: 20.8741102 | Q115: -0.3745594919 | R115: -0.7333266416 | T115: -0.3745594919 | U115: -0.7333266416 | W115: FALSE | X115: FALSE | AP115: 39807500
A116: 84 | B116: =OFFSET(InputPriceData!B$15,CalculationsAndCharts!$A116+$A$11,0,1,1) -> 2018-08-17 | C116: =OFFSET(InputPriceData!G$15,CalculationsAndCharts!$A116+$A$11,IF($C$7,8,0),1,1) -> 65618500 | D116: =OFFSET(InputPriceData!C$15,CalculationsAndCharts!$A116+$A$11,IF($C$7,8,0),1,1) -> 283.829987 | E116: =OFFSET(InputPriceData!D$15,CalculationsAndCharts!$A116+$A$11,IF($C$7,8,0),1,1) -> 285.559998 | F116: =OFFSET(InputPriceData!E$15,CalculationsAndCharts!$A116+$A$11,IF($C$7,8,0),1,1) -> 283.369995 | G116: =OFFSET(InputPriceData!F$15,CalculationsAndCharts!$A116+$A$11,IF($C$7,8,0),1,1) -> 285.059998 | H116: -0.3696010515 | I116: -1.684599215 | J116: 77.79776225 | K116: 0.2660349384 | L116: 2.008796537 | M116: 25.40831161 | N116: 0.02640184181 | O116: -0.6367981533 | P116: 21.27565918 | Q116: -0.2037594715 | R116: -1.207031065 | T116: -0.2037594715 | U116: -1.207031065 | W116: FALSE | X116: FALSE | AP116: 65618500
A117: 85 | B117: =OFFSET(InputPriceData!B$15,CalculationsAndCharts!$A117+$A$11,0,1,1) -> 2018-08-16 | C117: =OFFSET(InputPriceData!G$15,CalculationsAndCharts!$A117+$A$11,IF($C$7,8,0),1,1) -> 69967900 | D117: =OFFSET(InputPriceData!C$15,CalculationsAndCharts!$A117+$A$11,IF($C$7,8,0),1,1) -> 283.399994 | E117: =OFFSET(InputPriceData!D$15,CalculationsAndCharts!$A117+$A$11,IF($C$7,8,0),1,1) -> 285.040009 | F117: =OFFSET(InputPriceData!E$15,CalculationsAndCharts!$A117+$A$11,IF($C$7,8,0),1,1) -> 283.359985 | G117: =OFFSET(InputPriceData!F$15,CalculationsAndCharts!$A117+$A$11,IF($C$7,8,0),1,1) -> 284.059998 | H117: 0.159363102 | I117: -1.854614088 | J117: 80.34945083 | K117: -0.3647271743 | L117: 1.342157027 | M117: 21.79042801 | N117: 0.226356462 | O117: -0.5930975515 | P117: 21.43393142 | Q117: 0.08633630233 | R117: -1.371036116 | T117: 0.08633630233 | U117: -1.371036116 | W117: FALSE | X117: FALSE | AP117: 69967900
A118: 86 | B118: =OFFSET(InputPriceData!B$15,CalculationsAndCharts!$A118+$A$11,0,1,1) -> 2018-08-15 | C118: =OFFSET(InputPriceData!G$15,CalculationsAndCharts!$A118+$A$11,IF($C$7,8,0),1,1) -> 102925400 | D118: =OFFSET(InputPriceData!C$15,CalculationsAndCharts!$A118+$A$11,IF($C$7,8,0),1,1) -> 282.380005 | E118: =OFFSET(InputPriceData!D$15,CalculationsAndCharts!$A118+$A$11,IF($C$7,8,0),1,1) -> 282.540009 | F118: =OFFSET(InputPriceData!E$15,CalculationsAndCharts!$A118+$A$11,IF($C$7,8,0),1,1) -> 280.160004 | G118: =OFFSET(InputPriceData!F$15,CalculationsAndCharts!$A118+$A$11,IF($C$7,8,0),1,1) -> 281.779999 | H118: 0.7417119257 | I118: -1.687032931 | J118: 81.90628556 | K118: -0.7861644807 | L118: 0.4253580791 | M118: 20.82054591 | N118: 0.4125890931 | O118: 0.4598713173 | P118: 21.12142376 | Q118: 0.5548595528 | R118: -1.149799846 | T118: 0.5548595528 | U118: -1.149799846 | W118: FALSE | X118: FALSE | AQ118: 102925400
A119: 87 | B119: =OFFSET(InputPriceData!B$15,CalculationsAndCharts!$A119+$A$11,0,1,1) -> 2018-08-14 | C119: =OFFSET(InputPriceData!G$15,CalculationsAndCharts!$A119+$A$11,IF($C$7,8,0),1,1) -> 43842000 | D119: =OFFSET(InputPriceData!C$15,CalculationsAndCharts!$A119+$A$11,IF($C$7,8,0),1,1) -> 282.920013 | E119: =OFFSET(InputPriceData!D$15,CalculationsAndCharts!$A119+$A$11,IF($C$7,8,0),1,1) -> 284.170013 | F119: =OFFSET(InputPriceData!E$15,CalculationsAndCharts!$A119+$A$11,IF($C$7,8,0),1,1) -> 282.480011 | G119: =OFFSET(InputPriceData!F$15,CalculationsAndCharts!$A119+$A$11,IF($C$7,8,0),1,1) -> 283.899994 | H119: 1.271440266 | I119: -1.321930475 | J119: 83.33802225 | K119: -0.9197269176 | L119: -0.6690775371 | M119: 20.81567336 | N119: 0.2681894995 | O119: 1.294832784 | P119: 21.50892624 | Q119: 0.9480325015 | R119: -1.15994658 | T119: 0.9480325015 | U119: -1.15994658 | W119: FALSE | X119: FALSE | AP119: 43842000
A120: 88 | B120: =OFFSET(InputPriceData!B$15,CalculationsAndCharts!$A120+$A$11,0,1,1) -> 2018-08-13 | C120: =OFFSET(InputPriceData!G$15,CalculationsAndCharts!$A120+$A$11,IF($C$7,8,0),1,1) -> 65686900 | D120: =OFFSET(InputPriceData!C$15,CalculationsAndCharts!$A120+$A$11,IF($C$7,8,0),1,1) -> 283.470001 | E120: =OFFSET(InputPriceData!D$15,CalculationsAndCharts!$A120+$A$11,IF($C$7,8,0),1,1) -> 284.160004 | F120: =OFFSET(InputPriceData!E$15,CalculationsAndCharts!$A120+$A$11,IF($C$7,8,0),1,1) -> 281.769989 | G120: =OFFSET(InputPriceData!F$15,CalculationsAndCharts!$A120+$A$11,IF($C$7,8,0),1,1) -> 282.100006 | H120: 1.686526435 | I120: -0.8675864539 | J120: 85.14465293 | K120: -0.7096365709 | L120: -1.680206682 | M120: 19.75680951 | N120: -0.1383879948 | O120: 0.9250343901 | P120: 20.06705109 | Q120: 1.277508756 | R120: -0.9897820687 | T120: 1.277508756 | U120: -0.9897820687 | W120: FALSE | X120: FALSE | AQ120: 65686900
A121: 89 | B121: =OFFSET(InputPriceData!B$15,CalculationsAndCharts!$A121+$A$11,0,1,1) -> 2018-08-10 | C121: =OFFSET(InputPriceData!G$15,CalculationsAndCharts!$A121+$A$11,IF($C$7,8,0),1,1) -> 77076000 | D121: =OFFSET(InputPriceData!C$15,CalculationsAndCharts!$A121+$A$11,IF($C$7,8,0),1,1) -> 283.450012 | E121: =OFFSET(InputPriceData!D$15,CalculationsAndCharts!$A121+$A$11,IF($C$7,8,0),1,1) -> 284.059998 | F121: =OFFSET(InputPriceData!E$15,CalculationsAndCharts!$A121+$A$11,IF($C$7,8,0),1,1) -> 282.359985 | G121: =OFFSET(InputPriceData!F$15,CalculationsAndCharts!$A121+$A$11,IF($C$7,8,0),1,1) -> 283.160004 | H121: 1.958948582 | I121: -0.1238877628 | J121: 87.11266736 | K121: -0.1820516727 | L121: -1.710987895 | M121: 16.9437136 | N121: -0.4288487933 | O121: 0.3030316262 | P121: 19.25107542 | Q121: 1.677058927 | R121: -0.4530619376 | T121: 1.677058927 | U121: -0.4530619376 | W121: FALSE | X121: TRUE | Z121: 20 | AA121: 8 | AQ121: 77076000
A122: 90 | B122: =OFFSET(InputPriceData!B$15,CalculationsAndCharts!$A122+$A$11,0,1,1) -> 2018-08-09 | C122: =OFFSET(InputPriceData!G$15,CalculationsAndCharts!$A122+$A$11,IF($C$7,8,0),1,1) -> 35652400 | D122: =OFFSET(InputPriceData!C$15,CalculationsAndCharts!$A122+$A$11,IF($C$7,8,0),1,1) -> 285.529999 | E122: =OFFSET(InputPriceData!D$15,CalculationsAndCharts!$A122+$A$11,IF($C$7,8,0),1,1) -> 285.970001 | F122: =OFFSET(InputPriceData!E$15,CalculationsAndCharts!$A122+$A$11,IF($C$7,8,0),1,1) -> 284.920013 | G122: =OFFSET(InputPriceData!F$15,CalculationsAndCharts!$A122+$A$11,IF($C$7,8,0),1,1) -> 285.070007 | H122: 1.997849339 | I122: 0.6218148623 | J122: 89.34758559 | K122: 0.3551985262 | L122: -1.138255841 | M122: 15.04503425 | N122: -0.5240007239 | O122: -0.7483413172 | P122: 19.37602187 | Q122: 1.899586786 | R122: 0.115807977 | T122: 1.899586786 | U122: 0.115807977 | W122: FALSE | X122: FALSE | AQ122: 35652400
A123: 91 | B123: =OFFSET(InputPriceData!B$15,CalculationsAndCharts!$A123+$A$11,0,1,1) -> 2018-08-08 | C123: =OFFSET(InputPriceData!G$15,CalculationsAndCharts!$A123+$A$11,IF($C$7,8,0),1,1) -> 42114600 | D123: =OFFSET(InputPriceData!C$15,CalculationsAndCharts!$A123+$A$11,IF($C$7,8,0),1,1) -> 285.390015 | E123: =OFFSET(InputPriceData!D$15,CalculationsAndCharts!$A123+$A$11,IF($C$7,8,0),1,1) -> 285.910004 | F123: =OFFSET(InputPriceData!E$15,CalculationsAndCharts!$A123+$A$11,IF($C$7,8,0),1,1) -> 284.940002 | G123: =OFFSET(InputPriceData!F$15,CalculationsAndCharts!$A123+$A$11,IF($C$7,8,0),1,1) -> 285.459991 | H123: 1.802599473 | I123: 1.238498884 | J123: 91.52196706 | K123: 0.7126108603 | L123: -0.2644395652 | M123: 15.48895027 | N123: -0.2890215503 | O123: -1.538437343 | P123: 19.65804201 | Q123: 1.961808355 | R123: 0.9333356579 | T123: 1.961808355 | U123: 0.9333356579 | W123: FALSE | X123: FALSE | AP123: 42114600
A124: 92 | B124: =OFFSET(InputPriceData!B$15,CalculationsAndCharts!$A124+$A$11,0,1,1) -> 2018-08-07 | C124: =OFFSET(InputPriceData!G$15,CalculationsAndCharts!$A124+$A$11,IF($C$7,8,0),1,1) -> 43196600 | D124: =OFFSET(InputPriceData!C$15,CalculationsAndCharts!$A124+$A$11,IF($C$7,8,0),1,1) -> 285.390015 | E124: =OFFSET(InputPriceData!D$15,CalculationsAndCharts!$A124+$A$11,IF($C$7,8,0),1,1) -> 286.01001 | F124: =OFFSET(InputPriceData!E$15,CalculationsAndCharts!$A124+$A$11,IF($C$7,8,0),1,1) -> 285.23999 | G124: =OFFSET(InputPriceData!F$15,CalculationsAndCharts!$A124+$A$11,IF($C$7,8,0),1,1) -> 285.579987 | H124: 1.413710823 | I124: 1.684100725 | J124: 93.80973124 | K124: 0.7956448838 | L124: 0.6329388207 | M124: 16.08911297 | N124: 0.1940477755 | O124: -1.285263306 | P124: 17.40599948 | Q124: 1.826801473 | R124: 1.91099491 | T124: 1.826801473 | U124: 1.91099491 | W124: FALSE | X124: FALSE | AP124: 43196600
A125: 93 | B125: =OFFSET(InputPriceData!B$15,CalculationsAndCharts!$A125+$A$11,0,1,1) -> 2018-08-06 | C125: =OFFSET(InputPriceData!G$15,CalculationsAndCharts!$A125+$A$11,IF($C$7,8,0),1,1) -> 39400900 | D125: =OFFSET(InputPriceData!C$15,CalculationsAndCharts!$A125+$A$11,IF($C$7,8,0),1,1) -> 283.640015 | E125: =OFFSET(InputPriceData!D$15,CalculationsAndCharts!$A125+$A$11,IF($C$7,8,0),1,1) -> 284.98999 | F125: =OFFSET(InputPriceData!E$15,CalculationsAndCharts!$A125+$A$11,IF($C$7,8,0),1,1) -> 283.200012 | G125: =OFFSET(InputPriceData!F$15,CalculationsAndCharts!$A125+$A$11,IF($C$7,8,0),1,1) -> 284.640015 | H125: 0.8849031951 | I125: 1.917482946 | J125: 96.64857961 | K125: 0.5969020941 | L125: 1.219080037 | M125: 15.56332911 | N125: 0.5976204537 | O125: -0.07781717612 | P125: 17.01824783 | Q125: 1.375206894 | R125: 2.695062189 | T125: 1.375206894 | U125: 2.695062189 | W125: FALSE | X125: FALSE | AP125: 39400900
A126: 94 | B126: =OFFSET(InputPriceData!B$15,CalculationsAndCharts!$A126+$A$11,0,1,1) -> 2018-08-03 | C126: =OFFSET(InputPriceData!G$15,CalculationsAndCharts!$A126+$A$11,IF($C$7,8,0),1,1) -> 53935400 | D126: =OFFSET(InputPriceData!C$15,CalculationsAndCharts!$A126+$A$11,IF($C$7,8,0),1,1) -> 282.529999 | E126: =OFFSET(InputPriceData!D$15,CalculationsAndCharts!$A126+$A$11,IF($C$7,8,0),1,1) -> 283.660004 | F126: =OFFSET(InputPriceData!E$15,CalculationsAndCharts!$A126+$A$11,IF($C$7,8,0),1,1) -> 282.329987 | G126: =OFFSET(InputPriceData!F$15,CalculationsAndCharts!$A126+$A$11,IF($C$7,8,0),1,1) -> 283.600006 | H126: 0.2828135502 | I126: 1.95389798 | J126: 99.15382809 | K126: 0.2141109623 | L126: 1.334600226 | M126: 14.48430487 | N126: 0.622055047 | O126: 1.273918251 | P126: 17.46806785 | Q126: 0.6257411719 | R126: 2.850058268 | T126: 0.6257411719 | U126: 2.850058268 | W126: FALSE | X126: FALSE | AP126: 53935400
A127: 95 | B127: =OFFSET(InputPriceData!B$15,CalculationsAndCharts!$A127+$A$11,0,1,1) -> 2018-08-02 | C127: =OFFSET(InputPriceData!G$15,CalculationsAndCharts!$A127+$A$11,IF($C$7,8,0),1,1) -> 63426400 | D127: =OFFSET(InputPriceData!C$15,CalculationsAndCharts!$A127+$A$11,IF($C$7,8,0),1,1) -> 279.390015 | E127: =OFFSET(InputPriceData!D$15,CalculationsAndCharts!$A127+$A$11,IF($C$7,8,0),1,1) -> 282.579987 | F127: =OFFSET(InputPriceData!E$15,CalculationsAndCharts!$A127+$A$11,IF($C$7,8,0),1,1) -> 279.160004 | G127: =OFFSET(InputPriceData!F$15,CalculationsAndCharts!$A127+$A$11,IF($C$7,8,0),1,1) -> 282.390015 | H127: -0.3307104156 | I127: 1.77225495 | J127: 100.9492882 | K127: -0.2049535086 | L127: 0.8806704494 | M127: 13.55366339 | N127: 0.2220447161 | O127: 1.579982846 | P127: 15.55786968 | Q127: -0.318639692 | R127: 2.288841573 | T127: -0.318639692 | U127: 2.288841573 | W127: FALSE | X127: FALSE | AP127: 63426400
A128: 96 | B128: =OFFSET(InputPriceData!B$15,CalculationsAndCharts!$A128+$A$11,0,1,1) -> 2018-08-01 | C128: =OFFSET(InputPriceData!G$15,CalculationsAndCharts!$A128+$A$11,IF($C$7,8,0),1,1) -> 53853300 | D128: =OFFSET(InputPriceData!C$15,CalculationsAndCharts!$A128+$A$11,IF($C$7,8,0),1,1) -> 281.559998 | E128: =OFFSET(InputPriceData!D$15,CalculationsAndCharts!$A128+$A$11,IF($C$7,8,0),1,1) -> 282.130005 | F128: =OFFSET(InputPriceData!E$15,CalculationsAndCharts!$A128+$A$11,IF($C$7,8,0),1,1) -> 280.130005 | G128: =OFFSET(InputPriceData!F$15,CalculationsAndCharts!$A128+$A$11,IF($C$7,8,0),1,1) -> 280.859985 | H128: -0.8871984698 | I128: 1.493955065 | J128: 102.1848607 | K128: -0.4814840297 | L128: 0.2235790792 | M128: 13.44682444 | N128: -0.2740698975 | O128: 0.8140916716 | P128: 14.61793304 | Q128: -1.16552045 | R128: 1.238023218 | T128: -1.16552045 | U128: 1.238023218 | W128: FALSE | X128: FALSE | AQ128: 53853300
A129: 97 | B129: =OFFSET(InputPriceData!B$15,CalculationsAndCharts!$A129+$A$11,0,1,1) -> 2018-07-31 | C129: =OFFSET(InputPriceData!G$15,CalculationsAndCharts!$A129+$A$11,IF($C$7,8,0),1,1) -> 68570500 | D129: =OFFSET(InputPriceData!C$15,CalculationsAndCharts!$A129+$A$11,IF($C$7,8,0),1,1) -> 280.809998 | E129: =OFFSET(InputPriceData!D$15,CalculationsAndCharts!$A129+$A$11,IF($C$7,8,0),1,1) -> 282.019989 | F129: =OFFSET(InputPriceData!E$15,CalculationsAndCharts!$A129+$A$11,IF($C$7,8,0),1,1) -> 280.380005 | G129: =OFFSET(InputPriceData!F$15,CalculationsAndCharts!$A129+$A$11,IF($C$7,8,0),1,1) -> 281.329987 | H129: -1.35630036 | I129: 1.065826151 | J129: 103.2717818 | K129: -0.5516878605 | L129: -0.5488173107 | M129: 13.8586216 | N129: -0.5296946824 | O129: -0.7083388495 | P129: 14.54343542 | Q129: -1.757176621 | R129: 0.09011444435 | T129: -1.757176621 | U129: 0.09011444435 | W129: TRUE | X129: FALSE | Y129: 21 | AA129: 12 | AP129: 68570500
A130: 98 | B130: =OFFSET(InputPriceData!B$15,CalculationsAndCharts!$A130+$A$11,0,1,1) -> 2018-07-30 | C130: =OFFSET(InputPriceData!G$15,CalculationsAndCharts!$A130+$A$11,IF($C$7,8,0),1,1) -> 63742500 | D130: =OFFSET(InputPriceData!C$15,CalculationsAndCharts!$A130+$A$11,IF($C$7,8,0),1,1) -> 281.51001 | E130: =OFFSET(InputPriceData!D$15,CalculationsAndCharts!$A130+$A$11,IF($C$7,8,0),1,1) -> 281.690002 | F130: =OFFSET(InputPriceData!E$15,CalculationsAndCharts!$A130+$A$11,IF($C$7,8,0),1,1) -> 279.359985 | G130: =OFFSET(InputPriceData!F$15,CalculationsAndCharts!$A130+$A$11,IF($C$7,8,0),1,1) -> 279.950012 | H130: -1.690969772 | I130: 0.5688636772 | J130: 104.4553739 | K130: -0.379359225 | L130: -1.051573888 | M130: 13.80987162 | N130: -0.3072762836 | O130: -1.610969806 | P130: 14.55749232 | Q130: -1.943618042 | R130: -0.3938546701 | T130: -1.943618042 | U130: -0.3938546701 | W130: FALSE | X130: FALSE | AQ130: 63742500
A131: 99 | B131: =OFFSET(InputPriceData!B$15,CalculationsAndCharts!$A131+$A$11,0,1,1) -> 2018-07-27 | C131: =OFFSET(InputPriceData!G$15,CalculationsAndCharts!$A131+$A$11,IF($C$7,8,0),1,1) -> 76768700 | D131: =OFFSET(InputPriceData!C$15,CalculationsAndCharts!$A131+$A$11,IF($C$7,8,0),1,1) -> 283.709991 | E131: =OFFSET(InputPriceData!D$15,CalculationsAndCharts!$A131+$A$11,IF($C$7,8,0),1,1) -> 283.820007 | F131: =OFFSET(InputPriceData!E$15,CalculationsAndCharts!$A131+$A$11,IF($C$7,8,0),1,1) -> 280.380005 | G131: =OFFSET(InputPriceData!F$15,CalculationsAndCharts!$A131+$A$11,IF($C$7,8,0),1,1) -> 281.420013 | H131: -1.869592966 | I131: 0.167195208 | J131: 105.5131026 | K131: -0.04916502412 | L131: -0.8312695606 | M131: 12.74465915 | N131: 0.1985682356 | O131: -0.6889433878 | P131: 14.20830611 | Q131: -1.813813549 | R131: -0.2537856937 | T131: -1.813813549 | U131: -0.2537856937 | W131: FALSE | X131: FALSE | AQ131: 76768700
A132: 100 | B132: =OFFSET(InputPriceData!B$15,CalculationsAndCharts!$A132+$A$11,0,1,1) -> 2018-07-26 | C132: =OFFSET(InputPriceData!G$15,CalculationsAndCharts!$A132+$A$11,IF($C$7,8,0),1,1) -> 57919500 | D132: =OFFSET(InputPriceData!C$15,CalculationsAndCharts!$A132+$A$11,IF($C$7,8,0),1,1) -> 283.200012 | E132: =OFFSET(InputPriceData!D$15,CalculationsAndCharts!$A132+$A$11,IF($C$7,8,0),1,1) -> 284.109985 | F132: =OFFSET(InputPriceData!E$15,CalculationsAndCharts!$A132+$A$11,IF($C$7,8,0),1,1) -> 283.089996 | G132: =OFFSET(InputPriceData!F$15,CalculationsAndCharts!$A132+$A$11,IF($C$7,8,0),1,1) -> 283.339996 | H132: -1.922092262 | I132: -0.30458363 | J132: 106.5436373 | K132: 0.2118536179 | L132: -0.3515138609 | M132: 12.53734257 | N132: 0.4148964594 | O132: 0.7943525389 | P132: 14.55294681 | Q132: -1.696080382 | R132: -0.395191627 | T132: -1.696080382 | U132: -0.395191627 | W132: FALSE | X132: FALSE | AP132: 57919500
A133: 101 | B133: =OFFSET(InputPriceData!B$15,CalculationsAndCharts!$A133+$A$11,0,1,1) -> 2018-07-25 | C133: =OFFSET(InputPriceData!G$15,CalculationsAndCharts!$A133+$A$11,IF($C$7,8,0),1,1) -> 78882900 | D133: =OFFSET(InputPriceData!C$15,CalculationsAndCharts!$A133+$A$11,IF($C$7,8,0),1,1) -> 281.329987 | E133: =OFFSET(InputPriceData!D$15,CalculationsAndCharts!$A133+$A$11,IF($C$7,8,0),1,1) -> 284.369995 | F133: =OFFSET(InputPriceData!E$15,CalculationsAndCharts!$A133+$A$11,IF($C$7,8,0),1,1) -> 281.279999 | G133: =OFFSET(InputPriceData!F$15,CalculationsAndCharts!$A133+$A$11,IF($C$7,8,0),1,1) -> 284.01001 | H133: -1.826453002 | I133: -0.9807081416 | J133: 107.7463949 | K133: 0.3222289703 | L133: -0.1483937447 | M133: 13.15503937 | N133: 0.1654697621 | O133: 1.056251915 | P133: 13.95558533 | Q133: -1.654309241 | R133: -1.165325072 | T133: -1.654309241 | U133: -1.165325072 | W133: FALSE | X133: FALSE | AP133: 78882900
A134: 102 | B134: =OFFSET(InputPriceData!B$15,CalculationsAndCharts!$A134+$A$11,0,1,1) -> 2018-07-24 | C134: =OFFSET(InputPriceData!G$15,CalculationsAndCharts!$A134+$A$11,IF($C$7,8,0),1,1) -> 68026900 | D134: =OFFSET(InputPriceData!C$15,CalculationsAndCharts!$A134+$A$11,IF($C$7,8,0),1,1) -> 281.790009 | E134: =OFFSET(InputPriceData!D$15,CalculationsAndCharts!$A134+$A$11,IF($C$7,8,0),1,1) -> 282.559998 | F134: =OFFSET(InputPriceData!E$15,CalculationsAndCharts!$A134+$A$11,IF($C$7,8,0),1,1) -> 280.630005 | G134: =OFFSET(InputPriceData!F$15,CalculationsAndCharts!$A134+$A$11,IF($C$7,8,0),1,1) -> 281.609985 | H134: -1.518510645 | I134: -1.686605297 | J134: 108.7050079 | K134: 0.3688246061 | L134: -0.08849938948 | M134: 13.57406681 | N134: -0.1661933391 | O134: 0.1023232132 | P134: 13.94438673 | Q134: -1.447702445 | R134: -2.012491474 | T134: -1.447702445 | U134: -2.012491474 | W134: FALSE | X134: FALSE | AQ134: 68026900
A135: 103 | B135: =OFFSET(InputPriceData!B$15,CalculationsAndCharts!$A135+$A$11,0,1,1) -> 2018-07-23 | C135: =OFFSET(InputPriceData!G$15,CalculationsAndCharts!$A135+$A$11,IF($C$7,8,0),1,1) -> 47047600 | D135: =OFFSET(InputPriceData!C$15,CalculationsAndCharts!$A135+$A$11,IF($C$7,8,0),1,1) -> 279.450012 | E135: =OFFSET(InputPriceData!D$15,CalculationsAndCharts!$A135+$A$11,IF($C$7,8,0),1,1) -> 280.429993 | F135: =OFFSET(InputPriceData!E$15,CalculationsAndCharts!$A135+$A$11,IF($C$7,8,0),1,1) -> 279.059998 | G135: =OFFSET(InputPriceData!F$15,CalculationsAndCharts!$A135+$A$11,IF($C$7,8,0),1,1) -> 280.200012 | H135: -0.988916582 | I135: -2.151746197 | J135: 108.6447506 | K135: 0.3966134144 | L135: 0.2044449907 | M135: 13.51286371 | N135: -0.1983228281 | O135: -0.7382367304 | P135: 14.66354081 | Q135: -0.9219024331 | R135: -2.367627498 | T135: -0.9219024331 | U135: -2.367627498 | W135: FALSE | X135: FALSE | AP135: 47047600
A136: 104 | B136: =OFFSET(InputPriceData!B$15,CalculationsAndCharts!$A136+$A$11,0,1,1) -> 2018-07-20 | C136: =OFFSET(InputPriceData!G$15,CalculationsAndCharts!$A136+$A$11,IF($C$7,8,0),1,1) -> 82337700 | D136: =OFFSET(InputPriceData!C$15,CalculationsAndCharts!$A136+$A$11,IF($C$7,8,0),1,1) -> 279.769989 | E136: =OFFSET(InputPriceData!D$15,CalculationsAndCharts!$A136+$A$11,IF($C$7,8,0),1,1) -> 280.480011 | F136: =OFFSET(InputPriceData!E$15,CalculationsAndCharts!$A136+$A$11,IF($C$7,8,0),1,1) -> 279.5 | G136: =OFFSET(InputPriceData!F$15,CalculationsAndCharts!$A136+$A$11,IF($C$7,8,0),1,1) -> 279.679993 | H136: -0.3132682762 | I136: -2.329813516 | J136: 107.6794677 | K136: 0.3324176873 | L136: 0.6145347847 | M136: 13.63668 | N136: 0.03348350529 | O136: -0.7505731358 | P136: 14.10880686 | Q136: -0.1828515531 | R136: -2.095970481 | T136: -0.1828515531 | U136: -2.095970481 | W136: FALSE | X136: FALSE | AQ136: 82337700
A137: 105 | B137: =OFFSET(InputPriceData!B$15,CalculationsAndCharts!$A137+$A$11,0,1,1) -> 2018-07-19 | C137: =OFFSET(InputPriceData!G$15,CalculationsAndCharts!$A137+$A$11,IF($C$7,8,0),1,1) -> 61412100 | D137: =OFFSET(InputPriceData!C$15,CalculationsAndCharts!$A137+$A$11,IF($C$7,8,0),1,1) -> 280.309998 | E137: =OFFSET(InputPriceData!D$15,CalculationsAndCharts!$A137+$A$11,IF($C$7,8,0),1,1) -> 280.73999 | F137: =OFFSET(InputPriceData!E$15,CalculationsAndCharts!$A137+$A$11,IF($C$7,8,0),1,1) -> 279.459991 | G137: =OFFSET(InputPriceData!F$15,CalculationsAndCharts!$A137+$A$11,IF($C$7,8,0),1,1) -> 280 | H137: 0.4182931679 | I137: -2.201557533 | J137: 106.5381999 | K137: 0.1394537649 | L137: 0.9721532504 | M137: 13.82124818 | N137: 0.2691634699 | O137: 0.1343328684 | P137: 14.01640811 | Q137: 0.5661514495 | R137: -1.540873143 | T137: 0.5661514495 | U137: -1.540873143 | W137: FALSE | X137: FALSE | AQ137: 61412100
A138: 106 | B138: =OFFSET(InputPriceData!B$15,CalculationsAndCharts!$A138+$A$11,0,1,1) -> 2018-07-18 | C138: =OFFSET(InputPriceData!G$15,CalculationsAndCharts!$A138+$A$11,IF($C$7,8,0),1,1) -> 44593500 | D138: =OFFSET(InputPriceData!C$15,CalculationsAndCharts!$A138+$A$11,IF($C$7,8,0),1,1) -> 280.559998 | E138: =OFFSET(InputPriceData!D$15,CalculationsAndCharts!$A138+$A$11,IF($C$7,8,0),1,1) -> 281.179993 | F138: =OFFSET(InputPriceData!E$15,CalculationsAndCharts!$A138+$A$11,IF($C$7,8,0),1,1) -> 280.059998 | G138: =OFFSET(InputPriceData!F$15,CalculationsAndCharts!$A138+$A$11,IF($C$7,8,0),1,1) -> 281.059998 | H138: 1.109582233 | I138: -1.896518033 | J138: 105.5217922 | K138: -0.1658023557 | L138: 0.8755690266 | M138: 13.56378044 | N138: 0.2269829492 | O138: 0.8471674084 | P138: 14.56460039 | Q138: 1.134465895 | R138: -1.247543814 | T138: 1.134465895 | U138: -1.247543814 | W138: FALSE | X138: FALSE | AP138: 44593500
A139: 107 | B139: =OFFSET(InputPriceData!B$15,CalculationsAndCharts!$A139+$A$11,0,1,1) -> 2018-07-17 | C139: =OFFSET(InputPriceData!G$15,CalculationsAndCharts!$A139+$A$11,IF($C$7,8,0),1,1) -> 52315500 | D139: =OFFSET(InputPriceData!C$15,CalculationsAndCharts!$A139+$A$11,IF($C$7,8,0),1,1) -> 278.470001 | E139: =OFFSET(InputPriceData!D$15,CalculationsAndCharts!$A139+$A$11,IF($C$7,8,0),1,1) -> 280.910004 | F139: =OFFSET(InputPriceData!E$15,CalculationsAndCharts!$A139+$A$11,IF($C$7,8,0),1,1) -> 278.410004 | G139: =OFFSET(InputPriceData!F$15,CalculationsAndCharts!$A139+$A$11,IF($C$7,8,0),1,1) -> 280.470001 | H139: 1.705088896 | I139: -1.504447761 | J139: 104.4501594 | K139: -0.4407310301 | L139: 0.2011334267 | M139: 13.12951769 | N139: -0.03902761698 | O139: 0.5523759899 | P139: 13.90592619 | Q139: 1.53459022 | R139: -1.172118556 | T139: 1.53459022 | U139: -1.172118556 | W139: FALSE | X139: FALSE | AP139: 52315500
A140: 108 | B140: =OFFSET(InputPriceData!B$15,CalculationsAndCharts!$A140+$A$11,0,1,1) -> 2018-07-16 | C140: =OFFSET(InputPriceData!G$15,CalculationsAndCharts!$A140+$A$11,IF($C$7,8,0),1,1) -> 48201000 | D140: =OFFSET(InputPriceData!C$15,CalculationsAndCharts!$A140+$A$11,IF($C$7,8,0),1,1) -> 279.640015 | E140: =OFFSET(InputPriceData!D$15,CalculationsAndCharts!$A140+$A$11,IF($C$7,8,0),1,1) -> 279.799988 | F140: =OFFSET(InputPriceData!E$15,CalculationsAndCharts!$A140+$A$11,IF($C$7,8,0),1,1) -> 278.839996 | G140: =OFFSET(InputPriceData!F$15,CalculationsAndCharts!$A140+$A$11,IF($C$7,8,0),1,1) -> 279.339996 | H140: 2.177485493 | I140: -0.9075511158 | J140: 102.7236577 | K140: -0.503886926 | L140: -0.5095886748 | M140: 13.17954689 | N140: -0.2124736778 | O140: -0.1171286798 | P140: 14.0039532 | Q140: 1.918547182 | R140: -0.9296722888 | T140: 1.918547182 | U140: -0.9296722888 | W140: FALSE | X140: FALSE | AQ140: 48201000
A141: 109 | B141: =OFFSET(InputPriceData!B$15,CalculationsAndCharts!$A141+$A$11,0,1,1) -> 2018-07-13 | C141: =OFFSET(InputPriceData!G$15,CalculationsAndCharts!$A141+$A$11,IF($C$7,8,0),1,1) -> 48216000 | D141: =OFFSET(InputPriceData!C$15,CalculationsAndCharts!$A141+$A$11,IF($C$7,8,0),1,1) -> 279.170013 | E141: =OFFSET(InputPriceData!D$15,CalculationsAndCharts!$A141+$A$11,IF($C$7,8,0),1,1) -> 279.929993 | F141: =OFFSET(InputPriceData!E$15,CalculationsAndCharts!$A141+$A$11,IF($C$7,8,0),1,1) -> 278.660004 | G141: =OFFSET(InputPriceData!F$15,CalculationsAndCharts!$A141+$A$11,IF($C$7,8,0),1,1) -> 279.589996 | H141: 2.462456543 | I141: -0.1550926577 | J141: 100.482465 | K141: -0.3438760821 | L141: -0.9714382506 | M141: 13.15343267 | N141: -0.1756952724 | O141: -0.608125873 | P141: 14.51382577 | Q141: 2.271266732 | R141: -0.5624578271 | T141: 2.271266732 | U141: -0.5624578271 | W141: FALSE | X141: TRUE | Z141: 20 | AA141: 9 | AP141: 48216000
A142: 110 | B142: =OFFSET(InputPriceData!B$15,CalculationsAndCharts!$A142+$A$11,0,1,1) -> 2018-07-12 | C142: =OFFSET(InputPriceData!G$15,CalculationsAndCharts!$A142+$A$11,IF($C$7,8,0),1,1) -> 60124700 | D142: =OFFSET(InputPriceData!C$15,CalculationsAndCharts!$A142+$A$11,IF($C$7,8,0),1,1) -> 278.279999 | E142: =OFFSET(InputPriceData!D$15,CalculationsAndCharts!$A142+$A$11,IF($C$7,8,0),1,1) -> 279.429993 | F142: =OFFSET(InputPriceData!E$15,CalculationsAndCharts!$A142+$A$11,IF($C$7,8,0),1,1) -> 277.600006 | G142: =OFFSET(InputPriceData!F$15,CalculationsAndCharts!$A142+$A$11,IF($C$7,8,0),1,1) -> 279.369995 | H142: 2.511155638 | I142: 0.4965224475 | J142: 97.95088769 | K142: -0.03884447144 | L142: -1.365356907 | M142: 13.00794464 | N142: 0.01525625177 | O142: -1.056588319 | P142: 14.38341188 | Q142: 2.502846215 | R142: 0.1849238506 | T142: 2.502846215 | U142: 0.1849238506 | W142: FALSE | X142: FALSE | AP142: 60124700
A143: 111 | B143: =OFFSET(InputPriceData!B$15,CalculationsAndCharts!$A143+$A$11,0,1,1) -> 2018-07-11 | C143: =OFFSET(InputPriceData!G$15,CalculationsAndCharts!$A143+$A$11,IF($C$7,8,0),1,1) -> 77054700 | D143: =OFFSET(InputPriceData!C$15,CalculationsAndCharts!$A143+$A$11,IF($C$7,8,0),1,1) -> 277.149994 | E143: =OFFSET(InputPriceData!D$15,CalculationsAndCharts!$A143+$A$11,IF($C$7,8,0),1,1) -> 278.040009 | F143: =OFFSET(InputPriceData!E$15,CalculationsAndCharts!$A143+$A$11,IF($C$7,8,0),1,1) -> 276.519989 | G143: =OFFSET(InputPriceData!F$15,CalculationsAndCharts!$A143+$A$11,IF($C$7,8,0),1,1) -> 276.859985 | H143: 2.355247589 | I143: 1.234429957 | J143: 95.32409507 | K143: 0.3898775974 | L143: -1.012867551 | M143: 12.25985602 | N143: 0.3470249841 | O143: -0.2790233784 | P143: 13.31638963 | Q143: 2.624771476 | R143: 1.537874843 | T143: 2.624771476 | U143: 1.537874843 | W143: FALSE | X143: FALSE | AQ143: 77054700
A144: 112 | B144: =OFFSET(InputPriceData!B$15,CalculationsAndCharts!$A144+$A$11,0,1,1) -> 2018-07-10 | C144: =OFFSET(InputPriceData!G$15,CalculationsAndCharts!$A144+$A$11,IF($C$7,8,0),1,1) -> 51966800 | D144: =OFFSET(InputPriceData!C$15,CalculationsAndCharts!$A144+$A$11,IF($C$7,8,0),1,1) -> 278.410004 | E144: =OFFSET(InputPriceData!D$15,CalculationsAndCharts!$A144+$A$11,IF($C$7,8,0),1,1) -> 279.01001 | F144: =OFFSET(InputPriceData!E$15,CalculationsAndCharts!$A144+$A$11,IF($C$7,8,0),1,1) -> 278.079987 | G144: =OFFSET(InputPriceData!F$15,CalculationsAndCharts!$A144+$A$11,IF($C$7,8,0),1,1) -> 278.899994 | H144: 1.967636583 | I144: 1.949879019 | J144: 92.59164171 | K144: 0.7079180083 | L144: -0.08204004682 | M144: 11.75147511 | N144: 0.4346383249 | O144: 1.054937999 | P144: 13.63437377 | Q144: 2.386621575 | R144: 2.543069564 | T144: 2.386621575 | U144: 2.543069564 | W144: FALSE | X144: FALSE | AP144: 51966800
A145: 113 | B145: =OFFSET(InputPriceData!B$15,CalculationsAndCharts!$A145+$A$11,0,1,1) -> 2018-07-09 | C145: =OFFSET(InputPriceData!G$15,CalculationsAndCharts!$A145+$A$11,IF($C$7,8,0),1,1) -> 50550400 | D145: =OFFSET(InputPriceData!C$15,CalculationsAndCharts!$A145+$A$11,IF($C$7,8,0),1,1) -> 276.549988 | E145: =OFFSET(InputPriceData!D$15,CalculationsAndCharts!$A145+$A$11,IF($C$7,8,0),1,1) -> 277.959991 | F145: =OFFSET(InputPriceData!E$15,CalculationsAndCharts!$A145+$A$11,IF($C$7,8,0),1,1) -> 276.5 | G145: =OFFSET(InputPriceData!F$15,CalculationsAndCharts!$A145+$A$11,IF($C$7,8,0),1,1) -> 277.899994 | H145: 1.355374571 | I145: 2.264509389 | J145: 89.4189194 | K145: 0.733678583 | L145: 0.4744889306 | M145: 11.56938665 | N145: 0.1033877931 | O145: 0.8957324952 | P145: 12.68371174 | Q145: 1.658217137 | R145: 2.617087767 | T145: 1.658217137 | U145: 2.617087767 | W145: FALSE | X145: FALSE | AP145: 50550400
A146: 114 | B146: =OFFSET(InputPriceData!B$15,CalculationsAndCharts!$A146+$A$11,0,1,1) -> 2018-07-06 | C146: =OFFSET(InputPriceData!G$15,CalculationsAndCharts!$A146+$A$11,IF($C$7,8,0),1,1) -> 66493700 | D146: =OFFSET(InputPriceData!C$15,CalculationsAndCharts!$A146+$A$11,IF($C$7,8,0),1,1) -> 273.140015 | E146: =OFFSET(InputPriceData!D$15,CalculationsAndCharts!$A146+$A$11,IF($C$7,8,0),1,1) -> 275.839996 | F146: =OFFSET(InputPriceData!E$15,CalculationsAndCharts!$A146+$A$11,IF($C$7,8,0),1,1) -> 272.709991 | G146: =OFFSET(InputPriceData!F$15,CalculationsAndCharts!$A146+$A$11,IF($C$7,8,0),1,1) -> 275.420013 | H146: 0.6443186228 | I146: 2.297392973 | J146: 86.85232068 | K146: 0.5846890588 | L146: 0.7446465533 | M146: 11.19185036 | N146: -0.1778722103 | O146: -0.2607364597 | P146: 11.92276473 | Q146: 0.788302354 | R146: 2.191493722 | T146: 0.788302354 | U146: 2.191493722 | W146: FALSE | X146: FALSE | AP146: =IF(G146>=D146,C146,NA()) -> 66493700 | AQ146: =IF(G146<D146,C146,NA()) -> 
A147: 115 | B147: =OFFSET(InputPriceData!B$15,CalculationsAndCharts!$A147+$A$11,0,1,1) -> 2018-07-05 | C147: =OFFSET(InputPriceData!G$15,CalculationsAndCharts!$A147+$A$11,IF($C$7,8,0),1,1) -> 56925900 | D147: =OFFSET(InputPriceData!C$15,CalculationsAndCharts!$A147+$A$11,IF($C$7,8,0),1,1) -> 272.170013 | E147: =OFFSET(InputPriceData!D$15,CalculationsAndCharts!$A147+$A$11,IF($C$7,8,0),1,1) -> 273.179993 | F147: =OFFSET(InputPriceData!E$15,CalculationsAndCharts!$A147+$A$11,IF($C$7,8,0),1,1) -> 270.959991 | G147: =OFFSET(InputPriceData!F$15,CalculationsAndCharts!$A147+$A$11,IF($C$7,8,0),1,1) -> 273.109985 | H147: -0.07706277083 | I147: 2.11657525 | J147: 85.362052 | K147: 0.3508700411 | L147: 0.7665752698 | M147: 11.17844886 | N147: -0.096000962 | O147: -1.26352555 | P147: 12.36037386 | Q147: 0.01337747576 | R147: 1.91247141 | T147: 0.01337747576 | U147: 1.91247141 | W147: FALSE | X147: FALSE | AP147: 56925900
A148: 116 | B148: =OFFSET(InputPriceData!B$15,CalculationsAndCharts!$A148+$A$11,0,1,1) -> 2018-07-03 | C148: =OFFSET(InputPriceData!G$15,CalculationsAndCharts!$A148+$A$11,IF($C$7,8,0),1,1) -> 42187100 | D148: =OFFSET(InputPriceData!C$15,CalculationsAndCharts!$A148+$A$11,IF($C$7,8,0),1,1) -> 272.869995 | E148: =OFFSET(InputPriceData!D$15,CalculationsAndCharts!$A148+$A$11,IF($C$7,8,0),1,1) -> 272.980011 | F148: =OFFSET(InputPriceData!E$15,CalculationsAndCharts!$A148+$A$11,IF($C$7,8,0),1,1) -> 270.420013 | G148: =OFFSET(InputPriceData!F$15,CalculationsAndCharts!$A148+$A$11,IF($C$7,8,0),1,1) -> 270.899994 | H148: -0.7416673992 | I148: 1.885702377 | J148: 84.49782816 | K148: 0.1101654064 | L148: 0.8255151219 | M148: 11.37537711 | N148: 0.3007460607 | O148: -0.7569106627 | P148: 11.75962513 | Q148: -0.5890514501 | R148: 1.986558182 | T148: -0.5890514501 | U148: 1.986558182 | W148: FALSE | X148: FALSE | AQ148: 42187100
A149: 117 | B149: =OFFSET(InputPriceData!B$15,CalculationsAndCharts!$A149+$A$11,0,1,1) -> 2018-07-02 | C149: =OFFSET(InputPriceData!G$15,CalculationsAndCharts!$A149+$A$11,IF($C$7,8,0),1,1) -> 63554800 | D149: =OFFSET(InputPriceData!C$15,CalculationsAndCharts!$A149+$A$11,IF($C$7,8,0),1,1) -> 269.51001 | E149: =OFFSET(InputPriceData!D$15,CalculationsAndCharts!$A149+$A$11,IF($C$7,8,0),1,1) -> 272.040009 | F149: =OFFSET(InputPriceData!E$15,CalculationsAndCharts!$A149+$A$11,IF($C$7,8,0),1,1) -> 269.23999 | G149: =OFFSET(InputPriceData!F$15,CalculationsAndCharts!$A149+$A$11,IF($C$7,8,0),1,1) -> 271.859985 | H149: -1.333777946 | I149: 1.542778187 | J149: 83.46271122 | K149: -0.1490463419 | L149: 0.7311601399 | M149: 11.12469308 | N149: 0.5384160088 | O149: 0.7116779336 | P149: 11.46832953 | Q149: -1.188610805 | R149: 1.831204522 | T149: -1.188610805 | U149: 1.831204522 | W149: FALSE | X149: FALSE | AP149: 63554800
A150: 118 | B150: =OFFSET(InputPriceData!B$15,CalculationsAndCharts!$A150+$A$11,0,1,1) -> 2018-06-29 | C150: =OFFSET(InputPriceData!G$15,CalculationsAndCharts!$A150+$A$11,IF($C$7,8,0),1,1) -> 97592500 | D150: =OFFSET(InputPriceData!C$15,CalculationsAndCharts!$A150+$A$11,IF($C$7,8,0),1,1) -> 272.119995 | E150: =OFFSET(InputPriceData!D$15,CalculationsAndCharts!$A150+$A$11,IF($C$7,8,0),1,1) -> 273.660004 | F150: =OFFSET(InputPriceData!E$15,CalculationsAndCharts!$A150+$A$11,IF($C$7,8,0),1,1) -> 271.149994 | G150: =OFFSET(InputPriceData!F$15,CalculationsAndCharts!$A150+$A$11,IF($C$7,8,0),1,1) -> 271.279999 | H150: -1.818210296 | I150: 0.9668633008 | J150: 82.1600149 | K150: -0.3786306258 | L150: 0.2028483179 | M150: 10.6865607 | N150: 0.3149491377 | O150: 1.497084924 | P150: 11.36962396 | Q150: -1.837603268 | R150: 0.9810124058 | T150: -1.837603268 | U150: 0.9810124058 | W150: TRUE | X150: FALSE | Y150: 20 | AA150: 11 | AQ150: 97592500
A151: 119 | B151: =OFFSET(InputPriceData!B$15,CalculationsAndCharts!$A151+$A$11,0,1,1) -> 2018-06-28 | C151: =OFFSET(InputPriceData!G$15,CalculationsAndCharts!$A151+$A$11,IF($C$7,8,0),1,1) -> 76650500 | D151: =OFFSET(InputPriceData!C$15,CalculationsAndCharts!$A151+$A$11,IF($C$7,8,0),1,1) -> 269.290009 | E151: =OFFSET(InputPriceData!D$15,CalculationsAndCharts!$A151+$A$11,IF($C$7,8,0),1,1) -> 271.75 | F151: =OFFSET(InputPriceData!E$15,CalculationsAndCharts!$A151+$A$11,IF($C$7,8,0),1,1) -> 268.48999 | G151: =OFFSET(InputPriceData!F$15,CalculationsAndCharts!$A151+$A$11,IF($C$7,8,0),1,1) -> 270.890015 | H151: -2.121805373 | I151: 0.227615423 | J151: 80.60581019 | K151: -0.4423249977 | L151: -0.5389418353 | M151: 10.94020527 | N151: -0.1551355283 | O151: 0.9135896252 | P151: 10.04361309 | Q151: -2.339522847 | R151: -0.2056264714 | T151: -2.339522847 | U151: -0.2056264714 | W151: FALSE | X151: FALSE | AP151: 76650500
A152: 120 | B152: =OFFSET(InputPriceData!B$15,CalculationsAndCharts!$A152+$A$11,0,1,1) -> 2018-06-27 | C152: =OFFSET(InputPriceData!G$15,CalculationsAndCharts!$A152+$A$11,IF($C$7,8,0),1,1) -> 105110700 | D152: =OFFSET(InputPriceData!C$15,CalculationsAndCharts!$A152+$A$11,IF($C$7,8,0),1,1) -> 272.26001 | E152: =OFFSET(InputPriceData!D$15,CalculationsAndCharts!$A152+$A$11,IF($C$7,8,0),1,1) -> 273.869995 | F152: =OFFSET(InputPriceData!E$15,CalculationsAndCharts!$A152+$A$11,IF($C$7,8,0),1,1) -> 269.179993 | G152: =OFFSET(InputPriceData!F$15,CalculationsAndCharts!$A152+$A$11,IF($C$7,8,0),1,1) -> 269.350006 | H152: -2.193276616 | I152: -0.4236804297 | J152: 78.9820526 | K152: -0.2730972614 | L152: -0.8435393483 | M152: 11.28541928 | N152: -0.4420026707 | O152: -0.1020155817 | P152: 10.04916521 | Q152: -2.454169565 | R152: -1.209932231 | T152: -2.454169565 | U152: -1.209932231 | W152: FALSE | X152: FALSE | AQ152: 105110700
A153: 121 | B153: =OFFSET(InputPriceData!B$15,CalculationsAndCharts!$A153+$A$11,0,1,1) -> 2018-06-26 | C153: =OFFSET(InputPriceData!G$15,CalculationsAndCharts!$A153+$A$11,IF($C$7,8,0),1,1) -> 68547400 | D153: =OFFSET(InputPriceData!C$15,CalculationsAndCharts!$A153+$A$11,IF($C$7,8,0),1,1) -> 271.640015 | E153: =OFFSET(InputPriceData!D$15,CalculationsAndCharts!$A153+$A$11,IF($C$7,8,0),1,1) -> 272.559998 | F153: =OFFSET(InputPriceData!E$15,CalculationsAndCharts!$A153+$A$11,IF($C$7,8,0),1,1) -> 270.790009 | G153: =OFFSET(InputPriceData!F$15,CalculationsAndCharts!$A153+$A$11,IF($C$7,8,0),1,1) -> 271.600006 | H153: -2.060240961 | I153: -1.005852495 | J153: 77.32369988 | K153: -0.008225906016 | L153: -0.7381138013 | M153: 11.49153746 | N153: -0.409969778 | O153: -0.9817201915 | P153: 9.924342705 | Q153: -2.21028661 | R153: -1.730452123 | T153: -2.21028661 | U153: -1.730452123 | W153: FALSE | X153: FALSE | AQ153: 68547400
A154: 122 | B154: =OFFSET(InputPriceData!B$15,CalculationsAndCharts!$A154+$A$11,0,1,1) -> 2018-06-25 | C154: =OFFSET(InputPriceData!G$15,CalculationsAndCharts!$A154+$A$11,IF($C$7,8,0),1,1) -> 137854200 | D154: =OFFSET(InputPriceData!C$15,CalculationsAndCharts!$A154+$A$11,IF($C$7,8,0),1,1) -> 273.440002 | E154: =OFFSET(InputPriceData!D$15,CalculationsAndCharts!$A154+$A$11,IF($C$7,8,0),1,1) -> 273.619995 | F154: =OFFSET(InputPriceData!E$15,CalculationsAndCharts!$A154+$A$11,IF($C$7,8,0),1,1) -> 269.100006 | G154: =OFFSET(InputPriceData!F$15,CalculationsAndCharts!$A154+$A$11,IF($C$7,8,0),1,1) -> 271 | H154: -1.744403277 | I154: -1.430843067 | J154: 75.7022393 | K154: 0.2235418276 | L154: -0.1808029004 | M154: 11.43588563 | N154: -0.1017096379 | O154: -0.8642334715 | P154: 9.593751328 | Q154: -1.693727158 | R154: -1.670913365 | T154: -1.693727158 | U154: -1.670913365 | W154: FALSE | X154: FALSE | AQ154: 137854200
A155: 123 | B155: =OFFSET(InputPriceData!B$15,CalculationsAndCharts!$A155+$A$11,0,1,1) -> 2018-06-22 | C155: =OFFSET(InputPriceData!G$15,CalculationsAndCharts!$A155+$A$11,IF($C$7,8,0),1,1) -> 54898500 | D155: =OFFSET(InputPriceData!C$15,CalculationsAndCharts!$A155+$A$11,IF($C$7,8,0),1,1) -> 275.660004 | E155: =OFFSET(InputPriceData!D$15,CalculationsAndCharts!$A155+$A$11,IF($C$7,8,0),1,1) -> 275.790009 | F155: =OFFSET(InputPriceData!E$15,CalculationsAndCharts!$A155+$A$11,IF($C$7,8,0),1,1) -> 274.48999 | G155: =OFFSET(InputPriceData!F$15,CalculationsAndCharts!$A155+$A$11,IF($C$7,8,0),1,1) -> 274.73999 | H155: -1.295118554 | I155: -1.722019961 | J155: 73.83220453 | K155: 0.2803139383 | L155: 0.4943079422 | M155: 12.07594598 | N155: 0.1696596722 | O155: 0.02840892123 | P155: 8.945512951 | Q155: -1.122697451 | R155: -1.44052975 | T155: -1.122697451 | U155: -1.44052975 | W155: FALSE | X155: FALSE | AQ155: 54898500
A156: 124 | B156: =OFFSET(InputPriceData!B$15,CalculationsAndCharts!$A156+$A$11,0,1,1) -> 2018-06-21 | C156: =OFFSET(InputPriceData!G$15,CalculationsAndCharts!$A156+$A$11,IF($C$7,8,0),1,1) -> 71061400 | D156: =OFFSET(InputPriceData!C$15,CalculationsAndCharts!$A156+$A$11,IF($C$7,8,0),1,1) -> 275.959991 | E156: =OFFSET(InputPriceData!D$15,CalculationsAndCharts!$A156+$A$11,IF($C$7,8,0),1,1) -> 275.980011 | F156: =OFFSET(InputPriceData!E$15,CalculationsAndCharts!$A156+$A$11,IF($C$7,8,0),1,1) -> 273.679993 | G156: =OFFSET(InputPriceData!F$15,CalculationsAndCharts!$A156+$A$11,IF($C$7,8,0),1,1) -> 274.23999 | H156: -0.7544042863 | I156: -1.953400729 | J156: 72.24046304 | K156: 0.1251012445 | L156: 0.8106000091 | M156: 13.60365289 | N156: 0.1607392709 | O156: 0.6680159504 | P156: 8.944094673 | Q156: -0.6435581078 | R156: -1.345465586 | T156: -0.6435581078 | U156: -1.345465586 | W156: FALSE | X156: FALSE | AQ156: 71061400
A157: 125 | B157: =OFFSET(InputPriceData!B$15,CalculationsAndCharts!$A157+$A$11,0,1,1) -> 2018-06-20 | C157: =OFFSET(InputPriceData!G$15,CalculationsAndCharts!$A157+$A$11,IF($C$7,8,0),1,1) -> 53785500 | D157: =OFFSET(InputPriceData!C$15,CalculationsAndCharts!$A157+$A$11,IF($C$7,8,0),1,1) -> 276.269989 | E157: =OFFSET(InputPriceData!D$15,CalculationsAndCharts!$A157+$A$11,IF($C$7,8,0),1,1) -> 276.720001 | F157: =OFFSET(InputPriceData!E$15,CalculationsAndCharts!$A157+$A$11,IF($C$7,8,0),1,1) -> 275.589996 | G157: =OFFSET(InputPriceData!F$15,CalculationsAndCharts!$A157+$A$11,IF($C$7,8,0),1,1) -> 275.970001 | H157: -0.1410364575 | I157: -1.996378152 | J157: 70.876643 | K157: -0.1294271584 | L157: 0.830849064 | M157: 14.85180906 | N157: -0.04901773751 | O157: 0.7976740155 | P157: 8.566606562 | Q157: -0.2173245028 | R157: -1.469631356 | T157: -0.2173245028 | U157: -1.469631356 | W157: FALSE | X157: FALSE | AQ157: 53785500
A158: 126 | B158: =OFFSET(InputPriceData!B$15,CalculationsAndCharts!$A158+$A$11,0,1,1) -> 2018-06-19 | C158: =OFFSET(InputPriceData!G$15,CalculationsAndCharts!$A158+$A$11,IF($C$7,8,0),1,1) -> 97531500 | D158: =OFFSET(InputPriceData!C$15,CalculationsAndCharts!$A158+$A$11,IF($C$7,8,0),1,1) -> 274 | E158: =OFFSET(InputPriceData!D$15,CalculationsAndCharts!$A158+$A$11,IF($C$7,8,0),1,1) -> 275.75 | F158: =OFFSET(InputPriceData!E$15,CalculationsAndCharts!$A158+$A$11,IF($C$7,8,0),1,1) -> 273.529999 | G158: =OFFSET(InputPriceData!F$15,CalculationsAndCharts!$A158+$A$11,IF($C$7,8,0),1,1) -> 275.5 | H158: 0.4858262824 | I158: -1.876244505 | J158: 69.7867118 | K158: -0.3903137645 | L158: 0.4555260198 | M158: 15.23709868 | N158: -0.2994873784 | O158: 0.1443848554 | P158: 7.99666433 | Q158: 0.2020670127 | R158: -1.635992451 | T158: 0.2020670127 | U158: -1.635992451 | W158: FALSE | X158: FALSE | AP158: 97531500
A159: 127 | B159: =OFFSET(InputPriceData!B$15,CalculationsAndCharts!$A159+$A$11,0,1,1) -> 2018-06-18 | C159: =OFFSET(InputPriceData!G$15,CalculationsAndCharts!$A159+$A$11,IF($C$7,8,0),1,1) -> 52917600 | D159: =OFFSET(InputPriceData!C$15,CalculationsAndCharts!$A159+$A$11,IF($C$7,8,0),1,1) -> 275.48999 | E159: =OFFSET(InputPriceData!D$15,CalculationsAndCharts!$A159+$A$11,IF($C$7,8,0),1,1) -> 276.700012 | F159: =OFFSET(InputPriceData!E$15,CalculationsAndCharts!$A159+$A$11,IF($C$7,8,0),1,1) -> 274.950012 | G159: =OFFSET(InputPriceData!F$15,CalculationsAndCharts!$A159+$A$11,IF($C$7,8,0),1,1) -> 276.559998 | H159: 1.074967057 | I159: -1.512823637 | J159: 69.07593482 | K159: -0.5333489347 | L159: -0.01632830605 | M159: 15.3846019 | N159: -0.344824223 | O159: -0.5345705337 | P159: 7.942109592 | Q159: 0.7063388046 | R159: -1.531524586 | T159: 0.7063388046 | U159: -1.531524586 | W159: FALSE | X159: FALSE | AP159: 52917600
A160: 128 | B160: =OFFSET(InputPriceData!B$15,CalculationsAndCharts!$A160+$A$11,0,1,1) -> 2018-06-15 | C160: =OFFSET(InputPriceData!G$15,CalculationsAndCharts!$A160+$A$11,IF($C$7,8,0),1,1) -> 120041600 | D160: =OFFSET(InputPriceData!C$15,CalculationsAndCharts!$A160+$A$11,IF($C$7,8,0),1,1) -> 276.600006 | E160: =OFFSET(InputPriceData!D$15,CalculationsAndCharts!$A160+$A$11,IF($C$7,8,0),1,1) -> 277.51001 | F160: =OFFSET(InputPriceData!E$15,CalculationsAndCharts!$A160+$A$11,IF($C$7,8,0),1,1) -> 275.350006 | G160: =OFFSET(InputPriceData!F$15,CalculationsAndCharts!$A160+$A$11,IF($C$7,8,0),1,1) -> 277.130005 | H160: 1.549993679 | I160: -0.9599057335 | J160: 68.87829605 | K160: -0.5282218466 | L160: -0.4565633661 | M160: 16.68172549 | N160: -0.1769690754 | O160: -0.7330884716 | P160: 7.85220116 | Q160: 1.230288268 | R160: -1.18314944 | T160: 1.230288268 | U160: -1.18314944 | W160: FALSE | X160: FALSE | AP160: 120041600
A161: 129 | B161: =OFFSET(InputPriceData!B$15,CalculationsAndCharts!$A161+$A$11,0,1,1) -> 2018-06-14 | C161: =OFFSET(InputPriceData!G$15,CalculationsAndCharts!$A161+$A$11,IF($C$7,8,0),1,1) -> 77097600 | D161: =OFFSET(InputPriceData!C$15,CalculationsAndCharts!$A161+$A$11,IF($C$7,8,0),1,1) -> 279.01001 | E161: =OFFSET(InputPriceData!D$15,CalculationsAndCharts!$A161+$A$11,IF($C$7,8,0),1,1) -> 279.329987 | F161: =OFFSET(InputPriceData!E$15,CalculationsAndCharts!$A161+$A$11,IF($C$7,8,0),1,1) -> 278.059998 | G161: =OFFSET(InputPriceData!F$15,CalculationsAndCharts!$A161+$A$11,IF($C$7,8,0),1,1) -> 278.730011 | H161: =IF($A$8-$A161<=1,0,0.5*(1-$F$19)*(G161-G163)+$D$19*(1+$F$19)*H162-$F$19*H163) -> 1.851404079 | I161: =IF($A$8-$A161<=2,0,($A$16/6.28)*(H161-H162)) -> -0.3584292779 | J161: 68.90144202 | K161: -0.3848609496 | L161: -0.8765483801 | M161: 18.57726721 | N161: 0.05322070469 | O161: -0.5171455986 | P161: 7.311720845 | Q161: 1.668902007 | R161: -0.6315615608 | T161: =IF(OR($R$17=1,$R$17=3),Q161,NA()) -> 1.668902007 | U161: =IF(OR($R$17=2,$R$17=3),R161,NA()) -> -0.6315615608 | W161: FALSE | X161: TRUE | Z161: 20 | AA161: 9 | AQ161: 77097600
A162: 130 | B162: =OFFSET(InputPriceData!B$15,CalculationsAndCharts!$A162+$A$11,0,1,1) -> 2018-06-13 | C162: =OFFSET(InputPriceData!G$15,CalculationsAndCharts!$A162+$A$11,IF($C$7,8,0),1,1) -> 79070600 | D162: =OFFSET(InputPriceData!C$15,CalculationsAndCharts!$A162+$A$11,IF($C$7,8,0),1,1) -> 279.190002 | E162: =OFFSET(InputPriceData!D$15,CalculationsAndCharts!$A162+$A$11,IF($C$7,8,0),1,1) -> 279.480011 | F162: =OFFSET(InputPriceData!E$15,CalculationsAndCharts!$A162+$A$11,IF($C$7,8,0),1,1) -> 277.799988 | G162: =OFFSET(InputPriceData!F$15,CalculationsAndCharts!$A162+$A$11,IF($C$7,8,0),1,1) -> 278.029999 | H162: 1.963950872 | I162: 0.2618043611 | J162: =SUMSQ(OFFSET(H162,0,0,$A$16,1))+SUMSQ(OFFSET(I162,0,0,$A$16,1)) -> 69.01883191 | K162: =IF($A$8-$A162<=1,0,0.5*(1-$F$20)*(G162-G164)+$D$20*(1+$F$20)*K163-$F$20*K164) -> -0.1096247583 | L162: =IF($A$8-$A162<=2,0,($A$16/6.28)*(K162-K163)) -> -1.051476185 | M162: =SUMSQ(OFFSET(K162,0,0,$A$16,1))+SUMSQ(OFFSET(L162,0,0,$A$16,1)) -> 20.16594112 | N162: =IF($A$8-$A162<=1,0,0.5*(1-$F$21)*(G162-G164)+$D$21*(1+$F$21)*N163-$F$21*N164) -> 0.2156044226 | O162: =IF($A$8-$A162<=2,0,($A$16/6.28)*(N162-N163)) -> 0.05571460789 | P162: =SUMSQ(OFFSET(N162,0,0,$A$16,1))+SUMSQ(OFFSET(O162,0,0,$A$16,1)) -> 7.11054451 | Q162: =IF(J162=0,0,H162+SQRT(M162/J162)*K162+SQRT(P162/J162)*N162) -> 1.973897691 | R162: =$A$16/12.57*(Q162-Q164) -> 0.19986463 | T162: 1.973897691 | U162: 0.19986463 | W162: =AND($R162>0,$R163<0) -> FALSE | X162: =AND($R162<0,$R163>0) -> FALSE | Y162: =IF(W162,MATCH(TRUE,OFFSET(W162,1,0,$A$8-$A162,1),0),NA()) ->  | Z162: =IF(X162,MATCH(TRUE,OFFSET(X162,1,0,$A$8-$A162,1),0),NA()) ->  | AA162: =IF(W162,MATCH(TRUE,OFFSET(X162,1,0,$A$8-$A162,1),0),IF(X162,MATCH(TRUE,OFFSET(W162,1,0,$A$8-$A162,1),0),NA())) ->  | AQ162: 79070600
A163: 131 | B163: =OFFSET(InputPriceData!B$15,CalculationsAndCharts!$A163+$A$11,0,1,1) -> 2018-06-12 | C163: =OFFSET(InputPriceData!G$15,CalculationsAndCharts!$A163+$A$11,IF($C$7,8,0),1,1) -> 72329000 | D163: =OFFSET(InputPriceData!C$15,CalculationsAndCharts!$A163+$A$11,IF($C$7,8,0),1,1) -> 279.029999 | E163: =OFFSET(InputPriceData!D$15,CalculationsAndCharts!$A163+$A$11,IF($C$7,8,0),1,1) -> 279.329987 | F163: =OFFSET(InputPriceData!E$15,CalculationsAndCharts!$A163+$A$11,IF($C$7,8,0),1,1) -> 278.190002 | G163: =OFFSET(InputPriceData!F$15,CalculationsAndCharts!$A163+$A$11,IF($C$7,8,0),1,1) -> 278.920013 | H163: 1.881744303 | I163: 0.8930809301 | J163: 69.17661531 | K163: 0.2205387638 | L163: -0.7879638022 | M163: 20.15584428 | N163: 0.1981100358 | O163: 0.6906641305 | P163: 7.458461214 | Q163: 2.065838448 | R163: 1.029446066 | T163: 2.065838448 | U163: 1.029446066 | W163: FALSE | X163: FALSE | AQ163: 72329000
A164: 132 | B164: =OFFSET(InputPriceData!B$15,CalculationsAndCharts!$A164+$A$11,0,1,1) -> 2018-06-11 | C164: =OFFSET(InputPriceData!G$15,CalculationsAndCharts!$A164+$A$11,IF($C$7,8,0),1,1) -> 58892500 | D164: =OFFSET(InputPriceData!C$15,CalculationsAndCharts!$A164+$A$11,IF($C$7,8,0),1,1) -> 278.440002 | E164: =OFFSET(InputPriceData!D$15,CalculationsAndCharts!$A164+$A$11,IF($C$7,8,0),1,1) -> 279.369995 | F164: =OFFSET(InputPriceData!E$15,CalculationsAndCharts!$A164+$A$11,IF($C$7,8,0),1,1) -> 278.309998 | G164: =OFFSET(InputPriceData!F$15,CalculationsAndCharts!$A164+$A$11,IF($C$7,8,0),1,1) -> 278.559998 | H164: 1.601316891 | I164: 1.391647876 | J164: 69.46483383 | K164: 0.4679593977 | L164: -0.3268088398 | M164: 20.3215557 | N164: -0.01875850123 | O164: 0.5922758982 | P164: 7.444975243 | Q164: 1.848282771 | R164: 1.601850186 | T164: 1.848282771 | U164: 1.601850186 | W164: FALSE | X164: FALSE | AP164: 58892500
A165: 133 | B165: =OFFSET(InputPriceData!B$15,CalculationsAndCharts!$A165+$A$11,0,1,1) -> 2018-06-08 | C165: =OFFSET(InputPriceData!G$15,CalculationsAndCharts!$A165+$A$11,IF($C$7,8,0),1,1) -> 72139700 | D165: =OFFSET(InputPriceData!C$15,CalculationsAndCharts!$A165+$A$11,IF($C$7,8,0),1,1) -> 276.850006 | E165: =OFFSET(InputPriceData!D$15,CalculationsAndCharts!$A165+$A$11,IF($C$7,8,0),1,1) -> 278.25 | F165: =OFFSET(InputPriceData!E$15,CalculationsAndCharts!$A165+$A$11,IF($C$7,8,0),1,1) -> 276.660004 | G165: =OFFSET(InputPriceData!F$15,CalculationsAndCharts!$A165+$A$11,IF($C$7,8,0),1,1) -> 278.190002 | H165: 1.164339458 | I165: 1.744350281 | J165: 69.65128238 | K165: 0.5705773734 | L165: 0.2456199926 | M165: 21.98362822 | N165: -0.2047331333 | O165: -0.1008120669 | P165: 7.251696937 | Q165: 1.418831596 | R165: 1.992467747 | T165: 1.418831596 | U165: 1.992467747 | W165: FALSE | X165: FALSE | AP165: 72139700
A166: 134 | B166: =OFFSET(InputPriceData!B$15,CalculationsAndCharts!$A166+$A$11,0,1,1) -> 2018-06-07 | C166: =OFFSET(InputPriceData!G$15,CalculationsAndCharts!$A166+$A$11,IF($C$7,8,0),1,1) -> 72969400 | D166: =OFFSET(InputPriceData!C$15,CalculationsAndCharts!$A166+$A$11,IF($C$7,8,0),1,1) -> 277.950012 | E166: =OFFSET(InputPriceData!D$15,CalculationsAndCharts!$A166+$A$11,IF($C$7,8,0),1,1) -> 278.279999 | F166: =OFFSET(InputPriceData!E$15,CalculationsAndCharts!$A166+$A$11,IF($C$7,8,0),1,1) -> 276.339996 | G166: =OFFSET(InputPriceData!F$15,CalculationsAndCharts!$A166+$A$11,IF($C$7,8,0),1,1) -> 277.369995 | H166: 0.6166134698 | I166: 1.955167541 | J166: 69.35729713 | K166: 0.4934526957 | L166: 0.7996641352 | M166: 23.70480779 | N166: -0.1730781443 | O166: -0.7122324871 | P166: 9.357896607 | Q166: 0.8415199294 | R166: 2.086123715 | T166: 0.8415199294 | U166: 2.086123715 | W166: FALSE | X166: FALSE | AQ166: 72969400
A167: 135 | B167: =OFFSET(InputPriceData!B$15,CalculationsAndCharts!$A167+$A$11,0,1,1) -> 2018-06-06 | C167: =OFFSET(InputPriceData!G$15,CalculationsAndCharts!$A167+$A$11,IF($C$7,8,0),1,1) -> 62732200 | D167: =OFFSET(InputPriceData!C$15,CalculationsAndCharts!$A167+$A$11,IF($C$7,8,0),1,1) -> 275.790009 | E167: =OFFSET(InputPriceData!D$15,CalculationsAndCharts!$A167+$A$11,IF($C$7,8,0),1,1) -> 277.519989 | F167: =OFFSET(InputPriceData!E$15,CalculationsAndCharts!$A167+$A$11,IF($C$7,8,0),1,1) -> 275.089996 | G167: =OFFSET(InputPriceData!F$15,CalculationsAndCharts!$A167+$A$11,IF($C$7,8,0),1,1) -> 277.399994 | H167: 0.002690862017 | I167: 1.903049757 | J167: 68.23801765 | K167: 0.2423581573 | L167: 0.9213784216 | M167: 23.61920063 | N167: 0.05056285668 | O167: -1.001203107 | P167: 12.09655377 | Q167: 0.1665656165 | R167: 1.868596671 | T167: 0.1665656165 | U167: 1.868596671 | W167: FALSE | X167: FALSE | AP167: 62732200
A168: 136 | B168: =OFFSET(InputPriceData!B$15,CalculationsAndCharts!$A168+$A$11,0,1,1) -> 2018-06-05 | C168: =OFFSET(InputPriceData!G$15,CalculationsAndCharts!$A168+$A$11,IF($C$7,8,0),1,1) -> 51135000 | D168: =OFFSET(InputPriceData!C$15,CalculationsAndCharts!$A168+$A$11,IF($C$7,8,0),1,1) -> 275.049988 | E168: =OFFSET(InputPriceData!D$15,CalculationsAndCharts!$A168+$A$11,IF($C$7,8,0),1,1) -> 275.529999 | F168: =OFFSET(InputPriceData!E$15,CalculationsAndCharts!$A168+$A$11,IF($C$7,8,0),1,1) -> 274.179993 | G168: =OFFSET(InputPriceData!F$15,CalculationsAndCharts!$A168+$A$11,IF($C$7,8,0),1,1) -> 275.100006 | H168: -0.5948667616 | I168: 1.648320535 | J168: 67.16353075 | K168: -0.04695466711 | L168: 0.6638696124 | M168: 22.89221398 | N168: 0.3649406324 | O168: -0.4887583045 | P168: 11.75443011 | Q168: -0.4696088254 | R168: 1.701503024 | T168: -0.4696088254 | U168: 1.701503024 | W168: FALSE | X168: FALSE | AP168: 51135000
A169: 137 | B169: =OFFSET(InputPriceData!B$15,CalculationsAndCharts!$A169+$A$11,0,1,1) -> 2018-06-04 | C169: =OFFSET(InputPriceData!G$15,CalculationsAndCharts!$A169+$A$11,IF($C$7,8,0),1,1) -> 45385200 | D169: =OFFSET(InputPriceData!C$15,CalculationsAndCharts!$A169+$A$11,IF($C$7,8,0),1,1) -> 274.529999 | E169: =OFFSET(InputPriceData!D$15,CalculationsAndCharts!$A169+$A$11,IF($C$7,8,0),1,1) -> 275.190002 | F169: =OFFSET(InputPriceData!E$15,CalculationsAndCharts!$A169+$A$11,IF($C$7,8,0),1,1) -> 274.26001 | G169: =OFFSET(InputPriceData!F$15,CalculationsAndCharts!$A169+$A$11,IF($C$7,8,0),1,1) -> 274.899994 | H169: -1.11243941 | I169: 1.272364089 | J169: 66.4369203 | K169: -0.2554097254 | L169: 0.2311784161 | M169: 22.74415443 | N169: 0.51841074 | O169: 0.6549213794 | P169: 15.95288671 | Q169: -1.007847391 | R169: 1.256208042 | T169: -1.007847391 | U169: 1.256208042 | W169: FALSE | X169: FALSE | AP169: 45385200
A170: 138 | B170: =OFFSET(InputPriceData!B$15,CalculationsAndCharts!$A170+$A$11,0,1,1) -> 2018-06-01 | C170: =OFFSET(InputPriceData!G$15,CalculationsAndCharts!$A170+$A$11,IF($C$7,8,0),1,1) -> 71258400 | D170: =OFFSET(InputPriceData!C$15,CalculationsAndCharts!$A170+$A$11,IF($C$7,8,0),1,1) -> 272.410004 | E170: =OFFSET(InputPriceData!D$15,CalculationsAndCharts!$A170+$A$11,IF($C$7,8,0),1,1) -> 273.940002 | F170: =OFFSET(InputPriceData!E$15,CalculationsAndCharts!$A170+$A$11,IF($C$7,8,0),1,1) -> 272.329987 | G170: =OFFSET(InputPriceData!F$15,CalculationsAndCharts!$A170+$A$11,IF($C$7,8,0),1,1) -> 273.600006 | H170: -1.511961734 | I170: 0.6328351518 | J170: 65.49405725 | K170: -0.3279997481 | L170: -0.5749515799 | M170: 24.16732042 | N170: 0.3127654269 | O170: 0.9574043784 | P170: 19.85389446 | Q170: -1.539003476 | R170: 0.4128873279 | T170: -1.539003476 | U170: 0.4128873279 | W170: TRUE | X170: FALSE | Y170: 19 | AA170: 11 | AP170: 71258400
A171: 139 | B171: =OFFSET(InputPriceData!B$15,CalculationsAndCharts!$A171+$A$11,0,1,1) -> 2018-05-31 | C171: =OFFSET(InputPriceData!G$15,CalculationsAndCharts!$A171+$A$11,IF($C$7,8,0),1,1) -> 93519900 | D171: =OFFSET(InputPriceData!C$15,CalculationsAndCharts!$A171+$A$11,IF($C$7,8,0),1,1) -> 272.149994 | E171: =OFFSET(InputPriceData!D$15,CalculationsAndCharts!$A171+$A$11,IF($C$7,8,0),1,1) -> 272.48999 | F171: =OFFSET(InputPriceData!E$15,CalculationsAndCharts!$A171+$A$11,IF($C$7,8,0),1,1) -> 270.26001 | G171: =OFFSET(InputPriceData!F$15,CalculationsAndCharts!$A171+$A$11,IF($C$7,8,0),1,1) -> 270.940002 | H171: -1.710671971 | I171: 0.06091502961 | J171: 64.72041271 | K171: -0.147464952 | L171: -0.8997654186 | M171: 25.94693685 | N171: 0.01214045209 | O171: 0.9295793471 | P171: 19.52757242 | Q171: -1.797374145 | R171: -0.5980480206 | T171: -1.797374145 | U171: -0.5980480206 | W171: FALSE | X171: FALSE | AQ171: 93519900
A172: 140 | B172: =OFFSET(InputPriceData!B$15,CalculationsAndCharts!$A172+$A$11,0,1,1) -> 2018-05-30 | C172: =OFFSET(InputPriceData!G$15,CalculationsAndCharts!$A172+$A$11,IF($C$7,8,0),1,1) -> 69678400 | D172: =OFFSET(InputPriceData!C$15,CalculationsAndCharts!$A172+$A$11,IF($C$7,8,0),1,1) -> 270.5 | E172: =OFFSET(InputPriceData!D$15,CalculationsAndCharts!$A172+$A$11,IF($C$7,8,0),1,1) -> 273.109985 | F172: =OFFSET(InputPriceData!E$15,CalculationsAndCharts!$A172+$A$11,IF($C$7,8,0),1,1) -> 270.420013 | G172: =OFFSET(InputPriceData!F$15,CalculationsAndCharts!$A172+$A$11,IF($C$7,8,0),1,1) -> 272.609985 | H172: -1.729799291 | I172: -0.5825882893 | J172: 63.88837972 | K172: 0.1350613894 | L172: -0.9869231718 | M172: 25.84934748 | N172: -0.2797474629 | O172: -0.05188831114 | P172: 19.51587227 | Q172: -1.798503161 | R172: -1.612861051 | T172: -1.798503161 | U172: -1.612861051 | W172: FALSE | X172: FALSE | AP172: 69678400
A173: 141 | B173: =OFFSET(InputPriceData!B$15,CalculationsAndCharts!$A173+$A$11,0,1,1) -> 2018-05-29 | C173: =OFFSET(InputPriceData!G$15,CalculationsAndCharts!$A173+$A$11,IF($C$7,8,0),1,1) -> 115908600 | D173: =OFFSET(InputPriceData!C$15,CalculationsAndCharts!$A173+$A$11,IF($C$7,8,0),1,1) -> 270.309998 | E173: =OFFSET(InputPriceData!D$15,CalculationsAndCharts!$A173+$A$11,IF($C$7,8,0),1,1) -> 271.170013 | F173: =OFFSET(InputPriceData!E$15,CalculationsAndCharts!$A173+$A$11,IF($C$7,8,0),1,1) -> 267.76001 | G173: =OFFSET(InputPriceData!F$15,CalculationsAndCharts!$A173+$A$11,IF($C$7,8,0),1,1) -> 269.019989 | H173: -1.546866568 | I173: -1.114484321 | J173: 62.81350809 | K173: 0.4449552654 | L173: -0.5396690012 | M173: 25.53834618 | N173: -0.2634545332 | O173: -0.8554823701 | P173: 22.69282404 | Q173: -1.421500964 | R173: -1.616713624 | T173: -1.421500964 | U173: -1.616713624 | W173: FALSE | X173: FALSE | AQ173: 115908600
A174: 142 | B174: =OFFSET(InputPriceData!B$15,CalculationsAndCharts!$A174+$A$11,0,1,1) -> 2018-05-25 | C174: =OFFSET(InputPriceData!G$15,CalculationsAndCharts!$A174+$A$11,IF($C$7,8,0),1,1) -> 56374800 | D174: =OFFSET(InputPriceData!C$15,CalculationsAndCharts!$A174+$A$11,IF($C$7,8,0),1,1) -> 272.149994 | E174: =OFFSET(InputPriceData!D$15,CalculationsAndCharts!$A174+$A$11,IF($C$7,8,0),1,1) -> 272.859985 | F174: =OFFSET(InputPriceData!E$15,CalculationsAndCharts!$A174+$A$11,IF($C$7,8,0),1,1) -> 271.579987 | G174: =OFFSET(InputPriceData!F$15,CalculationsAndCharts!$A174+$A$11,IF($C$7,8,0),1,1) -> 272.149994 | H174: -1.196918491 | I174: -1.33701385 | J174: 61.50160668 | K174: 0.6144113318 | L174: 0.5875539979 | M174: 27.23709817 | N174: 0.005166931001 | O174: -0.3301200834 | P174: 23.85568491 | Q174: -0.784819991 | R174: -0.8924991714 | T174: -0.784819991 | U174: -0.8924991714 | W174: FALSE | X174: FALSE | AP174: 56374800
A175: 143 | B175: =OFFSET(InputPriceData!B$15,CalculationsAndCharts!$A175+$A$11,0,1,1) -> 2018-05-24 | C175: =OFFSET(InputPriceData!G$15,CalculationsAndCharts!$A175+$A$11,IF($C$7,8,0),1,1) -> 76043800 | D175: =OFFSET(InputPriceData!C$15,CalculationsAndCharts!$A175+$A$11,IF($C$7,8,0),1,1) -> 272.910004 | E175: =OFFSET(InputPriceData!D$15,CalculationsAndCharts!$A175+$A$11,IF($C$7,8,0),1,1) -> 273.220001 | F175: =OFFSET(InputPriceData!E$15,CalculationsAndCharts!$A175+$A$11,IF($C$7,8,0),1,1) -> 270.779999 | G175: =OFFSET(InputPriceData!F$15,CalculationsAndCharts!$A175+$A$11,IF($C$7,8,0),1,1) -> 272.799988 | H175: -0.7770961422 | I175: -1.564309722 | J175: 60.53945607 | K175: 0.4299193764 | L175: 1.290655835 | M175: 30.08142636 | N175: 0.1088246372 | O175: 0.1277904185 | P175: 24.09003921 | Q175: -0.405396452 | R175: -0.5711970131 | T175: -0.405396452 | U175: -0.5711970131 | W175: FALSE | X175: FALSE | AQ175: 76043800
A176: 144 | B176: =OFFSET(InputPriceData!B$15,CalculationsAndCharts!$A176+$A$11,0,1,1) -> 2018-05-23 | C176: =OFFSET(InputPriceData!G$15,CalculationsAndCharts!$A176+$A$11,IF($C$7,8,0),1,1) -> 61021700 | D176: =OFFSET(InputPriceData!C$15,CalculationsAndCharts!$A176+$A$11,IF($C$7,8,0),1,1) -> 271.170013 | E176: =OFFSET(InputPriceData!D$15,CalculationsAndCharts!$A176+$A$11,IF($C$7,8,0),1,1) -> 273.390015 | F176: =OFFSET(InputPriceData!E$15,CalculationsAndCharts!$A176+$A$11,IF($C$7,8,0),1,1) -> 270.98999 | G176: =OFFSET(InputPriceData!F$15,CalculationsAndCharts!$A176+$A$11,IF($C$7,8,0),1,1) -> 273.359985 | H176: -0.2859028895 | I176: -1.71445027 | J176: 60.2041322 | K176: 0.02465344437 | L176: 1.385738458 | M176: 29.866867 | N176: 0.06869844576 | O176: 0.2997913205 | P176: 25.43653948 | Q176: -0.2238842618 | R176: -0.7068024412 | T176: -0.2238842618 | U176: -0.7068024412 | W176: FALSE | X176: FALSE | AP176: 61021700
A177: 145 | B177: =OFFSET(InputPriceData!B$15,CalculationsAndCharts!$A177+$A$11,0,1,1) -> 2018-05-22 | C177: =OFFSET(InputPriceData!G$15,CalculationsAndCharts!$A177+$A$11,IF($C$7,8,0),1,1) -> 52966400 | D177: =OFFSET(InputPriceData!C$15,CalculationsAndCharts!$A177+$A$11,IF($C$7,8,0),1,1) -> 273.959991 | E177: =OFFSET(InputPriceData!D$15,CalculationsAndCharts!$A177+$A$11,IF($C$7,8,0),1,1) -> 274.25 | F177: =OFFSET(InputPriceData!E$15,CalculationsAndCharts!$A177+$A$11,IF($C$7,8,0),1,1) -> 272.23999 | G177: =OFFSET(InputPriceData!F$15,CalculationsAndCharts!$A177+$A$11,IF($C$7,8,0),1,1) -> 272.609985 | H177: 0.2524344953 | I177: -1.688716269 | J177: 60.42266754 | K177: -0.4104684315 | L177: 0.9611799237 | M177: 28.52474665 | N177: -0.02543602889 | O177: 0.2609546896 | P177: 26.37918898 | Q177: -0.04639912923 | R177: -1.257483092 | T177: -0.04639912923 | U177: -1.257483092 | W177: FALSE | X177: FALSE | AQ177: 52966400
A178: 146 | B178: =OFFSET(InputPriceData!B$15,CalculationsAndCharts!$A178+$A$11,0,1,1) -> 2018-05-21 | C178: =OFFSET(InputPriceData!G$15,CalculationsAndCharts!$A178+$A$11,IF($C$7,8,0),1,1) -> 58025900 | D178: =OFFSET(InputPriceData!C$15,CalculationsAndCharts!$A178+$A$11,IF($C$7,8,0),1,1) -> 273.01001 | E178: =OFFSET(InputPriceData!D$15,CalculationsAndCharts!$A178+$A$11,IF($C$7,8,0),1,1) -> 273.980011 | F178: =OFFSET(InputPriceData!E$15,CalculationsAndCharts!$A178+$A$11,IF($C$7,8,0),1,1) -> 272.570007 | G178: =OFFSET(InputPriceData!F$15,CalculationsAndCharts!$A178+$A$11,IF($C$7,8,0),1,1) -> 273.369995 | H178: 0.7826914038 | I178: -1.559787745 | J178: 60.1337799 | K178: -0.7122789276 | L178: -0.003276948969 | M178: 28.43500131 | N178: -0.1073758014 | O178: -0.2108444356 | P178: 27.45378056 | Q178: 0.2203410725 | R178: -2.027574942 | T178: 0.2203410725 | U178: -2.027574942 | W178: FALSE | X178: FALSE | AP178: 58025900
A179: 147 | B179: =OFFSET(InputPriceData!B$15,CalculationsAndCharts!$A179+$A$11,0,1,1) -> 2018-05-18 | C179: =OFFSET(InputPriceData!G$15,CalculationsAndCharts!$A179+$A$11,IF($C$7,8,0),1,1) -> 64368000 | D179: =OFFSET(InputPriceData!C$15,CalculationsAndCharts!$A179+$A$11,IF($C$7,8,0),1,1) -> 271.619995 | E179: =OFFSET(InputPriceData!D$15,CalculationsAndCharts!$A179+$A$11,IF($C$7,8,0),1,1) -> 272.029999 | F179: =OFFSET(InputPriceData!E$15,CalculationsAndCharts!$A179+$A$11,IF($C$7,8,0),1,1) -> 270.929993 | G179: =OFFSET(InputPriceData!F$15,CalculationsAndCharts!$A179+$A$11,IF($C$7,8,0),1,1) -> 271.329987 | H179: 1.272464756 | I179: -1.275689696 | J179: 59.15465883 | K179: -0.7112499656 | L179: -1.037292041 | M179: 29.27285311 | N179: -0.04117064862 | O179: -0.5595229622 | P179: 27.75592113 | Q179: 0.7439289942 | R179: -2.135585301 | T179: 0.7439289942 | U179: -2.135585301 | W179: FALSE | X179: FALSE | AQ179: 64368000
A180: 148 | B180: =OFFSET(InputPriceData!B$15,CalculationsAndCharts!$A180+$A$11,0,1,1) -> 2018-05-17 | C180: =OFFSET(InputPriceData!G$15,CalculationsAndCharts!$A180+$A$11,IF($C$7,8,0),1,1) -> 56536400 | D180: =OFFSET(InputPriceData!C$15,CalculationsAndCharts!$A180+$A$11,IF($C$7,8,0),1,1) -> 271.940002 | E180: =OFFSET(InputPriceData!D$15,CalculationsAndCharts!$A180+$A$11,IF($C$7,8,0),1,1) -> 273.230011 | F180: =OFFSET(InputPriceData!E$15,CalculationsAndCharts!$A180+$A$11,IF($C$7,8,0),1,1) -> 271.130005 | G180: =OFFSET(InputPriceData!F$15,CalculationsAndCharts!$A180+$A$11,IF($C$7,8,0),1,1) -> 272.01001 | H180: 1.67303132 | I180: -0.7402780548 | J180: 57.80174121 | K180: -0.3855402647 | L180: -1.494780534 | M180: 29.05208291 | N180: 0.1345195615 | O180: -0.1008014589 | P180: 28.81057876 | Q180: 1.494671924 | R180: -1.500476665 | T180: 1.494671924 | U180: -1.500476665 | W180: FALSE | X180: FALSE | AP180: 56536400
A181: 149 | B181: =OFFSET(InputPriceData!B$15,CalculationsAndCharts!$A181+$A$11,0,1,1) -> 2018-05-16 | C181: =OFFSET(InputPriceData!G$15,CalculationsAndCharts!$A181+$A$11,IF($C$7,8,0),1,1) -> 53942600 | D181: =OFFSET(InputPriceData!C$15,CalculationsAndCharts!$A181+$A$11,IF($C$7,8,0),1,1) -> 271.140015 | E181: =OFFSET(InputPriceData!D$15,CalculationsAndCharts!$A181+$A$11,IF($C$7,8,0),1,1) -> 272.76001 | F181: =OFFSET(InputPriceData!E$15,CalculationsAndCharts!$A181+$A$11,IF($C$7,8,0),1,1) -> 271.109985 | G181: =OFFSET(InputPriceData!F$15,CalculationsAndCharts!$A181+$A$11,IF($C$7,8,0),1,1) -> 272.23999 | H181: 1.905478629 | I181: -0.2066632261 | J181: 56.36072432 | K181: 0.08382082305 | L181: -1.58053883 | M181: 27.13785371 | N181: 0.1661712196 | O181: 0.203673278 | P181: 30.63036029 | Q181: 2.086144356 | R181: -0.3915375403 | T181: 2.086144356 | U181: -0.3915375403 | W181: FALSE | X181: TRUE | Z181: 12 | AA181: 8 | AP181: 53942600
A182: 150 | B182: =OFFSET(InputPriceData!B$15,CalculationsAndCharts!$A182+$A$11,0,1,1) -> 2018-05-15 | C182: =OFFSET(InputPriceData!G$15,CalculationsAndCharts!$A182+$A$11,IF($C$7,8,0),1,1) -> 87036100 | D182: =OFFSET(InputPriceData!C$15,CalculationsAndCharts!$A182+$A$11,IF($C$7,8,0),1,1) -> 271.589996 | E182: =OFFSET(InputPriceData!D$15,CalculationsAndCharts!$A182+$A$11,IF($C$7,8,0),1,1) -> 271.609985 | F182: =OFFSET(InputPriceData!E$15,CalculationsAndCharts!$A182+$A$11,IF($C$7,8,0),1,1) -> 270.029999 | G182: =OFFSET(InputPriceData!F$15,CalculationsAndCharts!$A182+$A$11,IF($C$7,8,0),1,1) -> 271.100006 | H182: 1.970370882 | I182: 0.4484044412 | J182: 54.82311979 | K182: 0.5801100158 | L182: -0.8780633719 | M182: 24.77073658 | N182: 0.1022178103 | O182: 0.6221395399 | P182: 31.4419958 | Q182: 2.437721508 | R182: 1.110298573 | T182: 2.437721508 | U182: 1.110298573 | W182: FALSE | X182: FALSE | AQ182: 87036100
A183: 151 | B183: =OFFSET(InputPriceData!B$15,CalculationsAndCharts!$A183+$A$11,0,1,1) -> 2018-05-14 | C183: =OFFSET(InputPriceData!G$15,CalculationsAndCharts!$A183+$A$11,IF($C$7,8,0),1,1) -> 54790600 | D183: =OFFSET(InputPriceData!C$15,CalculationsAndCharts!$A183+$A$11,IF($C$7,8,0),1,1) -> 273.339996 | E183: =OFFSET(InputPriceData!D$15,CalculationsAndCharts!$A183+$A$11,IF($C$7,8,0),1,1) -> 274.079987 | F183: =OFFSET(InputPriceData!E$15,CalculationsAndCharts!$A183+$A$11,IF($C$7,8,0),1,1) -> 272.359985 | G183: =OFFSET(InputPriceData!F$15,CalculationsAndCharts!$A183+$A$11,IF($C$7,8,0),1,1) -> 272.980011 | H183: 1.829571888 | I183: 1.131123511 | J183: 52.86221954 | K183: 0.8558219145 | L183: 0.3206315201 | M183: 23.81115719 | N183: -0.09313400521 | O183: 0.7029257529 | P183: 31.35528266 | Q183: 2.3322257 | R183: 2.063754731 | T183: 2.3322257 | U183: 2.063754731 | W183: FALSE | X183: FALSE | AQ183: 54790600
A184: 152 | B184: =OFFSET(InputPriceData!B$15,CalculationsAndCharts!$A184+$A$11,0,1,1) -> 2018-05-11 | C184: =OFFSET(InputPriceData!G$15,CalculationsAndCharts!$A184+$A$11,IF($C$7,8,0),1,1) -> 59871500 | D184: =OFFSET(InputPriceData!C$15,CalculationsAndCharts!$A184+$A$11,IF($C$7,8,0),1,1) -> 272.160004 | E184: =OFFSET(InputPriceData!D$15,CalculationsAndCharts!$A184+$A$11,IF($C$7,8,0),1,1) -> 273.149994 | F184: =OFFSET(InputPriceData!E$15,CalculationsAndCharts!$A184+$A$11,IF($C$7,8,0),1,1) -> 271.579987 | G184: =OFFSET(InputPriceData!F$15,CalculationsAndCharts!$A184+$A$11,IF($C$7,8,0),1,1) -> 272.850006 | H184: 1.474399105 | I184: 1.585400715 | J184: 50.07600174 | K184: 0.7551436172 | L184: 1.19063876 | M184: 23.12813575 | N184: -0.3138526916 | O184: -0.2436407253 | P184: 31.19063292 | Q184: 1.739898855 | R184: 1.867565406 | T184: 1.739898855 | U184: 1.867565406 | W184: FALSE | X184: FALSE | AP184: 59871500
A185: 153 | B185: =OFFSET(InputPriceData!B$15,CalculationsAndCharts!$A185+$A$11,0,1,1) -> 2018-05-10 | C185: =OFFSET(InputPriceData!G$15,CalculationsAndCharts!$A185+$A$11,IF($C$7,8,0),1,1) -> 72063900 | D185: =OFFSET(InputPriceData!C$15,CalculationsAndCharts!$A185+$A$11,IF($C$7,8,0),1,1) -> 270.339996 | E185: =OFFSET(InputPriceData!D$15,CalculationsAndCharts!$A185+$A$11,IF($C$7,8,0),1,1) -> 272.390015 | F185: =OFFSET(InputPriceData!E$15,CalculationsAndCharts!$A185+$A$11,IF($C$7,8,0),1,1) -> 270.220001 | G185: =OFFSET(InputPriceData!F$15,CalculationsAndCharts!$A185+$A$11,IF($C$7,8,0),1,1) -> 272.019989 | H185: 0.9765832806 | I185: 1.775033553 | J185: 47.17883467 | K185: 0.3812830466 | L185: 1.400603631 | M185: 21.39906739 | N185: -0.2373495039 | O185: -1.449808129 | P185: 32.90308573 | Q185: 1.035155851 | R185: 1.164733672 | T185: 1.035155851 | U185: 1.164733672 | W185: FALSE | X185: FALSE | AP185: 72063900
A186: 154 | B186: =OFFSET(InputPriceData!B$15,CalculationsAndCharts!$A186+$A$11,0,1,1) -> 2018-05-09 | C186: =OFFSET(InputPriceData!G$15,CalculationsAndCharts!$A186+$A$11,IF($C$7,8,0),1,1) -> 59666100 | D186: =OFFSET(InputPriceData!C$15,CalculationsAndCharts!$A186+$A$11,IF($C$7,8,0),1,1) -> 267.679993 | E186: =OFFSET(InputPriceData!D$15,CalculationsAndCharts!$A186+$A$11,IF($C$7,8,0),1,1) -> 269.869995 | F186: =OFFSET(InputPriceData!E$15,CalculationsAndCharts!$A186+$A$11,IF($C$7,8,0),1,1) -> 267.089996 | G186: =OFFSET(InputPriceData!F$15,CalculationsAndCharts!$A186+$A$11,IF($C$7,8,0),1,1) -> 269.5 | H186: 0.4192227449 | I186: 1.705246343 | J186: 44.72945853 | K186: -0.05850649356 | L186: 0.8910264385 | M186: 19.70915739 | N186: 0.2178902487 | O186: -1.796778274 | P186: 32.50616125 | Q186: 0.5661339972 | R186: 1.166610026 | T186: 0.5661339972 | U186: 1.166610026 | W186: FALSE | X186: FALSE | AP186: 59666100
A187: 155 | B187: =OFFSET(InputPriceData!B$15,CalculationsAndCharts!$A187+$A$11,0,1,1) -> 2018-05-08 | C187: =OFFSET(InputPriceData!G$15,CalculationsAndCharts!$A187+$A$11,IF($C$7,8,0),1,1) -> 67499200 | D187: =OFFSET(InputPriceData!C$15,CalculationsAndCharts!$A187+$A$11,IF($C$7,8,0),1,1) -> 266.5 | E187: =OFFSET(InputPriceData!D$15,CalculationsAndCharts!$A187+$A$11,IF($C$7,8,0),1,1) -> 267.329987 | F187: =OFFSET(InputPriceData!E$15,CalculationsAndCharts!$A187+$A$11,IF($C$7,8,0),1,1) -> 265.149994 | G187: =OFFSET(InputPriceData!F$15,CalculationsAndCharts!$A187+$A$11,IF($C$7,8,0),1,1) -> 266.920013 | H187: -0.1162246069 | I187: 1.591731937 | J187: 43.1794739 | K187: -0.3382887953 | L187: 0.2573901986 | M187: 19.39361229 | N187: 0.7820786266 | O187: -0.2262600822 | P187: 29.46600832 | Q187: 0.3031207388 | R187: 2.165289202 | T187: 0.3031207388 | U187: 2.165289202 | W187: FALSE | X187: FALSE | AP187: 67499200
A188: 156 | B188: =OFFSET(InputPriceData!B$15,CalculationsAndCharts!$A188+$A$11,0,1,1) -> 2018-05-07 | C188: =OFFSET(InputPriceData!G$15,CalculationsAndCharts!$A188+$A$11,IF($C$7,8,0),1,1) -> 55304900 | D188: =OFFSET(InputPriceData!C$15,CalculationsAndCharts!$A188+$A$11,IF($C$7,8,0),1,1) -> 266.890015 | E188: =OFFSET(InputPriceData!D$15,CalculationsAndCharts!$A188+$A$11,IF($C$7,8,0),1,1) -> 268.019989 | F188: =OFFSET(InputPriceData!E$15,CalculationsAndCharts!$A188+$A$11,IF($C$7,8,0),1,1) -> 266.109985 | G188: =OFFSET(InputPriceData!F$15,CalculationsAndCharts!$A188+$A$11,IF($C$7,8,0),1,1) -> 266.920013 | H188: -0.616028435 | I188: 1.40168669 | J188: 41.7941234 | K188: -0.4191093176 | L188: -0.345275886 | M188: 19.3292765 | N188: 0.8531242924 | O188: 1.960281073 | P188: 30.93474758 | Q188: -0.1670804039 | R188: 2.374353701 | T188: -0.1670804039 | U188: 2.374353701 | W188: FALSE | X188: FALSE | AP188: 55304900
A189: 157 | B189: =OFFSET(InputPriceData!B$15,CalculationsAndCharts!$A189+$A$11,0,1,1) -> 2018-05-04 | C189: =OFFSET(InputPriceData!G$15,CalculationsAndCharts!$A189+$A$11,IF($C$7,8,0),1,1) -> 91222100 | D189: =OFFSET(InputPriceData!C$15,CalculationsAndCharts!$A189+$A$11,IF($C$7,8,0),1,1) -> 261.519989 | E189: =OFFSET(InputPriceData!D$15,CalculationsAndCharts!$A189+$A$11,IF($C$7,8,0),1,1) -> 266.790009 | F189: =OFFSET(InputPriceData!E$15,CalculationsAndCharts!$A189+$A$11,IF($C$7,8,0),1,1) -> 261.149994 | G189: =OFFSET(InputPriceData!F$15,CalculationsAndCharts!$A189+$A$11,IF($C$7,8,0),1,1) -> 266.019989 | H189: -1.056158056 | I189: 0.8933638233 | J189: 40.11598778 | K189: -0.3106926894 | L189: -1.202211973 | M189: 19.27733158 | N189: 0.2375960355 | O189: 2.131250239 | P189: 32.47369006 | Q189: -1.057763525 | R189: 1.077232417 | T189: -1.057763525 | U189: 1.077232417 | W189: TRUE | X189: FALSE | Y189: 5 | AA189: 4 | AP189: 91222100
A190: 158 | B190: =OFFSET(InputPriceData!B$15,CalculationsAndCharts!$A190+$A$11,0,1,1) -> 2018-05-03 | C190: =OFFSET(InputPriceData!G$15,CalculationsAndCharts!$A190+$A$11,IF($C$7,8,0),1,1) -> 136311500 | D190: =OFFSET(InputPriceData!C$15,CalculationsAndCharts!$A190+$A$11,IF($C$7,8,0),1,1) -> 262.26001 | E190: =OFFSET(InputPriceData!D$15,CalculationsAndCharts!$A190+$A$11,IF($C$7,8,0),1,1) -> 263.359985 | F190: =OFFSET(InputPriceData!E$15,CalculationsAndCharts!$A190+$A$11,IF($C$7,8,0),1,1) -> 259.049988 | G190: =OFFSET(InputPriceData!F$15,CalculationsAndCharts!$A190+$A$11,IF($C$7,8,0),1,1) -> 262.619995 | H190: -1.336674296 | I190: 0.355198405 | J190: 39.1824943 | K190: 0.06680187 | L190: -1.487718756 | M190: 17.74260283 | N190: -0.4316165394 | O190: 0.7083999482 | P190: 28.42762548 | Q190: -1.659361705 | R190: -0.3522286778 | T190: -1.659361705 | U190: -0.3522286778 | W190: FALSE | X190: FALSE | AP190: 136311500
A191: 159 | B191: =OFFSET(InputPriceData!B$15,CalculationsAndCharts!$A191+$A$11,0,1,1) -> 2018-05-02 | C191: =OFFSET(InputPriceData!G$15,CalculationsAndCharts!$A191+$A$11,IF($C$7,8,0),1,1) -> 86368900 | D191: =OFFSET(InputPriceData!C$15,CalculationsAndCharts!$A191+$A$11,IF($C$7,8,0),1,1) -> 264.76001 | E191: =OFFSET(InputPriceData!D$15,CalculationsAndCharts!$A191+$A$11,IF($C$7,8,0),1,1) -> 265.679993 | F191: =OFFSET(InputPriceData!E$15,CalculationsAndCharts!$A191+$A$11,IF($C$7,8,0),1,1) -> 262.76001 | G191: =OFFSET(InputPriceData!F$15,CalculationsAndCharts!$A191+$A$11,IF($C$7,8,0),1,1) -> 263.200012 | H191: -1.448206595 | I191: 0.02781895991 | J191: 38.52481655 | K191: 0.5339455593 | L191: -0.6698033185 | M191: 15.60853453 | N191: -0.6540541232 | O191: -0.6517501101 | P191: 35.34311225 | Q191: -1.734804098 | R191: -1.429258888 | T191: -1.734804098 | U191: -1.429258888 | W191: FALSE | X191: FALSE | AQ191: 86368900
A192: 160 | B192: =OFFSET(InputPriceData!B$15,CalculationsAndCharts!$A192+$A$11,0,1,1) -> 2018-05-01 | C192: =OFFSET(InputPriceData!G$15,CalculationsAndCharts!$A192+$A$11,IF($C$7,8,0),1,1) -> 74203400 | D192: =OFFSET(InputPriceData!C$15,CalculationsAndCharts!$A192+$A$11,IF($C$7,8,0),1,1) -> 263.869995 | E192: =OFFSET(InputPriceData!D$15,CalculationsAndCharts!$A192+$A$11,IF($C$7,8,0),1,1) -> 265.100006 | F192: =OFFSET(InputPriceData!E$15,CalculationsAndCharts!$A192+$A$11,IF($C$7,8,0),1,1) -> 262.109985 | G192: =OFFSET(InputPriceData!F$15,CalculationsAndCharts!$A192+$A$11,IF($C$7,8,0),1,1) -> 264.980011 | H192: -1.456941749 | I192: -0.3661472518 | J192: 37.64273727 | K192: 0.7442638014 | L192: 0.3568319274 | M192: 15.01007784 | N192: -0.4494045886 | O192: -1.748124231 | P192: 37.91426108 | Q192: -1.437985981 | R192: -1.587577253 | T192: -1.437985981 | U192: -1.587577253 | W192: FALSE | X192: FALSE | AP192: 74203400
A193: 161 | B193: =OFFSET(InputPriceData!B$15,CalculationsAndCharts!$A193+$A$11,0,1,1) -> 2018-04-30 | C193: =OFFSET(InputPriceData!G$15,CalculationsAndCharts!$A193+$A$11,IF($C$7,8,0),1,1) -> 82182300 | D193: =OFFSET(InputPriceData!C$15,CalculationsAndCharts!$A193+$A$11,IF($C$7,8,0),1,1) -> 267.26001 | E193: =OFFSET(InputPriceData!D$15,CalculationsAndCharts!$A193+$A$11,IF($C$7,8,0),1,1) -> 267.890015 | F193: =OFFSET(InputPriceData!E$15,CalculationsAndCharts!$A193+$A$11,IF($C$7,8,0),1,1) -> 264.429993 | G193: =OFFSET(InputPriceData!F$15,CalculationsAndCharts!$A193+$A$11,IF($C$7,8,0),1,1) -> 264.51001 | H193: -1.341971512 | I193: -0.7225527927 | J193: 36.96505014 | K193: 0.6322185762 | L193: 1.337265674 | M193: 15.35560654 | N193: 0.09950641984 | O193: -1.397933372 | P193: 35.8380262 | Q193: -0.8365148874 | R193: -0.5093660389 | T193: -0.8365148874 | U193: -0.5093660389 | W193: FALSE | X193: TRUE | Z193: 8 | AA193: 1 | AQ193: 82182300
A194: 162 | B194: =OFFSET(InputPriceData!B$15,CalculationsAndCharts!$A194+$A$11,0,1,1) -> 2018-04-27 | C194: =OFFSET(InputPriceData!G$15,CalculationsAndCharts!$A194+$A$11,IF($C$7,8,0),1,1) -> 57053600 | D194: =OFFSET(InputPriceData!C$15,CalculationsAndCharts!$A194+$A$11,IF($C$7,8,0),1,1) -> 267 | E194: =OFFSET(InputPriceData!D$15,CalculationsAndCharts!$A194+$A$11,IF($C$7,8,0),1,1) -> 267.339996 | F194: =OFFSET(InputPriceData!E$15,CalculationsAndCharts!$A194+$A$11,IF($C$7,8,0),1,1) -> 265.5 | G194: =OFFSET(InputPriceData!F$15,CalculationsAndCharts!$A194+$A$11,IF($C$7,8,0),1,1) -> 266.559998 | H194: -1.115089935 | I194: -1.007295255 | J194: 36.12423184 | K194: 0.2123171545 | L194: 1.876691396 | M194: 13.46203254 | N194: 0.5384574988 | O194: 0.2311358778 | P194: 37.04619764 | Q194: -0.4401936773 | R194: 0.2582833722 | T194: -0.4401936773 | U194: 0.2582833722 | W194: TRUE | X194: FALSE | Y194: 12 | AA194: 7 | AQ194: 57053600
A195: 163 | B195: =OFFSET(InputPriceData!B$15,CalculationsAndCharts!$A195+$A$11,0,1,1) -> 2018-04-26 | C195: =OFFSET(InputPriceData!G$15,CalculationsAndCharts!$A195+$A$11,IF($C$7,8,0),1,1) -> 67731900 | D195: =OFFSET(InputPriceData!C$15,CalculationsAndCharts!$A195+$A$11,IF($C$7,8,0),1,1) -> 264.790009 | E195: =OFFSET(InputPriceData!D$15,CalculationsAndCharts!$A195+$A$11,IF($C$7,8,0),1,1) -> 267.25 | F195: =OFFSET(InputPriceData!E$15,CalculationsAndCharts!$A195+$A$11,IF($C$7,8,0),1,1) -> 264.290009 | G195: =OFFSET(InputPriceData!F$15,CalculationsAndCharts!$A195+$A$11,IF($C$7,8,0),1,1) -> 266.309998 | H195: -0.7987992246 | I195: -1.441367147 | J195: 35.17276171 | K195: -0.3769639438 | L195: 1.222277377 | M195: 10.20411171 | N195: 0.4658808331 | O195: 1.075931462 | P195: 38.19156343 | Q195: -0.5163783319 | R195: -0.1259772171 | T195: -0.5163783319 | U195: -0.1259772171 | W195: FALSE | X195: FALSE | AP195: 67731900
A196: 164 | B196: =OFFSET(InputPriceData!B$15,CalculationsAndCharts!$A196+$A$11,0,1,1) -> 2018-04-25 | C196: =OFFSET(InputPriceData!G$15,CalculationsAndCharts!$A196+$A$11,IF($C$7,8,0),1,1) -> 103840900 | D196: =OFFSET(InputPriceData!C$15,CalculationsAndCharts!$A196+$A$11,IF($C$7,8,0),1,1) -> 262.910004 | E196: =OFFSET(InputPriceData!D$15,CalculationsAndCharts!$A196+$A$11,IF($C$7,8,0),1,1) -> 264.130005 | F196: =OFFSET(InputPriceData!E$15,CalculationsAndCharts!$A196+$A$11,IF($C$7,8,0),1,1) -> 260.850006 | G196: =OFFSET(InputPriceData!F$15,CalculationsAndCharts!$A196+$A$11,IF($C$7,8,0),1,1) -> 263.630005 | H196: -0.3462099406 | I196: -1.766282595 | J196: 34.05806914 | K196: -0.7607590401 | L196: 0.002049074985 | M196: 8.956661076 | N196: 0.1280383541 | O196: 1.010371212 | P196: 37.20106512 | Q196: -0.6025247767 | R196: -0.6011274117 | T196: -0.6025247767 | U196: -0.6011274117 | W196: FALSE | X196: FALSE | AP196: 103840900
A197: 165 | B197: =OFFSET(InputPriceData!B$15,CalculationsAndCharts!$A197+$A$11,0,1,1) -> 2018-04-24 | C197: =OFFSET(InputPriceData!G$15,CalculationsAndCharts!$A197+$A$11,IF($C$7,8,0),1,1) -> 112885500 | D197: =OFFSET(InputPriceData!C$15,CalculationsAndCharts!$A197+$A$11,IF($C$7,8,0),1,1) -> 267.730011 | E197: =OFFSET(InputPriceData!D$15,CalculationsAndCharts!$A197+$A$11,IF($C$7,8,0),1,1) -> 267.980011 | F197: =OFFSET(InputPriceData!E$15,CalculationsAndCharts!$A197+$A$11,IF($C$7,8,0),1,1) -> 261.279999 | G197: =OFFSET(InputPriceData!F$15,CalculationsAndCharts!$A197+$A$11,IF($C$7,8,0),1,1) -> 262.980011 | H197: 0.2084027943 | I197: -1.607223211 | J197: 31.77965283 | K197: -0.7614024496 | L197: -0.6502862013 | M197: 10.16965937 | N197: -0.1892182066 | O197: 1.052393652 | P197: 40.98659505 | Q197: -0.437201651 | R197: -1.070605762 | T197: -0.437201651 | U197: -1.070605762 | W197: FALSE | X197: FALSE | AQ197: 112885500
A198: 166 | B198: =OFFSET(InputPriceData!B$15,CalculationsAndCharts!$A198+$A$11,0,1,1) -> 2018-04-23 | C198: =OFFSET(InputPriceData!G$15,CalculationsAndCharts!$A198+$A$11,IF($C$7,8,0),1,1) -> 65558000 | D198: =OFFSET(InputPriceData!C$15,CalculationsAndCharts!$A198+$A$11,IF($C$7,8,0),1,1) -> 267.26001 | E198: =OFFSET(InputPriceData!D$15,CalculationsAndCharts!$A198+$A$11,IF($C$7,8,0),1,1) -> 267.890015 | F198: =OFFSET(InputPriceData!E$15,CalculationsAndCharts!$A198+$A$11,IF($C$7,8,0),1,1) -> 265.350006 | G198: =OFFSET(InputPriceData!F$15,CalculationsAndCharts!$A198+$A$11,IF($C$7,8,0),1,1) -> 266.570007 | H198: 0.7130708825 | I198: -1.248179672 | J198: 30.34141037 | K198: -0.5572125824 | L198: -1.017210869 | M198: 9.950117286 | N198: -0.5196698132 | O198: 0.2967638671 | P198: 43.0063768 | Q198: -0.2247161985 | R198: -2.049154734 | T198: -0.2247161985 | U198: -2.049154734 | W198: FALSE | X198: FALSE | AQ198: 65558000
A199: 167 | B199: =OFFSET(InputPriceData!B$15,CalculationsAndCharts!$A199+$A$11,0,1,1) -> 2018-04-20 | C199: =OFFSET(InputPriceData!G$15,CalculationsAndCharts!$A199+$A$11,IF($C$7,8,0),1,1) -> 99953100 | D199: =OFFSET(InputPriceData!C$15,CalculationsAndCharts!$A199+$A$11,IF($C$7,8,0),1,1) -> 268.809998 | E199: =OFFSET(InputPriceData!D$15,CalculationsAndCharts!$A199+$A$11,IF($C$7,8,0),1,1) -> 269.059998 | F199: =OFFSET(InputPriceData!E$15,CalculationsAndCharts!$A199+$A$11,IF($C$7,8,0),1,1) -> 265.609985 | G199: =OFFSET(InputPriceData!F$15,CalculationsAndCharts!$A199+$A$11,IF($C$7,8,0),1,1) -> 266.609985 | H199: 1.104999299 | I199: -0.8201278401 | J199: 29.58148611 | K199: -0.2378083695 | L199: -1.142159478 | M199: 8.874549144 | N199: -0.6128536675 | O199: -0.996909714 | P199: 43.02087864 | Q199: 0.2356740706 | R199: -2.428186273 | T199: 0.2356740706 | U199: -2.428186273 | W199: FALSE | X199: FALSE | AQ199: 99953100
A200: 168 | B200: =OFFSET(InputPriceData!B$15,CalculationsAndCharts!$A200+$A$11,0,1,1) -> 2018-04-19 | C200: =OFFSET(InputPriceData!G$15,CalculationsAndCharts!$A200+$A$11,IF($C$7,8,0),1,1) -> 77655900 | D200: =OFFSET(InputPriceData!C$15,CalculationsAndCharts!$A200+$A$11,IF($C$7,8,0),1,1) -> 269.649994 | E200: =OFFSET(InputPriceData!D$15,CalculationsAndCharts!$A200+$A$11,IF($C$7,8,0),1,1) -> 269.880005 | F200: =OFFSET(InputPriceData!E$15,CalculationsAndCharts!$A200+$A$11,IF($C$7,8,0),1,1) -> 267.720001 | G200: =OFFSET(InputPriceData!F$15,CalculationsAndCharts!$A200+$A$11,IF($C$7,8,0),1,1) -> 268.890015 | H200: 1.362519441 | I200: -0.2226416068 | J200: 28.45849178 | K200: 0.1208297065 | L200: -0.6739296074 | M200: 8.34500761 | N200: -0.2998240173 | O200: -1.32595005 | P200: 42.12338701 | Q200: 1.063177552 | R200: -1.658153057 | T200: 1.063177552 | U200: -1.658153057 | W200: FALSE | X200: FALSE | AQ200: 77655900
A201: 169 | B201: =OFFSET(InputPriceData!B$15,CalculationsAndCharts!$A201+$A$11,0,1,1) -> 2018-04-18 | C201: =OFFSET(InputPriceData!G$15,CalculationsAndCharts!$A201+$A$11,IF($C$7,8,0),1,1) -> 57303900 | D201: =OFFSET(InputPriceData!C$15,CalculationsAndCharts!$A201+$A$11,IF($C$7,8,0),1,1) -> 270.690002 | E201: =OFFSET(InputPriceData!D$15,CalculationsAndCharts!$A201+$A$11,IF($C$7,8,0),1,1) -> 271.299988 | F201: =OFFSET(InputPriceData!E$15,CalculationsAndCharts!$A201+$A$11,IF($C$7,8,0),1,1) -> 269.869995 | G201: =OFFSET(InputPriceData!F$15,CalculationsAndCharts!$A201+$A$11,IF($C$7,8,0),1,1) -> 270.390015 | H201: 1.432428906 | I201: 0.2900024071 | J201: 27.65538073 | K201: 0.3324436032 | L201: -0.1658102786 | M201: 8.788798541 | N201: 0.1165242983 | O201: -0.9312106543 | P201: 41.04105234 | Q201: 1.761789143 | R201: -0.58798923 | T201: 1.761789143 | U201: -0.58798923 | W201: FALSE | X201: TRUE | Z201: 7 | AA201: 5 | AQ201: 57303900
... 831 more rows

Sheet Follow
A1: Stocks and Indexes I wish to follow
A3: To ease following a stock, enter a Yahoo Finance acceptable symbol in column "A" anywhere below cell "A9".
A4: Thereafter you may doubleclick the cell containing a symbol of interest to initiate data retrieval and charting for that symbol.
A7: Symbol
A8: To | B8: Description | C8: Last Trade as of most recent check
A9: Follow | C9: Date | D9: Time | E9: Open | F9: High | G9: Low | H9: Close | I9: Volume | J9: Change
A10: A | B10: Agilent Technolog (A) -NYSE (Daily) | C10: 2015-02-02 | D10: 16:03:00 | E10: 37.9 | F10: 38.76 | G10: 37.71 | H10: 38.69 | I10: 2508493 | J10: 0.92
A11: AA | B11: Alcoa Corporation (AA) -NYSE (Weekly) | C11: 2018-06-19 | D11: 16:04:00 | E11: 44.630001 | F11: 44.630001 | G11: 43.349998 | H11: 44.470001 | I11: 3190085 | J11: -1.309998
A12: AAL | B12: American Airlines Group Inc. (AAL) -NasdaqGS (Daily) | C12: 2017-12-07 | D12: 16:00:00 | E12: 49.529999 | F12: 50.920502 | G12: 49.299999 | H12: 50.880001 | I12: 3046954 | J12: 1.27
A13: ADM | B13: Archer-Daniels-Midland Company (ADM) -NYSE (Weekly) | C13: 2018-07-13 | D13: 16:00:00 | E13: 47.5 | F13: 47.84 | G13: 47.169998 | H13: 47.57 | I13: 2402809 | J13: 0
A14: AMC | B14: AMC Entertainment Holdings, Inc. (AMC) -NYSE (Weekly) | C14: 2018-07-13 | D14: 16:02:00 | E14: 17.049999 | F14: 17.15 | G14: 16.525 | H14: 17.049999 | I14: 1442776 | J14: 0
A15: BSX | B15: Boston Scientific Corporation C (BSX) -NYQ (Daily) | C15: 2015-03-13 | D15: 16:01:00 | E15: 16.84 | F15: 16.91 | G15: 16.44 | H15: 16.61 | I15: 7262460 | J15: -0.28
A16: CASY | B16: Casey's General Stores, Inc. (CASY) -NasdaqGS (Daily) | C16: 2019-04-10 | D16: 16:00:00 | E16: 128.979996 | F16: 130.330002 | G16: 128.779999 | H16: 130.179993 | I16: 351300 | J16: 1.489991
A17: CAT | B17: Caterpillar Inc. (CAT) -NYSE (Daily) | C17: 2019-04-10 | D17: 16:00:00 | E17: 137.160004 | F17: 138.210007 | G17: 136.279999 | H17: 137.529999 | I17: 3310600 | J17: 1.179993
A18: CSCO | B18: Cisco Systems, In (CSCO) -NasdaqNM (Daily) | C18: 2015-02-19 | D18: 16:00:00 | E18: 29.32 | F18: 29.39 | G18: 29.13 | H18: 29.31 | I18: 21469012 | J18: -0.18
A19: CVS | B19: CVS Health Corpor (CVS) -NYSE (Daily) | C19: 2015-02-02 | D19: 16:01:00 | E19: 98.34 | F19: 99.22 | G19: 97.06 | H19: 99.11 | I19: 4416094 | J19: 0.95
A20: DIS | B20: Walt Disney Compa (DIS) -NYSE (Daily) | C20: 2015-02-26 | D20: 16:00:00 | E20: 105.5 | F20: 105.71 | G20: 104.14 | H20: 104.56 | I20: 5044969 | J20: -1.01
A21: F | B21: Ford Motor Company (F) -NYSE (Daily) | C21: 2018-04-16 | D21: 13:20:00 | E21: 11.36 | F21: 11.4375 | G21: 11.27 | H21: 11.425 | I21: 13144677 | J21: 0.145
A22: FAS | B22: Direxion Daily Financial Bull 3X ETF (FAS) -NYSEArca (Daily) | C22: 2017-10-13 | D22: 16:00:00 | E22: 58.099998 | F22: 58.939999 | G22: 57.43 | H22: 58.450001 | I22: 1709300 | J22: 0.07
A23: FB | B23: Facebook, Inc. (FB) -NasdaqGS (Daily) | C23: 2018-07-13 | D23: 16:00:00 | E23: 207.809998 | F23: 208.429993 | G23: 206.449997 | H23: 207.320007 | I23: 11486800 | J23: 0.400009
A24: GSK | B24: GlaxoSmithKline P (GSK) -NYSE (Daily) | C24: 2015-02-02 | D24: 16:01:00 | E24: 44.11 | F24: 44.12 | G24: 43.71 | H24: 43.96 | I24: 3654466 | J24: -0.04
A25: GDX | B25: VanEck Vectors Gold Miners ETF (GDX) -PCX (Daily) | C25: 2017-02-10 | D25: 20:00:00 | E25: 24.67 | F25: 25.36 | G25: 24.6 | H25: 25.29 | I25: 65396107 | J25: 0.38
A26: HSY | B26: The Hershey Company (HSY) -NYSE (Daily) | C26: 2019-04-10 | D26: 16:02:00 | E26: 116.099998 | F26: 116.43 | G26: 115.75 | H26: 116.309998 | I26: 574600 | J26: 0.290001
A27: HTLD | B27: Heartland Express, Inc. (HTLD) -NasdaqGS (Daily) | C27: 2018-04-16 | D27: 13:57:00 | E27: 18.17 | F27: 18.620001 | G27: 18.129999 | H27: 18.540001 | I27: 202134 | J27: 0.540001
A28: IBM | B28: International Business Machines Corporation (IBM) -NYSE (Weekly) | C28: 2018-07-13 | D28: 16:01:00 | E28: 146.449997 | F28: 146.979904 | G28: 145.800003 | H28: 145.899994 | I28: 3067638 | J28: 0
A29: INTC | B29: Intel Corporation (INTC) -NasdaqGS (Daily) | C29: 2019-04-10 | D29: 16:00:00 | E29: 55.32 | F29: 55.860001 | G29: 55.32 | H29: 55.75 | I29: 12950500 | J29: 0.43
A30: JAH | B30: Jarden Corporation Common Stock (JAH) -NYQ (Daily) | C30: 2016-01-08 | D30: 16:02:00 | E30: 53.82 | F30: 53.88 | G30: 52.65 | H30: 52.73 | I30: 4519480 | J30: -0.81
A31: JNJ | B31: Johnson & Johnson (JNJ) -NYSE (Daily) | C31: 2019-04-10 | D31: 16:02:00 | E31: 135.889999 | F31: 136.130005 | G31: 135.330002 | H31: 135.580002 | I31: 4194100 | J31: 0.009995
A32: KO | B32: The Coca-Cola Company (KO) -NYSE (Daily) | C32: 2019-04-10 | D32: 16:02:00 | E32: 46.84 | F32: 47 | G32: 46.560001 | H32: 46.639999 | I32: 8059900 | J32: -0.029999
A33: LHO | B33: LaSalle Hotel Properties (LHO) -NYSE (Daily) | C33: 2018-07-13 | E33: 35.009998 | F33: 35.07 | G33: 34.82 | H33: 34.880001 | I33: 168400 | J33: -0.09
A34: LINE | B34: Linn Energy, LLC (LINE) -NasdaqNM (Daily) | C34: 2015-02-02 | D34: 16:00:00 | E34: 10.4 | F34: 10.78 | G34: 10.25 | H34: 10.77 | I34: 3766537 | J34: 0.51
A35: LO | B35: Lorillard, Inc Co (LO) -NYSE (Daily) | C35: 2015-02-02 | D35: 16:03:00 | E35: 65.71 | F35: 66.29 | G35: 65.43 | H35: 66.29 | I35: 1563618 | J35: 0.68
A36: MCD | B36: McDonald's Corporation (MCD) -NYSE (Daily) | C36: 2019-04-10 | D36: 16:02:00 | E36: 190.559998 | F36: 191.300003 | G36: 188.759995 | H36: 189.220001 | I36: 2406300 | J36: -0.860001
A37: MDT | B37: Medtronic plc. Or (MDT) -NYSE (Daily) | C37: 2015-02-19 | D37: 16:01:00 | E37: 78.59 | F37: 78.59 | G37: 77.85 | H37: 78.13 | I37: 6900528 | J37: -0.37
A38: MGM | B38: MGM Resorts Inter (MGM) -NYSE (Daily) | C38: 2015-02-02 | D38: 16:00:00 | E38: 19.44 | F38: 19.75 | G38: 19.12 | H38: 19.74 | I38: 7570281 | J38: 0.26
A39: MO | B39: Altria Group, Inc (MO) -NYSE (Daily) | C39: 2015-02-02 | D39: 16:01:00 | E39: 53.25 | F39: 53.84 | G39: 52.98 | H39: 53.8 | I39: 9183582 | J39: 0.7
A40: MSFT | B40: Microsoft Corporation (MSFT) -NasdaqGS (Daily) | C40: 2019-04-10 | D40: 16:00:00 | E40: 119.760002 | F40: 120.349998 | G40: 119.540001 | H40: 120.190002 | I40: 16123400 | J40: 0.910003
A41: NFLX | B41: Netflix, Inc. (NFLX) -NasdaqGS (Weekly) | C41: 2018-06-19 | D41: 14:59:00 | E41: 389.5 | F41: 404.390015 | G41: 388.5 | H41: 404.100006 | I41: 13053145 | J41: 13.700012
A42: NUGT | B42: Direxion Daily Gold Miners Inde (NUGT) -PCX (Daily) | C42: 2016-04-13 | D42: 14:18:00 | E42: 81.48 | F42: 84.97 | G42: 79.59 | H42: 80.5352 | I42: 4380827 | J42: -5.6148
A43: NVS | B43: Novartis AG (NVS) -NYSE (Daily) | C43: 2018-04-13 | D43: 16:02:00 | E43: 81.150002 | F43: 81.269997 | G43: 80.699997 | H43: 81.040001 | I43: 1037000 | J43: -0.400001
A44: NVDA | B44: NVIDIA Corporation (NVDA) -NasdaqGS (Daily) | C44: 2019-04-05 | D44: 16:00:00 | E44: 190 | F44: 191.649994 | G44: 188.529999 | H44: 190.949997 | I44: 10895024 | J44: 2.690002
A45: PRU | B45: Prudential Financ (PRU) -NYSE (Daily) | C45: 2015-02-23 | D45: 12:22:00 | E45: 80.25 | F45: 80.4499 | G45: 79.8 | H45: 80.12 | I45: 1604052 | J45: -0.69
A46: PSEC | B46: Prospect Capital Corporation (PSEC) -NasdaqGS (Daily) | C46: 2019-04-10 | D46: 16:00:00 | E46: 6.57 | F46: 6.59 | G46: 6.55 | H46: 6.58 | I46: 887400 | J46: 0.01
A47: RAI | B47: Reynolds American (RAI) -NYSE (Daily) | C47: 2015-02-02 | D47: 16:03:00 | E47: 68.12 | F47: 69.06 | G47: 67.4346 | H47: 69.05 | I47: 1822013 | J47: 1.1
A48: RPM | B48: RPM International Inc. (RPM) -NYSE (Daily) | C48: 2018-04-13 | D48: 16:02:00 | E48: 49.52 | F48: 49.52 | G48: 48.970001 | H48: 49.240002 | I48: 908200 | J48: 0.010002 | K48: Owns the Rust-Oleum brand
A49: RSP | B49: Guggenheim S&P 500 Equal Weight (RSP) -PCX (Daily) | C49: 2016-01-08 | D49: 11:33:00 | E49: 73.24 | F49: 73.47 | G49: 72.41 | H49: 72.41 | I49: 754279 | J49: -0.48
A50: SPR | B50: Spirit Aerosystems Holdings, In (SPR) -NYQ (Daily) | C50: 2017-02-08 | D50: 16:02:00 | E50: 56.31 | F50: 56.53 | G50: 55.13 | H50: 56.41 | I50: 849196 | J50: 0.06
A51: SWKS | B51: Skyworks Solution (SWKS) -NasdaqNM (Daily) | C51: 2015-02-02 | D51: 16:00:00 | E51: 83.07 | F51: 83.73 | G51: 80.15 | H51: 82.02 | I51: 4119001 | J51: -1.03
A52: TOL | B52: Toll Brothers, Inc. (TOL) -NYSE (Daily) | C52: 2019-04-10 | D52: 16:01:00 | E52: 37.25 | F52: 37.619999 | G52: 37.029999 | H52: 37.450001 | I52: 1023200 | J52: 0.200001
A53: UNP | B53: Union Pacific Cor (UNP) -NYSE (Daily) | C53: 2015-02-02 | D53: 16:10:00 | E53: 118.13 | F53: 119.06 | G53: 116.7 | H53: 119.01 | I53: 3259594 | J53: 1.8
A54: VZ | B54: Verizon Communications Inc. (VZ) -NYSE (Daily) | C54: 2019-04-10 | D54: 16:00:00 | E54: 58.400002 | F54: 58.700001 | G54: 58.360001 | H54: 58.610001 | I54: 8022000 | J54: 0.209999
A55: WBA | B55: (WBA) -NasdaqNM (Daily) | C55: 2015-02-02 | D55: 16:00:00 | E55: 73.06 | F55: 74.98 | G55: 73 | H55: 74.89 | I55: 4247395 | J55: 1.14
A56: WMT | B56: Walmart Inc. (WMT) -NYSE (Daily) | C56: 2018-07-13 | D56: 16:00:00 | E56: 86.519997 | F56: 87.989998 | G56: 86.5 | H56: 87.699997 | I56: 6388600 | J56: 1.18
A58: ^NDX | B58: NASDAQ-100 (^NDX) -NIM (Daily) | C58: 2015-08-10 | D58: 17:15:00 | E58: 4558.68 | F58: 4583.63 | G58: 4554.63 | H58: 4573.11 | I58: 0 | J58: 53.03
A59: ^FTSE | B59: FTSE 100 (^FTSE) -FTSE (Daily) | C59: 2018-02-14 | D59: 15:51:00 | E59: 7168.009766 | F59: 7243.149902 | G59: 7145.72998 | H59: 7222.319824 | I59: 0 | J59: 54.319824
A60: ^DJI | B60: Dow Jones Industrial Average (^DJI) -DJI (Daily) | C60: 2018-02-14 | D60: 13:58:00 | E60: 24535.82031 | F60: 24835.44922 | G60: 24490.35938 | H60: 24816.16016 | I60: 254641020 | J60: 175.710937
A61: SPY | B61: SPDR S&P 500 ETF (SPY) -NYSEArca (Daily) | C61: 2019-04-10 | D61: 16:00:00 | E61: 287.769989 | F61: 288.390015 | G61: 287.309998 | H61: 288.290009 | I61: 52513100 | J61: 0.980011
A62: ^GSPC | B62: S&P 500 (^GSPC) -SNP (Daily) | C62: 2019-04-05 | D62: 16:20:00 | E62: 2884.159912 | F62: 2893.23999 | G62: 2882.98999 | H62: 2892.73999 | I62: 1722295403 | J62: 13.350097
A63: IWM | B63: iShares Russell 2000 ETF (IWM) -NYSEArca (Daily) | C63: 2018-04-13 | D63: 16:00:00 | E63: 155.289993 | F63: 155.330002 | G63: 153.509995 | H63: 153.949997 | I63: 19710100 | J63: -0.809998
A64: QQQ | B64: PowerShares QQQ ETF (QQQ) -NasdaqGM (Daily) | C64: 2018-04-13 | D64: 16:00:00 | E64: 163.020004 | F64: 163.259995 | G64: 160.669998 | H64: 161.369995 | I64: 44450700 | J64: -0.840012
A65: ^RUT | B65: Russell 2000 (^RUT) -Chicago Options (Daily) | C65: 2019-02-14 | D65: 16:30:00 | E65: 1540.987793 | F65: 1551.385864 | G65: 1534.590088 | H65: 1545.105225 | I65: 0 | J65: 2.165284
A66: ^VIX | B66: VOLATILITY S&P 500 (^VIX) -WCB (Daily) | C66: 2015-12-04 | D66: 16:14:00 | E66: 17.43 | F66: 17.65 | G66: 14.69 | H66: 14.81 | I66: 0 | J66: -3.3
A67: ^NYA | B67: NYSE COMPOSITE (DJ) (^NYA) -NYSE (Daily) | C67: 2018-07-13 | D67: 16:15:00 | E67: 12744.79981 | F67: 12783.24023 | G67: 12727.75977 | H67: 12769.5 | I67: 2614000000 | J67: 8.040039
A69: ACAD | B69: ACADIA Pharmaceut (ACAD) -NasdaqNM (Daily) | C69: 2014-07-21 | D69: 16:00:00 | E69: 20.13 | F69: 20.55 | G69: 19.8101 | H69: 20.31 | I69: 691016
A70: CLDX | B70: Celldex Therapeut (CLDX) -NasdaqNM (Daily) | C70: 2015-02-02 | D70: 16:00:00 | E70: 21.47 | F70: 21.69 | G70: 20.11 | H70: 21.02 | I70: 1570418 | J70: -0.4
A71: ICPT | B71: Intercept Pharmac (ICPT) -NasdaqNM (Daily) | C71: 2014-07-21 | D71: 16:00:00 | E71: 215.97 | F71: 218.43 | G71: 213.05 | H71: 218.14 | I71: 191276
A72: INO | B72: Inovio Pharmaceut (INO) -AMEX (Daily) | C72: 2014-07-21 | D72: 16:00:00 | E72: 10.3 | F72: 11.08 | G72: 10.1 | H72: 11.01 | I72: 1800796
A73: JCP | B73: J. C. Penney Company, Inc. (JCP) -NYSE (Daily) | C73: 2017-12-07 | D73: 16:01:00 | E73: 3.34 | F73: 3.4 | G73: 3.25 | H73: 3.27 | I73: 14485464 | J73: -0.07
A74: LCI | B74: Lannett Co Inc Co (LCI) -NYSE (Daily) | C74: 2014-07-21 | D74: 16:02:00 | E74: 38.09 | F74: 38.803 | G74: 36.5101 | H74: 37.76 | I74: 611367
A75: NPSP | B75: NPS Pharmaceutica (NPSP) -NasdaqNM (Daily) | C75: 2014-07-21 | D75: 15:59:00 | E75: 28.75 | F75: 29.43 | G75: 28.31 | H75: 29.29 | I75: 1126758
A76: PBYI | B76: Puma Biotechnolog (PBYI) -NYSE (Daily) | C76: 2014-07-21 | D76: 16:02:00 | E76: 58.27 | F76: 59.46 | G76: 57.39 | H76: 58.98 | I76: 348030

Sheet ScrollBarAttribs
